Workbook

Sheet Main
B10: 2022-08-19
B12: Sheet No. | C12: Template Name | D12: Summary
B13: 1 | C13: Future Intra | D13: For Intraday trading in F&O segment
B14: 2 | C14: Cash Intra | D14: For Intraday trading in cash market segment
B15: 3 | C15: Mid-cap Intra | D15: For Intraday trading in Mid-cap stocks
B16: 4 | C16: Bulk Deals | D16: Reveals Bulk Deals carried on NSE & BSE
B17: 5 | C17: Call Tracker
K27: `

Sheet Future Intra
M5: Back to Main Page
A6: FOR INTRA DAY TRADING | L6: =Main!B10 -> 2022-08-19
A9: Sr.no | B9: Sector | C9: Scrip | D9: Expiry Date | E9: CLOSE RATE | F9: Pivot Point | G9: Supports | J9: Resistances
E10: Point | F10: Point | G10: S1 | H10: S2 | I10: S3 | J10: R1 | K10: R2 | L10: R3 | M10: HIGH | N10: LOW | O10: OI | P10: % Change in OI
A11: 1 | B11: Index | C11: NIFTY | D11: 2022-08-25 | E11: 17980.35 | F11: 17947.97 | G11: 17891.23 | H11: 17802.12 | I11: 17745.38 | J11: 18037.08 | K11: 18093.82 | L11: 18182.93 | M11: 18004.7 | N11: 17858.85 | O11: 14881850 | P11: 2.57%
A12: 2 | B12: Index | C12: BANKNIFTY | D12: 2022-08-25 | E12: 39713.45 | F12: 39609.17 | G12: 39434.38 | H12: 39155.32 | I12: 38980.53 | J12: 39888.23 | K12: 40063.02 | L12: 40342.08 | M12: 39783.95 | N12: 39330.1 | O12: 3334175 | P12: -3.70%
A13: 3 | B13: Index | C13: FINNIFTY | D13: 2022-08-30 | E13: 18403.20 | F13: 18379.92 | G13: 18334.28 | H13: 18265.37 | I13: 18219.73 | J13: 18448.83 | K13: 18494.47 | L13: 18563.38 | M13: 18425.55 | N13: 18311 | O13: 8920 | P13: 1.83%
A14: 4 | B14: Index | C14: MIDCPNIFTY | D14: 2022-08-30 | E14: 7294.90 | F14: 2431.63 | G14: 4863.27 | H14: 2431.63 | I14: 4863.27 | J14: 4863.27 | K14: 2431.63 | L14: 4863.27 | M14: 0 | N14: 0 | O14: 225 | P14: 0.00%
A15: 5 | B15: Chemical | C15: AARTIIND | D15: 2022-08-25 | E15: 833.90 | F15: 832.32 | G15: 827.23 | H15: 820.57 | I15: 815.48 | J15: 838.98 | K15: 844.07 | L15: 850.73 | M15: 837.4 | N15: 825.65 | O15: 3298850 | P15: 0.08%
A16: 6 | B16: Capital_Goods | C16: ABB | D16: 2022-08-25 | E16: 2892.95 | F16: 2883.05 | G16: 2824.60 | H16: 2756.25 | I16: 2697.80 | J16: 2951.40 | K16: 3009.85 | L16: 3078.20 | M16: 2941.5 | N16: 2814.7 | O16: 936750 | P16: -0.79%
A17: 7 | B17: Pharma | C17: ABBOTINDIA | D17: 2022-08-25 | E17: 19041.95 | F17: 19121.50 | G17: 18870.50 | H17: 18699.05 | I17: 18448.05 | J17: 19292.95 | K17: 19543.95 | L17: 19715.40 | M17: 19372.5 | N17: 18950.05 | O17: 44720 | P17: 4.98%
A18: 8 | B18: Others | C18: ABCAPITAL | D18: 2022-08-25 | E18: 112.90 | F18: 112.95 | G18: 112.00 | H18: 111.10 | I18: 110.15 | J18: 113.85 | K18: 114.80 | L18: 115.70 | M18: 113.9 | N18: 112.05 | O18: 21254400 | P18: 0.23%
A19: 9 | B19: Textile | C19: ABFRL | D19: 2022-08-25 | E19: 290.50 | F19: 291.97 | G19: 287.93 | H19: 285.37 | I19: 281.33 | J19: 294.53 | K19: 298.57 | L19: 301.13 | M19: 296 | N19: 289.4 | O19: 13741000 | P19: 3.20%
A20: 10 | B20: Cement | C20: ACC | D20: 2022-08-25 | E20: 2330.40 | F20: 2315.93 | G20: 2290.72 | H20: 2251.03 | I20: 2225.82 | J20: 2355.62 | K20: 2380.83 | L20: 2420.52 | M20: 2341.15 | N20: 2276.25 | O20: 2535250 | P20: 2.52%
A21: 11 | B21: Others | C21: ADANIENT | D21: 2022-08-25 | E21: 3156.20 | F21: 3116.87 | G21: 3045.18 | H21: 2934.17 | I21: 2862.48 | J21: 3227.88 | K21: 3299.57 | L21: 3410.58 | M21: 3188.55 | N21: 3005.85 | O21: 19602000 | P21: 0.91%
A22: 12 | B22: Others | C22: ADANIPORTS | D22: 2022-08-25 | E22: 833.95 | F22: 831.35 | G22: 824.50 | H22: 815.05 | I22: 808.20 | J22: 840.80 | K22: 847.65 | L22: 857.10 | M22: 838.2 | N22: 821.9 | O22: 74957500 | P22: -0.17%
A23: 13 | B23: Pharma | C23: ALKEM | D23: 2022-08-25 | E23: 2937.10 | F23: 2933.42 | G23: 2918.83 | H23: 2900.57 | I23: 2885.98 | J23: 2951.68 | K23: 2966.27 | L23: 2984.53 | M23: 2948 | N23: 2915.15 | O23: 488000 | P23: 4.10%
A24: 14 | B24: Automobile | C24: AMARAJABAT | D24: 2022-08-25 | E24: 524.40 | F24: 523.35 | G24: 520.95 | H24: 517.50 | I24: 515.10 | J24: 526.80 | K24: 529.20 | L24: 532.65 | M24: 525.75 | N24: 519.9 | O24: 6315000 | P24: -0.71%
A25: 15 | B25: Cement | C25: AMBUJACEM | D25: 2022-08-25 | E25: 410.80 | F25: 407.97 | G25: 400.08 | H25: 389.37 | I25: 381.48 | J25: 418.68 | K25: 426.57 | L25: 437.28 | M25: 415.85 | N25: 397.25 | O25: 62344800 | P25: 5.71%
A26: 16 | B26: Others | C26: APOLLOHOSP | D26: 2022-08-25 | E26: 4283.35 | F26: 4297.13 | G26: 4246.97 | H26: 4210.58 | I26: 4160.42 | J26: 4333.52 | K26: 4383.68 | L26: 4420.07 | M26: 4347.3 | N26: 4260.75 | O26: 1953375 | P26: -1.44%
A27: 17 | B27: Automobile | C27: APOLLOTYRE | D27: 2022-08-25 | E27: 266.95 | F27: 264.43 | G27: 261.27 | H27: 255.58 | I27: 252.42 | J27: 270.12 | K27: 273.28 | L27: 278.97 | M27: 267.6 | N27: 258.75 | O27: 16341500 | P27: -0.87%
A28: 18 | B28: Automobile | C28: ASHOKLEY | D28: 2022-08-25 | E28: 147.95 | F28: 147.55 | G28: 146.80 | H28: 145.65 | I28: 144.90 | J28: 148.70 | K28: 149.45 | L28: 150.60 | M28: 148.3 | N28: 146.4 | O28: 49910000 | P28: 6.01%
A29: 19 | B29: FMCG | C29: ASIANPAINT | D29: 2022-08-25 | E29: 3541.35 | F29: 3536.22 | G29: 3526.13 | H29: 3510.92 | I29: 3500.83 | J29: 3551.43 | K29: 3561.52 | L29: 3576.73 | M29: 3546.3 | N29: 3521 | O29: 6062400 | P29: 1.56%
A30: 20 | B30: Others | C30: ASTRAL | D30: 2022-08-25 | E30: 2043.85 | F30: 2034.98 | G30: 2011.07 | H30: 1978.28 | I30: 1954.37 | J30: 2067.77 | K30: 2091.68 | L30: 2124.47 | M30: 2058.9 | N30: 2002.2 | O30: 686675 | P30: 3.74%
A31: 21 | B31: Others | C31: ATUL | D31: 2022-08-25 | E31: 9352.15 | F31: 9390.27 | G31: 9286.13 | H31: 9220.12 | I31: 9115.98 | J31: 9456.28 | K31: 9560.42 | L31: 9626.43 | M31: 9494.4 | N31: 9324.25 | O31: 111525 | P31: 0.68%
A32: 22 | B32: Banking | C32: AUBANK | D32: 2022-08-25 | E32: 646.50 | F32: 644.87 | G32: 641.88 | H32: 637.27 | I32: 634.28 | J32: 649.48 | K32: 652.47 | L32: 657.08 | M32: 647.85 | N32: 640.25 | O32: 7234000 | P32: 1.42%
A33: 23 | B33: Pharma | C33: AUROPHARMA | D33: 2022-08-25 | E33: 583.45 | F33: 579.13 | G33: 571.07 | H33: 558.68 | I33: 550.62 | J33: 591.52 | K33: 599.58 | L33: 611.97 | M33: 587.2 | N33: 566.75 | O33: 13368000 | P33: -2.68%
A34: 24 | B34: Banking | C34: AXISBANK | D34: 2022-08-25 | E34: 766.45 | F34: 768.68 | G34: 760.67 | H34: 754.88 | I34: 746.87 | J34: 774.47 | K34: 782.48 | L34: 788.27 | M34: 776.7 | N34: 762.9 | O34: 45484800 | P34: -3.78%
A35: 25 | B35: Automobile | C35: BAJAJ-AUTO | D35: 2022-08-25 | E35: 4058.05 | F35: 4059.57 | G35: 4035.18 | H35: 4012.32 | I35: 3987.93 | J35: 4082.43 | K35: 4106.82 | L35: 4129.68 | M35: 4083.95 | N35: 4036.7 | O35: 1882750 | P35: 0.20%
A36: 26 | B36: Finance | C36: BAJAJFINSV | D36: 2022-08-25 | E36: 16833.45 | F36: 16834.17 | G36: 16659.68 | H36: 16485.92 | I36: 16311.43 | J36: 17007.93 | K36: 17182.42 | L36: 17356.18 | M36: 17008.65 | N36: 16660.4 | O36: 892400 | P36: 3.80%
A37: 27 | B37: Finance | C37: BAJFINANCE | D37: 2022-08-25 | E37: 7514.45 | F37: 7531.73 | G37: 7454.72 | H37: 7394.98 | I37: 7317.97 | J37: 7591.47 | K37: 7668.48 | L37: 7728.22 | M37: 7608.75 | N37: 7472 | O37: 4532750 | P37: -0.26%
A38: 28 | B38: Automobile | C38: BALKRISIND | D38: 2022-08-25 | E38: 2217.95 | F38: 2218.98 | G38: 2200.97 | H38: 2183.98 | I38: 2165.97 | J38: 2235.97 | K38: 2253.98 | L38: 2270.97 | M38: 2237 | N38: 2202 | O38: 1991100 | P38: -1.50%
A39: 29 | B39: Others | C39: BALRAMCHIN | D39: 2022-08-25 | E39: 339.30 | F39: 340.07 | G39: 337.28 | H39: 335.27 | I39: 332.48 | J39: 342.08 | K39: 344.87 | L39: 346.88 | M39: 342.85 | N39: 338.05 | O39: 8099200 | P39: -1.36%
A40: 30 | B40: Banking | C40: BANDHANBNK | D40: 2022-08-25 | E40: 289.35 | F40: 288.07 | G40: 285.43 | H40: 281.52 | I40: 278.88 | J40: 291.98 | K40: 294.62 | L40: 298.53 | M40: 290.7 | N40: 284.15 | O40: 31280400 | P40: 0.71%
A41: 31 | B41: Banking | C41: BANKBARODA | D41: 2022-08-25 | E41: 124.30 | F41: 125.00 | G41: 122.60 | H41: 120.90 | I41: 118.50 | J41: 126.70 | K41: 129.10 | L41: 130.80 | M41: 127.4 | N41: 123.3 | O41: 97303050 | P41: -0.48%
A42: 32 | B42: FMCG | C42: BATAINDIA | D42: 2022-08-25 | E42: 1929.05 | F42: 1936.37 | G42: 1913.73 | H42: 1898.42 | I42: 1875.78 | J42: 1951.68 | K42: 1974.32 | L42: 1989.63 | M42: 1959 | N42: 1921.05 | O42: 2132350 | P42: -2.18%
A43: 33 | B43: Capital_Goods | C43: BEL | D43: 2022-08-25 | E43: 289.85 | F43: 290.93 | G43: 286.57 | H43: 283.28 | I43: 278.92 | J43: 294.22 | K43: 298.58 | L43: 301.87 | M43: 295.3 | N43: 287.65 | O43: 24779800 | P43: -3.56%
A44: 34 | B44: FMCG | C44: BERGEPAINT | D44: 2022-08-25 | E44: 707.50 | F44: 706.13 | G44: 701.87 | H44: 696.23 | I44: 691.97 | J44: 711.77 | K44: 716.03 | L44: 721.67 | M44: 710.4 | N44: 700.5 | O44: 6987200 | P44: -3.35%
A45: 35 | B45: Automobile | C45: BHARATFORG | D45: 2022-08-25 | E45: 752.60 | F45: 757.83 | G45: 744.77 | H45: 736.93 | I45: 723.87 | J45: 765.67 | K45: 778.73 | L45: 786.57 | M45: 770.9 | N45: 750 | O45: 8079000 | P45: 3.50%
A46: 36 | B46: Telecom | C46: BHARTIARTL | D46: 2022-08-25 | E46: 732.80 | F46: 729.88 | G46: 724.47 | H46: 716.13 | I46: 710.72 | J46: 738.22 | K46: 743.63 | L46: 751.97 | M46: 735.3 | N46: 721.55 | O46: 45286500 | P46: -1.05%
A47: 37 | B47: Capital_Goods | C47: BHEL | D47: 2022-08-25 | E47: 56.40 | F47: 55.55 | G47: 54.30 | H47: 52.20 | I47: 50.95 | J47: 57.65 | K47: 58.90 | L47: 61.00 | M47: 56.8 | N47: 53.45 | O47: 100485000 | P47: 4.99%
A48: 38 | B48: Pharma | C48: BIOCON | D48: 2022-08-25 | E48: 315.25 | F48: 315.80 | G48: 312.70 | H48: 310.15 | I48: 307.05 | J48: 318.35 | K48: 321.45 | L48: 324.00 | M48: 318.9 | N48: 313.25 | O48: 17300600 | P48: 3.03%
A49: 39 | B49: Automobile | C49: BOSCHLTD | D49: 2022-08-25 | E49: 17680.95 | F49: 17745.97 | G49: 17554.98 | H49: 17429.02 | I49: 17238.03 | J49: 17871.93 | K49: 18062.92 | L49: 18188.88 | M49: 17936.95 | N49: 17620 | O49: 177850 | P49: 4.25%
A50: 40 | B50: Oil_Gas | C50: BPCL | D50: 2022-08-25 | E50: 342.15 | F50: 343.48 | G50: 339.37 | H50: 336.58 | I50: 332.47 | J50: 346.27 | K50: 350.38 | L50: 353.17 | M50: 347.6 | N50: 340.7 | O50: 14850000 | P50: -0.49%
A51: 41 | B51: FMCG | C51: BRITANNIA | D51: 2022-08-25 | E51: 3698.15 | F51: 3704.55 | G51: 3678.40 | H51: 3658.65 | I51: 3632.50 | J51: 3724.30 | K51: 3750.45 | L51: 3770.20 | M51: 3730.7 | N51: 3684.8 | O51: 1887800 | P51: -0.45%
A52: 42 | B52: Technology | C52: BSOFT | D52: 2022-08-25 | E52: 335.80 | F52: 336.10 | G52: 332.75 | H52: 329.70 | I52: 326.35 | J52: 339.15 | K52: 342.50 | L52: 345.55 | M52: 339.45 | N52: 333.05 | O52: 7871500 | P52: 5.16%
A53: 43 | B53: Banking | C53: CANBK | D53: 2022-08-25 | E53: 240.20 | F53: 240.23 | G53: 237.87 | H53: 235.53 | I53: 233.17 | J53: 242.57 | K53: 244.93 | L53: 247.27 | M53: 242.6 | N53: 237.9 | O53: 42986700 | P53: 5.96%
A54: 44 | B54: Finance | C54: CANFINHOME | D54: 2022-08-25 | E54: 624.70 | F54: 625.13 | G54: 619.02 | H54: 613.33 | I54: 607.22 | J54: 630.82 | K54: 636.93 | L54: 642.62 | M54: 631.25 | N54: 619.45 | O54: 2726100 | P54: -3.82%
A55: 45 | B55: Others | C55: CHAMBLFERT | D55: 2022-08-25 | E55: 340.15 | F55: 340.07 | G55: 337.63 | H55: 335.12 | I55: 332.68 | J55: 342.58 | K55: 345.02 | L55: 347.53 | M55: 342.5 | N55: 337.55 | O55: 8320500 | P55: -2.32%
A56: 46 | B56: Finance | C56: CHOLAFIN | D56: 2022-08-25 | E56: 784.60 | F56: 787.30 | G56: 777.50 | H56: 770.40 | I56: 760.60 | J56: 794.40 | K56: 804.20 | L56: 811.30 | M56: 797.1 | N56: 780.2 | O56: 7526250 | P56: -0.73%
A57: 47 | B57: Pharma | C57: CIPLA | D57: 2022-08-25 | E57: 1033.55 | F57: 1028.83 | G57: 1014.42 | H57: 995.28 | I57: 980.87 | J57: 1047.97 | K57: 1062.38 | L57: 1081.52 | M57: 1043.25 | N57: 1009.7 | O57: 8287500 | P57: -1.17%
A58: 48 | B58: Others | C58: COALINDIA | D58: 2022-08-25 | E58: 222.40 | F58: 222.08 | G58: 221.17 | H58: 219.93 | I58: 219.02 | J58: 223.32 | K58: 224.23 | L58: 225.47 | M58: 223 | N58: 220.85 | O58: 34662600 | P58: -0.66%
A59: 49 | B59: Technology | C59: COFORGE | D59: 2022-08-25 | E59: 3886.35 | F59: 3868.65 | G59: 3835.30 | H59: 3784.25 | I59: 3750.90 | J59: 3919.70 | K59: 3953.05 | L59: 4004.10 | M59: 3902 | N59: 3817.6 | O59: 811200 | P59: 2.87%
A60: 50 | B60: FMCG | C60: COLPAL | D60: 2022-08-25 | E60: 1570.15 | F60: 1569.75 | G60: 1561.50 | H60: 1552.85 | I60: 1544.60 | J60: 1578.40 | K60: 1586.65 | L60: 1595.30 | M60: 1578 | N60: 1561.1 | O60: 2935450 | P60: -1.53%
A61: 51 | B61: Others | C61: CONCOR | D61: 2022-08-25 | E61: 706.20 | F61: 707.55 | G61: 701.10 | H61: 696.00 | I61: 689.55 | J61: 712.65 | K61: 719.10 | L61: 724.20 | M61: 714 | N61: 702.45 | O61: 4987000 | P61: -0.32%
A62: 52 | B62: Others | C62: COROMANDEL | D62: 2022-08-25 | E62: 1053.75 | F62: 1059.93 | G62: 1045.82 | H62: 1037.88 | I62: 1023.77 | J62: 1067.87 | K62: 1081.98 | L62: 1089.92 | M62: 1074.05 | N62: 1052 | O62: 1204700 | P62: -0.29%
A63: 53 | B63: Capital_Goods | C63: CROMPTON | D63: 2022-08-25 | E63: 397.50 | F63: 397.12 | G63: 392.73 | H63: 387.97 | I63: 383.58 | J63: 401.88 | K63: 406.27 | L63: 411.03 | M63: 401.5 | N63: 392.35 | O63: 3859500 | P63: 4.47%
A64: 54 | B64: Banking | C64: CUB | D64: 2022-08-25 | E64: 179.60 | F64: 178.90 | G64: 176.95 | H64: 174.30 | I64: 172.35 | J64: 181.55 | K64: 183.50 | L64: 186.15 | M64: 180.85 | N64: 176.25 | O64: 5695000 | P64: -5.40%
A65: 55 | B65: Capital_Goods | C65: CUMMINSIND | D65: 2022-08-25 | E65: 1253.25 | F65: 1250.68 | G65: 1229.57 | H65: 1205.88 | I65: 1184.77 | J65: 1274.37 | K65: 1295.48 | L65: 1319.17 | M65: 1271.8 | N65: 1227 | O65: 3162000 | P65: 1.11%
A66: 56 | B66: FMCG | C66: DABUR | D66: 2022-08-25 | E66: 595.35 | F66: 592.40 | G66: 587.70 | H66: 580.05 | I66: 575.35 | J66: 600.05 | K66: 604.75 | L66: 612.40 | M66: 597.1 | N66: 584.75 | O66: 11100000 | P66: 3.70%
A67: 57 | B67: Cement | C67: DALBHARAT | D67: 2022-08-25 | E67: 1672.65 | F67: 1649.08 | G67: 1619.17 | H67: 1565.68 | I67: 1535.77 | J67: 1702.57 | K67: 1732.48 | L67: 1785.97 | M67: 1679 | N67: 1595.6 | O67: 1407500 | P67: 4.49%
A68: 58 | B68: Chemical | C68: DEEPAKNTR | D68: 2022-08-25 | E68: 2112.05 | F68: 2105.30 | G68: 2082.05 | H68: 2052.05 | I68: 2028.80 | J68: 2135.30 | K68: 2158.55 | L68: 2188.55 | M68: 2128.55 | N68: 2075.3 | O68: 2415500 | P68: -1.58%
A69: 59 | B69: Others | C69: DELTACORP | D69: 2022-08-25 | E69: 202.10 | F69: 201.42 | G69: 198.83 | H69: 195.57 | I69: 192.98 | J69: 204.68 | K69: 207.27 | L69: 210.53 | M69: 204 | N69: 198.15 | O69: 17105100 | P69: -4.82%
A70: 60 | B70: Pharma | C70: DIVISLAB | D70: 2022-08-25 | E70: 3754.05 | F70: 3744.02 | G70: 3727.08 | H70: 3700.12 | I70: 3683.18 | J70: 3770.98 | K70: 3787.92 | L70: 3814.88 | M70: 3760.95 | N70: 3717.05 | O70: 3157050 | P70: 0.02%
A71: 61 | B71: Others | C71: DIXON | D71: 2022-08-25 | E71: 4081.20 | F71: 4075.55 | G71: 4025.95 | H71: 3970.70 | I71: 3921.10 | J71: 4130.80 | K71: 4180.40 | L71: 4235.65 | M71: 4125.15 | N71: 4020.3 | O71: 804625 | P71: 9.44%
A72: 62 | B72: Realty | C72: DLF | D72: 2022-08-25 | E72: 389.75 | F72: 386.83 | G72: 382.82 | H72: 375.88 | I72: 371.87 | J72: 393.77 | K72: 397.78 | L72: 404.72 | M72: 390.85 | N72: 379.9 | O72: 40324350 | P72: -1.86%
A73: 63 | B73: Pharma | C73: DRREDDY | D73: 2022-08-25 | E73: 4212.80 | F73: 4198.92 | G73: 4142.38 | H73: 4071.97 | I73: 4015.43 | J73: 4269.33 | K73: 4325.87 | L73: 4396.28 | M73: 4255.45 | N73: 4128.5 | O73: 2030875 | P73: 5.87%
A74: 64 | B74: Automobile | C74: EICHERMOT | D74: 2022-08-25 | E74: 3406.85 | F74: 3406.92 | G74: 3374.93 | H74: 3343.02 | I74: 3311.03 | J74: 3438.83 | K74: 3470.82 | L74: 3502.73 | M74: 3438.9 | N74: 3375 | O74: 3173800 | P74: -0.95%
A75: 65 | B75: Automobile | C75: ESCORTS | D75: 2022-08-25 | E75: 1807.70 | F75: 1812.48 | G75: 1791.92 | H75: 1776.13 | I75: 1755.57 | J75: 1828.27 | K75: 1848.83 | L75: 1864.62 | M75: 1833.05 | N75: 1796.7 | O75: 2007500 | P75: -4.25%
A76: 66 | B76: Automobile | C76: EXIDEIND | D76: 2022-08-25 | E76: 164.75 | F76: 164.32 | G76: 163.43 | H76: 162.12 | I76: 161.23 | J76: 165.63 | K76: 166.52 | L76: 167.83 | M76: 165.2 | N76: 163 | O76: 24652800 | P76: 0.26%
A77: 67 | B77: Banking | C77: FEDERALBNK | D77: 2022-08-25 | E77: 111.15 | F77: 111.02 | G77: 109.83 | H77: 108.52 | I77: 107.33 | J77: 112.33 | K77: 113.52 | L77: 114.83 | M77: 112.2 | N77: 109.7 | O77: 100310000 | P77: 0.29%
A78: 68 | B78: Technology | C78: FSL | D78: 2022-08-25 | E78: 111.30 | F78: 111.15 | G78: 109.45 | H78: 107.60 | I78: 105.90 | J78: 113.00 | K78: 114.70 | L78: 116.55 | M78: 112.85 | N78: 109.3 | O78: 19687200 | P78: 7.96%
A79: 69 | B79: Oil_Gas | C79: GAIL | D79: 2022-08-25 | E79: 135.90 | F79: 135.65 | G79: 135.00 | H79: 134.10 | I79: 133.45 | J79: 136.55 | K79: 137.20 | L79: 138.10 | M79: 136.3 | N79: 134.75 | O79: 56626300 | P79: 0.73%
A80: 70 | B80: Pharma | C80: GLENMARK | D80: 2022-08-25 | E80: 400.65 | F80: 401.72 | G80: 397.53 | H80: 394.42 | I80: 390.23 | J80: 404.83 | K80: 409.02 | L80: 412.13 | M80: 405.9 | N80: 398.6 | O80: 8474350 | P80: -1.42%
A81: 71 | B81: Infrastructure | C81: GMRINFRA | D81: 2022-08-25 | E81: 35.60 | F81: 35.52 | G81: 35.13 | H81: 34.67 | I81: 34.28 | J81: 35.98 | K81: 36.37 | L81: 36.83 | M81: 35.9 | N81: 35.05 | O81: 120780000 | P81: 0.43%
A82: 72 | B82: Others | C82: GNFC | D82: 2022-08-25 | E82: 788.15 | F82: 791.80 | G82: 782.70 | H82: 777.25 | I82: 768.15 | J82: 797.25 | K82: 806.35 | L82: 811.80 | M82: 800.9 | N82: 786.35 | O82: 5085600 | P82: 1.64%
A83: 73 | B83: FMCG | C83: GODREJCP | D83: 2022-08-25 | E83: 919.40 | F83: 913.08 | G83: 903.32 | H83: 887.23 | I83: 877.47 | J83: 929.17 | K83: 938.93 | L83: 955.02 | M83: 922.85 | N83: 897 | O83: 7576000 | P83: 2.06%
A84: 74 | B84: Realty | C84: GODREJPROP | D84: 2022-08-25 | E84: 1413.15 | F84: 1407.45 | G84: 1391.70 | H84: 1370.25 | I84: 1354.50 | J84: 1428.90 | K84: 1444.65 | L84: 1466.10 | M84: 1423.2 | N84: 1386 | O84: 4361500 | P84: 2.86%
A85: 75 | B85: Pharma | C85: GRANULES | D85: 2022-08-25 | E85: 325.30 | F85: 326.55 | G85: 322.70 | H85: 320.10 | I85: 316.25 | J85: 329.15 | K85: 333.00 | L85: 335.60 | M85: 330.4 | N85: 323.95 | O85: 11302000 | P85: -0.93%
A86: 76 | B86: Cement | C86: GRASIM | D86: 2022-08-25 | E86: 1614.35 | F86: 1609.73 | G86: 1593.87 | H86: 1573.38 | I86: 1557.52 | J86: 1630.22 | K86: 1646.08 | L86: 1666.57 | M86: 1625.6 | N86: 1589.25 | O86: 10270925 | P86: -3.12%
A87: 77 | B87: Oil_Gas | C87: GSPL | D87: 2022-08-25 | E87: 248.85 | F87: 247.82 | G87: 245.63 | H87: 242.42 | I87: 240.23 | J87: 251.03 | K87: 253.22 | L87: 256.43 | M87: 250 | N87: 244.6 | O87: 4322500 | P87: 3.04%
A88: 78 | B88: Oil_Gas | C88: GUJGASLTD | D88: 2022-08-25 | E88: 483.60 | F88: 484.13 | G88: 478.57 | H88: 473.53 | I88: 467.97 | J88: 489.17 | K88: 494.73 | L88: 499.77 | M88: 489.7 | N88: 479.1 | O88: 6306250 | P88: 1.78%
A89: 79 | B89: Others | C89: HAL | D89: 2022-08-25 | E89: 2312.85 | F89: 2310.95 | G89: 2278.90 | H89: 2244.95 | I89: 2212.90 | J89: 2344.90 | K89: 2376.95 | L89: 2410.90 | M89: 2343 | N89: 2277 | O89: 2671875 | P89: 0.93%
A90: 80 | B90: Capital_Goods | C90: HAVELLS | D90: 2022-08-25 | E90: 1358.95 | F90: 1355.83 | G90: 1347.67 | H90: 1336.38 | I90: 1328.22 | J90: 1367.12 | K90: 1375.28 | L90: 1386.57 | M90: 1364 | N90: 1344.55 | O90: 5028000 | P90: -1.01%
A91: 81 | B91: Technology | C91: HCLTECH | D91: 2022-08-25 | E91: 976.45 | F91: 977.95 | G91: 969.60 | H91: 962.75 | I91: 954.40 | J91: 984.80 | K91: 993.15 | L91: 1000.00 | M91: 986.3 | N91: 971.1 | O91: 22171100 | P91: 2.77%
A92: 82 | B92: Finance | C92: HDFC | D92: 2022-08-25 | E92: 2503.90 | F92: 2503.62 | G92: 2487.28 | H92: 2470.67 | I92: 2454.33 | J92: 2520.23 | K92: 2536.57 | L92: 2553.18 | M92: 2519.95 | N92: 2487 | O92: 20052900 | P92: -0.79%
A93: 83 | B93: Finance | C93: HDFCAMC | D93: 2022-08-25 | E93: 2186.15 | F93: 2181.05 | G93: 2166.10 | H93: 2146.05 | I93: 2131.10 | J93: 2201.10 | K93: 2216.05 | L93: 2236.10 | M93: 2196 | N93: 2161 | O93: 2631600 | P93: -2.92%
A94: 84 | B94: Banking | C94: HDFCBANK | D94: 2022-08-25 | E94: 1513.75 | F94: 1510.55 | G94: 1505.85 | H94: 1497.95 | I94: 1493.25 | J94: 1518.45 | K94: 1523.15 | L94: 1531.05 | M94: 1515.25 | N94: 1502.65 | O94: 60148550 | P94: -2.01%
A95: 85 | B95: Finance | C95: HDFCLIFE | D95: 2022-08-25 | E95: 587.50 | F95: 590.05 | G95: 580.85 | H95: 574.20 | I95: 565.00 | J95: 596.70 | K95: 605.90 | L95: 612.55 | M95: 599.25 | N95: 583.4 | O95: 26275700 | P95: -5.04%
A96: 86 | B96: Automobile | C96: HEROMOTOCO | D96: 2022-08-25 | E96: 2917.90 | F96: 2926.17 | G96: 2903.33 | H96: 2888.77 | I96: 2865.93 | J96: 2940.73 | K96: 2963.57 | L96: 2978.13 | M96: 2949 | N96: 2911.6 | O96: 3886500 | P96: 5.39%
A97: 87 | B97: Metals | C97: HINDALCO | D97: 2022-08-25 | E97: 438.95 | F97: 438.38 | G97: 434.87 | H97: 430.78 | I97: 427.27 | J97: 442.47 | K97: 445.98 | L97: 450.07 | M97: 441.9 | N97: 434.3 | O97: 27718875 | P97: -2.24%
A98: 88 | B98: Metals | C98: HINDCOPPER | D98: 2022-08-25 | E98: 116.00 | F98: 115.92 | G98: 114.93 | H98: 113.87 | I98: 112.88 | J98: 116.98 | K98: 117.97 | L98: 119.03 | M98: 116.9 | N98: 114.85 | O98: 16172300 | P98: -0.16%
A99: 89 | B99: Oil_Gas | C99: HINDPETRO | D99: 2022-08-25 | E99: 263.50 | F99: 263.57 | G99: 260.43 | H99: 257.37 | I99: 254.23 | J99: 266.63 | K99: 269.77 | L99: 272.83 | M99: 266.7 | N99: 260.5 | O99: 18964800 | P99: -3.52%
A100: 90 | B100: FMCG | C100: HINDUNILVR | D100: 2022-08-25 | E100: 2685.65 | F100: 2693.73 | G100: 2663.12 | H100: 2640.58 | I100: 2609.97 | J100: 2716.27 | K100: 2746.88 | L100: 2769.42 | M100: 2724.35 | N100: 2671.2 | O100: 10247100 | P100: -1.08%
A101: 91 | B101: Others | C101: HONAUT | D101: 2022-08-25 | E101: 43133.00 | F101: 43381.60 | G101: 42763.45 | H101: 42393.90 | I101: 41775.75 | J101: 43751.15 | K101: 44369.30 | L101: 44738.85 | M101: 43999.75 | N101: 43012.05 | O101: 11055 | P101: 0.00%
A102: 92 | B102: Finance | C102: IBULHSGFIN | D102: 2022-08-25 | E102: 133.55 | F102: 133.78 | G102: 131.57 | H102: 129.58 | I102: 127.37 | J102: 135.77 | K102: 137.98 | L102: 139.97 | M102: 136 | N102: 131.8 | O102: 32988000 | P102: 1.17%
A103: 93 | B103: Banking | C103: ICICIBANK | D103: 2022-08-25 | E103: 887.75 | F103: 885.17 | G103: 880.53 | H103: 873.32 | I103: 868.68 | J103: 892.38 | K103: 897.02 | L103: 904.23 | M103: 889.8 | N103: 877.95 | O103: 85181250 | P103: 2.29%
A104: 94 | B104: Finance | C104: ICICIGI | D104: 2022-08-25 | E104: 1329.90 | F104: 1340.20 | G104: 1314.70 | H104: 1299.50 | I104: 1274.00 | J104: 1355.40 | K104: 1380.90 | L104: 1396.10 | M104: 1365.7 | N104: 1325 | O104: 3289500 | P104: -3.79%
A105: 95 | B105: Finance | C105: ICICIPRULI | D105: 2022-08-25 | E105: 594.55 | F105: 592.52 | G105: 579.13 | H105: 563.72 | I105: 550.33 | J105: 607.93 | K105: 621.32 | L105: 636.73 | M105: 605.9 | N105: 577.1 | O105: 9021000 | P105: -2.42%
A106: 96 | B106: Telecom | C106: IDEA | D106: 2022-08-25 | E106: 8.95 | F106: 9.00 | G106: 8.85 | H106: 8.75 | I106: 8.60 | J106: 9.10 | K106: 9.25 | L106: 9.35 | M106: 9.15 | N106: 8.9 | O106: 614950000 | P106: 0.70%
A107: 97 | B107: Finance | C107: IDFC | D107: 2022-08-25 | E107: 63.65 | F107: 63.68 | G107: 63.02 | H107: 62.38 | I107: 61.72 | J107: 64.32 | K107: 64.98 | L107: 65.62 | M107: 64.35 | N107: 63.05 | O107: 122240000 | P107: 0.89%
A108: 98 | B108: Banking | C108: IDFCFIRSTB | D108: 2022-08-25 | E108: 45.55 | F108: 45.58 | G108: 45.07 | H108: 44.58 | I108: 44.07 | J108: 46.07 | K108: 46.58 | L108: 47.07 | M108: 46.1 | N108: 45.1 | O108: 195405000 | P108: -0.66%
A109: 99 | B109: Others | C109: IEX | D109: 2022-08-25 | E109: 166.90 | F109: 168.05 | G109: 161.30 | H109: 155.70 | I109: 148.95 | J109: 173.65 | K109: 180.40 | L109: 186.00 | M109: 174.8 | N109: 162.45 | O109: 58541250 | P109: 1.45%
A110: 100 | B110: Oil_Gas | C110: IGL | D110: 2022-08-25 | E110: 428.75 | F110: 430.83 | G110: 424.47 | H110: 420.18 | I110: 413.82 | J110: 435.12 | K110: 441.48 | L110: 445.77 | M110: 437.2 | N110: 426.55 | O110: 15856500 | P110: -2.39%
A111: 101 | B111: Infrastructure | C111: INDHOTEL | D111: 2022-08-25 | E111: 276.30 | F111: 277.55 | G111: 273.70 | H111: 271.10 | I111: 267.25 | J111: 280.15 | K111: 284.00 | L111: 286.60 | M111: 281.4 | N111: 274.95 | O111: 26243550 | P111: 2.64%
A112: 102 | B112: Cement | C112: INDIACEM | D112: 2022-08-25 | E112: 204.55 | F112: 200.82 | G112: 196.18 | H112: 187.82 | I112: 183.18 | J112: 209.18 | K112: 213.82 | L112: 222.18 | M112: 205.45 | N112: 192.45 | O112: 13377700 | P112: -17.31%
A113: 103 | B113: Others | C113: INDIAMART | D113: 2022-08-25 | E113: 4454.75 | F113: 4500.23 | G113: 4350.67 | H113: 4246.58 | I113: 4097.02 | J113: 4604.32 | K113: 4753.88 | L113: 4857.97 | M113: 4649.8 | N113: 4396.15 | O113: 310800 | P113: 2.22%
A114: 104 | B114: Others | C114: INDIGO | D114: 2022-08-25 | E114: 2029.55 | F114: 2028.28 | G114: 2006.97 | H114: 1984.38 | I114: 1963.07 | J114: 2050.87 | K114: 2072.18 | L114: 2094.77 | M114: 2049.6 | N114: 2005.7 | O114: 2443800 | P114: -1.67%
A115: 105 | B115: Banking | C115: INDUSINDBK | D115: 2022-08-25 | E115: 1105.90 | F115: 1099.67 | G115: 1091.08 | H115: 1076.27 | I115: 1067.68 | J115: 1114.48 | K115: 1123.07 | L115: 1137.88 | M115: 1108.25 | N115: 1084.85 | O115: 25341300 | P115: -2.15%
A116: 106 | B116: Telecom | C116: INDUSTOWER | D116: 2022-08-25 | E116: 199.75 | F116: 199.23 | G116: 197.77 | H116: 195.78 | I116: 194.32 | J116: 201.22 | K116: 202.68 | L116: 204.67 | M116: 200.7 | N116: 197.25 | O116: 23024400 | P116: 1.07%
A117: 107 | B117: Technology | C117: INFY | D117: 2022-08-25 | E117: 1587.30 | F117: 1589.20 | G117: 1575.95 | H117: 1564.60 | I117: 1551.35 | J117: 1600.55 | K117: 1613.80 | L117: 1625.15 | M117: 1602.45 | N117: 1577.85 | O117: 37977300 | P117: 2.42%
A118: 108 | B118: Technology | C118: INTELLECT | D118: 2022-08-25 | E118: 627.55 | F118: 629.78 | G118: 621.72 | H118: 615.88 | I118: 607.82 | J118: 635.62 | K118: 643.68 | L118: 649.52 | M118: 637.85 | N118: 623.95 | O118: 1867500 | P118: -6.67%
A119: 109 | B119: Oil_Gas | C119: IOC | D119: 2022-08-25 | E119: 72.95 | F119: 73.12 | G119: 72.48 | H119: 72.02 | I119: 71.38 | J119: 73.58 | K119: 74.22 | L119: 74.68 | M119: 73.75 | N119: 72.65 | O119: 93726750 | P119: 3.76%
A120: 110 | B120: Pharma | C120: IPCALAB | D120: 2022-08-25 | E120: 923.00 | F120: 920.68 | G120: 916.47 | H120: 909.93 | I120: 905.72 | J120: 927.22 | K120: 931.43 | L120: 937.97 | M120: 924.9 | N120: 914.15 | O120: 1767350 | P120: -5.03%
A121: 111 | B121: Others | C121: IRCTC | D121: 2022-08-25 | E121: 716.45 | F121: 704.48 | G121: 683.97 | H121: 651.48 | I121: 630.97 | J121: 736.97 | K121: 757.48 | L121: 789.97 | M121: 725 | N121: 672 | O121: 16250500 | P121: 2.36%
A122: 112 | B122: FMCG | C122: ITC | D122: 2022-08-25 | E122: 315.85 | F122: 315.05 | G122: 313.75 | H122: 311.65 | I122: 310.35 | J122: 317.15 | K122: 318.45 | L122: 320.55 | M122: 316.35 | N122: 312.95 | O122: 76028800 | P122: 0.51%
A123: 113 | B123: Metals | C123: JINDALSTEL | D123: 2022-08-25 | E123: 419.35 | F123: 415.83 | G123: 408.62 | H123: 397.88 | I123: 390.67 | J123: 426.57 | K123: 433.78 | L123: 444.52 | M123: 423.05 | N123: 405.1 | O123: 33036250 | P123: 0.08%
A124: 114 | B124: Cement | C124: JKCEMENT | D124: 2022-08-25 | E124: 2743.35 | F124: 2712.05 | G124: 2676.30 | H124: 2609.25 | I124: 2573.50 | J124: 2779.10 | K124: 2814.85 | L124: 2881.90 | M124: 2747.8 | N124: 2645 | O124: 409750 | P124: -3.53%
A125: 115 | B125: Metals | C125: JSWSTEEL | D125: 2022-08-25 | E125: 675.75 | F125: 674.93 | G125: 670.92 | H125: 666.08 | I125: 662.07 | J125: 679.77 | K125: 683.78 | L125: 688.62 | M125: 678.95 | N125: 670.1 | O125: 38232000 | P125: -0.92%
A126: 116 | B126: Others | C126: JUBLFOOD | D126: 2022-08-25 | E126: 620.40 | F126: 619.30 | G126: 611.75 | H126: 603.10 | I126: 595.55 | J126: 627.95 | K126: 635.50 | L126: 644.15 | M126: 626.85 | N126: 610.65 | O126: 11866250 | P126: -8.93%
A127: 117 | B127: Banking | C127: KOTAKBANK | D127: 2022-08-25 | E127: 1906.60 | F127: 1885.40 | G127: 1857.00 | H127: 1807.40 | I127: 1779.00 | J127: 1935.00 | K127: 1963.40 | L127: 2013.00 | M127: 1913.8 | N127: 1835.8 | O127: 17722400 | P127: -3.44%
A128: 118 | B128: Finance | C128: L&TFH | D128: 2022-08-25 | E128: 77.75 | F128: 77.80 | G128: 77.10 | H128: 76.45 | I128: 75.75 | J128: 78.45 | K128: 79.15 | L128: 79.80 | M128: 78.5 | N128: 77.15 | O128: 52508816 | P128: -1.52%
A129: 119 | B129: Others | C129: LALPATHLAB | D129: 2022-08-25 | E129: 2446.55 | F129: 2437.10 | G129: 2418.30 | H129: 2390.05 | I129: 2371.25 | J129: 2465.35 | K129: 2484.15 | L129: 2512.40 | M129: 2455.9 | N129: 2408.85 | O129: 1252000 | P129: -0.06%
A130: 120 | B130: Pharma | C130: LAURUSLABS | D130: 2022-08-25 | E130: 591.80 | F130: 596.10 | G130: 585.80 | H130: 579.80 | I130: 569.50 | J130: 602.10 | K130: 612.40 | L130: 618.40 | M130: 606.4 | N130: 590.1 | O130: 5734800 | P130: 0.92%
A131: 121 | B131: Finance | C131: LICHSGFIN | D131: 2022-08-25 | E131: 398.05 | F131: 397.43 | G131: 395.27 | H131: 392.48 | I131: 390.32 | J131: 400.22 | K131: 402.38 | L131: 405.17 | M131: 399.6 | N131: 394.65 | O131: 13960000 | P131: -0.92%
A132: 122 | B132: Capital_Goods | C132: LT | D132: 2022-08-25 | E132: 1895.00 | F132: 1883.17 | G132: 1868.33 | H132: 1841.67 | I132: 1826.83 | J132: 1909.83 | K132: 1924.67 | L132: 1951.33 | M132: 1898 | N132: 1856.5 | O132: 9389100 | P132: 0.98%
A133: 123 | B133: Technology | C133: LTI | D133: 2022-08-25 | E133: 4933.15 | F133: 4912.52 | G133: 4880.58 | H133: 4828.02 | I133: 4796.08 | J133: 4965.08 | K133: 4997.02 | L133: 5049.58 | M133: 4944.45 | N133: 4859.95 | O133: 1374600 | P133: -0.15%
A134: 124 | B134: Technology | C134: LTTS | D134: 2022-08-25 | E134: 3894.95 | F134: 3879.78 | G134: 3828.92 | H134: 3762.88 | I134: 3712.02 | J134: 3945.82 | K134: 3996.68 | L134: 4062.72 | M134: 3930.65 | N134: 3813.75 | O134: 966400 | P134: -0.06%
A135: 125 | B135: Pharma | C135: LUPIN | D135: 2022-08-25 | E135: 690.40 | F135: 687.67 | G135: 681.93 | H135: 673.47 | I135: 667.73 | J135: 696.13 | K135: 701.87 | L135: 710.33 | M135: 693.4 | N135: 679.2 | O135: 9411200 | P135: -0.44%
A136: 126 | B136: Automobile | C136: M&M | D136: 2022-08-25 | E136: 1265.40 | F136: 1268.72 | G136: 1255.48 | H136: 1245.57 | I136: 1232.33 | J136: 1278.63 | K136: 1291.87 | L136: 1301.78 | M136: 1281.95 | N136: 1258.8 | O136: 12791800 | P136: -1.72%
A137: 127 | B137: Finance | C137: M&MFIN | D137: 2022-08-25 | E137: 202.65 | F137: 201.50 | G137: 199.80 | H137: 196.95 | I137: 195.25 | J137: 204.35 | K137: 206.05 | L137: 208.90 | M137: 203.2 | N137: 198.65 | O137: 25916000 | P137: 2.10%
A138: 128 | B138: Finance | C138: MANAPPURAM | D138: 2022-08-25 | E138: 106.40 | F138: 106.72 | G138: 105.18 | H138: 103.97 | I138: 102.43 | J138: 107.93 | K138: 109.47 | L138: 110.68 | M138: 108.25 | N138: 105.5 | O138: 30024000 | P138: -2.70%
A139: 129 | B139: FMCG | C139: MARICO | D139: 2022-08-25 | E139: 515.25 | F139: 515.12 | G139: 513.53 | H139: 511.82 | I139: 510.23 | J139: 516.83 | K139: 518.42 | L139: 520.13 | M139: 516.7 | N139: 513.4 | O139: 9570000 | P139: 0.68%
A140: 130 | B140: Automobile | C140: MARUTI | D140: 2022-08-25 | E140: 8976.90 | F140: 8975.25 | G140: 8913.65 | H140: 8850.40 | I140: 8788.80 | J140: 9038.50 | K140: 9100.10 | L140: 9163.35 | M140: 9036.85 | N140: 8912 | O140: 4152900 | P140: -0.76%
A141: 131 | B141: FMCG | C141: MCDOWELL-N | D141: 2022-08-25 | E141: 811.00 | F141: 810.00 | G141: 802.00 | H141: 793.00 | I141: 785.00 | J141: 819.00 | K141: 827.00 | L141: 836.00 | M141: 818 | N141: 801 | O141: 15623125 | P141: 0.02%
A142: 132 | B142: Others | C142: MCX | D142: 2022-08-25 | E142: 1351.85 | F142: 1344.67 | G142: 1330.28 | H142: 1308.72 | I142: 1294.33 | J142: 1366.23 | K142: 1380.62 | L142: 1402.18 | M142: 1359.05 | N142: 1323.1 | O142: 3105600 | P142: 0.83%
A143: 133 | B143: Pharma | C143: METROPOLIS | D143: 2022-08-25 | E143: 1456.75 | F143: 1457.90 | G143: 1442.85 | H143: 1428.95 | I143: 1413.90 | J143: 1471.80 | K143: 1486.85 | L143: 1500.75 | M143: 1472.95 | N143: 1444 | O143: 981000 | P143: 2.06%
A144: 134 | B144: Finance | C144: MFSL | D144: 2022-08-25 | E144: 836.10 | F144: 837.25 | G144: 828.80 | H144: 821.50 | I144: 813.05 | J144: 844.55 | K144: 853.00 | L144: 860.30 | M144: 845.7 | N144: 829.95 | O144: 1979250 | P144: -1.17%
A145: 135 | B145: Oil_Gas | C145: MGL | D145: 2022-08-25 | E145: 893.75 | F145: 901.43 | G145: 879.62 | H145: 865.48 | I145: 843.67 | J145: 915.57 | K145: 937.38 | L145: 951.52 | M145: 923.25 | N145: 887.3 | O145: 3198400 | P145: -2.84%
A146: 136 | B146: Technology | C146: MINDTREE | D146: 2022-08-25 | E146: 3544.50 | F146: 3527.77 | G146: 3503.38 | H146: 3462.27 | I146: 3437.88 | J146: 3568.88 | K146: 3593.27 | L146: 3634.38 | M146: 3552.15 | N146: 3486.65 | O146: 2753600 | P146: -0.25%
A147: 137 | B147: Automobile | C147: MOTHERSON | D147: 2022-08-25 | E147: 131.60 | F147: 131.78 | G147: 130.37 | H147: 129.13 | I147: 127.72 | J147: 133.02 | K147: 134.43 | L147: 135.67 | M147: 133.2 | N147: 130.55 | O147: 44055000 | P147: -0.03%
A148: 138 | B148: Technology | C148: MPHASIS | D148: 2022-08-25 | E148: 2413.00 | F148: 2398.48 | G148: 2374.12 | H148: 2335.23 | I148: 2310.87 | J148: 2437.37 | K148: 2461.73 | L148: 2500.62 | M148: 2422.85 | N148: 2359.6 | O148: 2021950 | P148: -2.92%
A149: 139 | B149: Automobile | C149: MRF | D149: 2022-08-25 | E149: 87611.15 | F149: 87187.98 | G149: 86310.07 | H149: 85008.98 | I149: 84131.07 | J149: 88489.07 | K149: 89366.98 | L149: 90668.07 | M149: 88065.9 | N149: 85886.9 | O149: 86100 | P149: 1.29%
A150: 140 | B150: Finance | C150: MUTHOOTFIN | D150: 2022-08-25 | E150: 1063.40 | F150: 1064.18 | G150: 1051.17 | H150: 1038.93 | I150: 1025.92 | J150: 1076.42 | K150: 1089.43 | L150: 1101.67 | M150: 1077.2 | N150: 1051.95 | O150: 6023250 | P150: -0.61%
A151: 141 | B151: Others | C151: NAM-INDIA | D151: 2022-08-25 | E151: 313.95 | F151: 315.77 | G151: 310.58 | H151: 307.22 | I151: 302.03 | J151: 319.13 | K151: 324.32 | L151: 327.68 | M151: 320.95 | N151: 312.4 | O151: 2316800 | P151: -5.67%
A152: 142 | B152: Metals | C152: NATIONALUM | D152: 2022-08-25 | E152: 81.50 | F152: 81.83 | G152: 80.57 | H152: 79.63 | I152: 78.37 | J152: 82.77 | K152: 84.03 | L152: 84.97 | M152: 83.1 | N152: 80.9 | O152: 61527250 | P152: 1.97%
A153: 143 | B153: Others | C153: NAUKRI | D153: 2022-08-25 | E153: 4474.95 | F153: 4468.92 | G153: 4421.73 | H153: 4368.52 | I153: 4321.33 | J153: 4522.13 | K153: 4569.32 | L153: 4622.53 | M153: 4516.1 | N153: 4415.7 | O153: 1687375 | P153: -0.07%
A154: 144 | B154: Chemical | C154: NAVINFLUOR | D154: 2022-08-25 | E154: 4437.95 | F154: 4437.25 | G154: 4404.70 | H154: 4371.45 | I154: 4338.90 | J154: 4470.50 | K154: 4503.05 | L154: 4536.30 | M154: 4469.8 | N154: 4404 | O154: 624150 | P154: 0.18%
A155: 145 | B155: FMCG | C155: NESTLEIND | D155: 2022-08-25 | E155: 19595.70 | F155: 19629.10 | G155: 19468.60 | H155: 19341.50 | I155: 19181.00 | J155: 19756.20 | K155: 19916.70 | L155: 20043.80 | M155: 19789.6 | N155: 19502 | O155: 394520 | P155: -0.55%
A156: 146 | B156: Metals | C156: NMDC | D156: 2022-08-25 | E156: 117.35 | F156: 116.90 | G156: 116.20 | H156: 115.05 | I156: 114.35 | J156: 118.05 | K156: 118.75 | L156: 119.90 | M156: 117.6 | N156: 115.75 | O156: 75800450 | P156: -1.45%
A157: 147 | B157: Power | C157: NTPC | D157: 2022-08-25 | E157: 161.35 | F157: 161.52 | G157: 160.28 | H157: 159.22 | I157: 157.98 | J157: 162.58 | K157: 163.82 | L157: 164.88 | M157: 162.75 | N157: 160.45 | O157: 74704200 | P157: 4.04%
A158: 148 | B158: Realty | C158: OBEROIRLTY | D158: 2022-08-25 | E158: 983.65 | F158: 977.57 | G158: 958.58 | H158: 933.52 | I158: 914.53 | J158: 1002.63 | K158: 1021.62 | L158: 1046.68 | M158: 996.55 | N158: 952.5 | O158: 4727100 | P158: 5.83%
A159: 149 | B159: Technology | C159: OFSS | D159: 2022-08-25 | E159: 3360.50 | F159: 3361.18 | G159: 3339.27 | H159: 3318.03 | I159: 3296.12 | J159: 3382.42 | K159: 3404.33 | L159: 3425.57 | M159: 3383.1 | N159: 3339.95 | O159: 423000 | P159: 3.93%
A160: 150 | B160: Oil_Gas | C160: ONGC | D160: 2022-08-25 | E160: 136.05 | F160: 136.45 | G160: 134.80 | H160: 133.55 | I160: 131.90 | J160: 137.70 | K160: 139.35 | L160: 140.60 | M160: 138.1 | N160: 135.2 | O160: 57946350 | P160: 1.88%
A161: 151 | B161: Textile | C161: PAGEIND | D161: 2022-08-25 | E161: 50249.45 | F161: 49962.88 | G161: 49575.87 | H161: 48902.28 | I161: 48515.27 | J161: 50636.47 | K161: 51023.48 | L161: 51697.07 | M161: 50349.9 | N161: 49289.3 | O161: 107520 | P161: 0.66%
A162: 152 | B162: Pharma | C162: PEL | D162: 2022-08-25 | E162: 1964.30 | F162: 1968.23 | G162: 1949.27 | H162: 1934.23 | I162: 1915.27 | J162: 1983.27 | K162: 2002.23 | L162: 2017.27 | M162: 1987.2 | N162: 1953.2 | O162: 4272675 | P162: -2.29%
A163: 153 | B163: Technology | C163: PERSISTENT | D163: 2022-08-25 | E163: 3844.70 | F163: 3834.97 | G163: 3771.93 | H163: 3699.17 | I163: 3636.13 | J163: 3907.73 | K163: 3970.77 | L163: 4043.53 | M163: 3898 | N163: 3762.2 | O163: 598350 | P163: 5.11%
A164: 154 | B164: Oil_Gas | C164: PETRONET | D164: 2022-08-25 | E164: 215.75 | F164: 215.37 | G164: 214.53 | H164: 213.32 | I164: 212.48 | J164: 216.58 | K164: 217.42 | L164: 218.63 | M164: 216.2 | N164: 214.15 | O164: 16551000 | P164: 0.90%
A165: 155 | B165: Finance | C165: PFC | D165: 2022-08-25 | E165: 119.00 | F165: 119.08 | G165: 117.72 | H165: 116.43 | I165: 115.07 | J165: 120.37 | K165: 121.73 | L165: 123.02 | M165: 120.45 | N165: 117.8 | O165: 41546200 | P165: -0.74%
A166: 156 | B166: FMCG | C166: PIDILITIND | D166: 2022-08-25 | E166: 2731.05 | F166: 2728.73 | G166: 2712.87 | H166: 2694.68 | I166: 2678.82 | J166: 2746.92 | K166: 2762.78 | L166: 2780.97 | M166: 2744.6 | N166: 2710.55 | O166: 2866250 | P166: 0.06%
A167: 157 | B167: Chemical | C167: PIIND | D167: 2022-08-25 | E167: 3429.05 | F167: 3437.70 | G167: 3398.95 | H167: 3368.85 | I167: 3330.10 | J167: 3467.80 | K167: 3506.55 | L167: 3536.65 | M167: 3476.45 | N167: 3407.6 | O167: 1662250 | P167: -0.49%
A168: 158 | B168: Banking | C168: PNB | D168: 2022-08-25 | E168: 34.30 | F168: 34.43 | G168: 34.02 | H168: 33.73 | I168: 33.32 | J168: 34.72 | K168: 35.13 | L168: 35.42 | M168: 34.85 | N168: 34.15 | O168: 213232000 | P168: 1.66%
A169: 159 | B169: Others | C169: POLYCAB | D169: 2022-08-25 | E169: 2462.45 | F169: 2456.62 | G169: 2439.33 | H169: 2416.22 | I169: 2398.93 | J169: 2479.73 | K169: 2497.02 | L169: 2520.13 | M169: 2473.9 | N169: 2433.5 | O169: 1002600 | P169: 0.45%
A170: 160 | B170: Power | C170: POWERGRID | D170: 2022-08-25 | E170: 229.55 | F170: 228.62 | G170: 227.48 | H170: 225.42 | I170: 224.28 | J170: 230.68 | K170: 231.82 | L170: 233.88 | M170: 229.75 | N170: 226.55 | O170: 41906700 | P170: 0.15%
A171: 161 | B171: Media | C171: PVR | D171: 2022-08-25 | E171: 1924.95 | F171: 1931.52 | G171: 1914.43 | H171: 1903.92 | I171: 1886.83 | J171: 1942.03 | K171: 1959.12 | L171: 1969.63 | M171: 1948.6 | N171: 1921 | O171: 3122504 | P171: -0.07%
A172: 162 | B172: Others | C172: RAIN | D172: 2022-08-25 | E172: 198.65 | F172: 198.78 | G172: 197.12 | H172: 195.58 | I172: 193.92 | J172: 200.32 | K172: 201.98 | L172: 203.52 | M172: 200.45 | N172: 197.25 | O172: 10776500 | P172: 1.15%
A173: 163 | B173: Cement | C173: RAMCOCEM | D173: 2022-08-25 | E173: 776.10 | F173: 768.77 | G173: 759.78 | H173: 743.47 | I173: 734.48 | J173: 785.08 | K173: 794.07 | L173: 810.38 | M173: 777.75 | N173: 752.45 | O173: 6062200 | P173: 5.38%
A174: 164 | B174: Banking | C174: RBLBANK | D174: 2022-08-25 | E174: 103.25 | F174: 102.62 | G174: 100.83 | H174: 98.42 | I174: 96.63 | J174: 105.03 | K174: 106.82 | L174: 109.23 | M174: 104.4 | N174: 100.2 | O174: 53145000 | P174: 7.35%
A175: 165 | B175: Power | C175: RECLTD | D175: 2022-08-25 | E175: 105.55 | F175: 105.52 | G175: 104.68 | H175: 103.82 | I175: 102.98 | J175: 106.38 | K175: 107.22 | L175: 108.08 | M175: 106.35 | N175: 104.65 | O175: 29424000 | P175: -3.01%
A176: 166 | B176: Oil_Gas | C176: RELIANCE | D176: 2022-08-25 | E176: 2665.00 | F176: 2636.00 | G176: 2599.00 | H176: 2533.00 | I176: 2496.00 | J176: 2702.00 | K176: 2739.00 | L176: 2805.00 | M176: 2673 | N176: 2570 | O176: 32328500 | P176: 0.20%
A177: 167 | B177: Metals | C177: SAIL | D177: 2022-08-25 | E177: 83.40 | F177: 83.02 | G177: 82.43 | H177: 81.47 | I177: 80.88 | J177: 83.98 | K177: 84.57 | L177: 85.53 | M177: 83.6 | N177: 82.05 | O177: 102684000 | P177: 0.83%
A178: 168 | B178: Banking | C178: SBICARD | D178: 2022-08-25 | E178: 958.85 | F178: 967.28 | G178: 937.57 | H178: 916.28 | I178: 886.57 | J178: 988.57 | K178: 1018.28 | L178: 1039.57 | M178: 997 | N178: 946 | O178: 6222400 | P178: -0.22%
A179: 169 | B179: Finance | C179: SBILIFE | D179: 2022-08-25 | E179: 1325.35 | F179: 1323.53 | G179: 1313.52 | H179: 1301.68 | I179: 1291.67 | J179: 1335.37 | K179: 1345.38 | L179: 1357.22 | M179: 1333.55 | N179: 1311.7 | O179: 6123000 | P179: 1.53%
A180: 170 | B180: Banking | C180: SBIN | D180: 2022-08-25 | E180: 533.90 | F180: 532.93 | G180: 529.42 | H180: 524.93 | I180: 521.42 | J180: 537.42 | K180: 540.93 | L180: 545.42 | M180: 536.45 | N180: 528.45 | O180: 54397500 | P180: -4.18%
A181: 171 | B181: Cement | C181: SHREECEM | D181: 2022-08-25 | E181: 21653.60 | F181: 21470.60 | G181: 21246.10 | H181: 20838.60 | I181: 20614.10 | J181: 21878.10 | K181: 22102.60 | L181: 22510.10 | M181: 21695.1 | N181: 21063.1 | O181: 331675 | P181: -0.27%
A182: 172 | B182: Capital_Goods | C182: SIEMENS | D182: 2022-08-25 | E182: 2887.25 | F182: 2886.82 | G182: 2852.63 | H182: 2818.02 | I182: 2783.83 | J182: 2921.43 | K182: 2955.62 | L182: 2990.23 | M182: 2921 | N182: 2852.2 | O182: 1583175 | P182: -1.76%
A183: 173 | B183: Textile | C183: SRF | D183: 2022-08-25 | E183: 2522.80 | F183: 2513.77 | G183: 2485.03 | H183: 2447.27 | I183: 2418.53 | J183: 2551.53 | K183: 2580.27 | L183: 2618.03 | M183: 2542.5 | N183: 2476 | O183: 3627000 | P183: -2.28%
A184: 174 | B184: Finance | C184: SRTRANSFIN | D184: 2022-08-25 | E184: 1352.55 | F184: 1350.23 | G184: 1332.77 | H184: 1312.98 | I184: 1295.52 | J184: 1370.02 | K184: 1387.48 | L184: 1407.27 | M184: 1367.7 | N184: 1330.45 | O184: 4817400 | P184: 1.67%
A185: 175 | B185: Pharma | C185: SUNPHARMA | D185: 2022-08-25 | E185: 916.15 | F185: 909.12 | G185: 900.28 | H185: 884.42 | I185: 875.58 | J185: 924.98 | K185: 933.82 | L185: 949.68 | M185: 917.95 | N185: 893.25 | O185: 20020000 | P185: -1.24%
A186: 176 | B186: Media | C186: SUNTV | D186: 2022-08-25 | E186: 474.85 | F186: 477.65 | G186: 470.60 | H186: 466.35 | I186: 459.30 | J186: 481.90 | K186: 488.95 | L186: 493.20 | M186: 484.7 | N186: 473.4 | O186: 10749000 | P186: -1.20%
A187: 177 | B187: Pharma | C187: SYNGENE | D187: 2022-08-25 | E187: 596.40 | F187: 592.40 | G187: 584.05 | H187: 571.70 | I187: 563.35 | J187: 604.75 | K187: 613.10 | L187: 625.45 | M187: 600.75 | N187: 580.05 | O187: 2646000 | P187: 0.19%
A188: 178 | B188: Chemical | C188: TATACHEM | D188: 2022-08-25 | E188: 1122.95 | F188: 1113.50 | G188: 1100.05 | H188: 1077.15 | I188: 1063.70 | J188: 1136.40 | K188: 1149.85 | L188: 1172.75 | M188: 1126.95 | N188: 1090.6 | O188: 8008000 | P188: -3.67%
A189: 179 | B189: Telecom | C189: TATACOMM | D189: 2022-08-25 | E189: 1088.95 | F189: 1086.28 | G189: 1080.72 | H189: 1072.48 | I189: 1066.92 | J189: 1094.52 | K189: 1100.08 | L189: 1108.32 | M189: 1091.85 | N189: 1078.05 | O189: 3062500 | P189: 0.44%
A190: 180 | B190: FMCG | C190: TATACONSUM | D190: 2022-08-25 | E190: 809.80 | F190: 806.88 | G190: 797.17 | H190: 784.53 | I190: 774.82 | J190: 819.52 | K190: 829.23 | L190: 841.87 | M190: 816.6 | N190: 794.25 | O190: 9078300 | P190: -5.43%
A191: 181 | B191: Automobile | C191: TATAMOTORS | D191: 2022-08-25 | E191: 485.55 | F191: 484.18 | G191: 480.87 | H191: 476.18 | I191: 472.87 | J191: 488.87 | K191: 492.18 | L191: 496.87 | M191: 487.5 | N191: 479.5 | O191: 66285300 | P191: -0.17%
A192: 182 | B192: Power | C192: TATAPOWER | D192: 2022-08-25 | E192: 238.70 | F192: 238.45 | G192: 236.65 | H192: 234.60 | I192: 232.80 | J192: 240.50 | K192: 242.30 | L192: 244.35 | M192: 240.25 | N192: 236.4 | O192: 96248250 | P192: -0.91%
A193: 183 | B193: Metals | C193: TATASTEEL | D193: 2022-08-25 | E193: 112.95 | F193: 112.55 | G193: 111.75 | H193: 110.55 | I193: 109.75 | J193: 113.75 | K193: 114.55 | L193: 115.75 | M193: 113.35 | N193: 111.35 | O193: 242602750 | P193: -1.73%
A194: 184 | B194: Technology | C194: TCS | D194: 2022-08-25 | E194: 3388.75 | F194: 3386.13 | G194: 3368.42 | H194: 3348.08 | I194: 3330.37 | J194: 3406.47 | K194: 3424.18 | L194: 3444.52 | M194: 3403.85 | N194: 3365.8 | O194: 12020700 | P194: 0.99%
A195: 185 | B195: Technology | C195: TECHM | D195: 2022-08-25 | E195: 1107.25 | F195: 1104.03 | G195: 1094.22 | H195: 1081.18 | I195: 1071.37 | J195: 1117.07 | K195: 1126.88 | L195: 1139.92 | M195: 1113.85 | N195: 1091 | O195: 20417400 | P195: -3.17%
A196: 186 | B196: FMCG | C196: TITAN | D196: 2022-08-25 | E196: 2487.25 | F196: 2489.42 | G196: 2472.88 | H196: 2458.52 | I196: 2441.98 | J196: 2503.78 | K196: 2520.32 | L196: 2534.68 | M196: 2505.95 | N196: 2475.05 | O196: 5363250 | P196: -0.03%
A197: 187 | B197: Pharma | C197: TORNTPHARM | D197: 2022-08-25 | E197: 1562.45 | F197: 1559.83 | G197: 1549.37 | H197: 1536.28 | I197: 1525.82 | J197: 1572.92 | K197: 1583.38 | L197: 1596.47 | M197: 1570.3 | N197: 1546.75 | O197: 1551000 | P197: 3.99%
A198: 188 | B198: Power | C198: TORNTPOWER | D198: 2022-08-25 | E198: 588.90 | F198: 586.63 | G198: 582.02 | H198: 575.13 | I198: 570.52 | J198: 593.52 | K198: 598.13 | L198: 605.02 | M198: 591.25 | N198: 579.75 | O198: 3136500 | P198: -0.67%
A199: 189 | B199: Others | C199: TRENT | D199: 2022-08-25 | E199: 1460.15 | F199: 1479.25 | G199: 1434.05 | H199: 1407.95 | I199: 1362.75 | J199: 1505.35 | K199: 1550.55 | L199: 1576.65 | M199: 1524.45 | N199: 1453.15 | O199: 4774850 | P199: -2.50%
A200: 190 | B200: Automobile | C200: TVSMOTOR | D200: 2022-08-25 | E200: 974.15 | F200: 978.47 | G200: 967.68 | H200: 961.22 | I200: 950.43 | J200: 984.93 | K200: 995.72 | L200: 1002.18 | M200: 989.25 | N200: 972 | O200: 8761200 | P200: -1.14%
A201: 191 | B201: FMCG | C201: UBL | D201: 2022-08-25 | E201: 1707.80 | F201: 1689.17 | G201: 1666.63 | H201: 1625.47 | I201: 1602.93 | J201: 1730.33 | K201: 1752.87 | L201: 1794.03 | M201: 1711.7 | N201: 1648 | O201: 1086400 | P201: 6.68%
A202: 192 | B202: Cement | C202: ULTRACEMCO | D202: 2022-08-25 | E202: 6725.45 | F202: 6695.38 | G202: 6657.27 | H202: 6589.08 | I202: 6550.97 | J202: 6763.57 | K202: 6801.68 | L202: 6869.87 | M202: 6733.5 | N202: 6627.2 | O202: 2016300 | P202: -0.14%
A203: 193 | B203: Chemical | C203: UPL | D203: 2022-08-25 | E203: 775.30 | F203: 780.85 | G203: 768.05 | H203: 760.80 | I203: 748.00 | J203: 788.10 | K203: 800.90 | L203: 808.15 | M203: 793.65 | N203: 773.6 | O203: 19776900 | P203: -0.28%
A204: 194 | B204: Metals | C204: VEDL | D204: 2022-08-25 | E204: 265.85 | F204: 265.87 | G204: 263.08 | H204: 260.32 | I204: 257.53 | J204: 268.63 | K204: 271.42 | L204: 274.18 | M204: 268.65 | N204: 263.1 | O204: 44305200 | P204: -6.13%
A205: 195 | B205: Capital_Goods | C205: VOLTAS | D205: 2022-08-25 | E205: 1044.00 | F205: 1038.67 | G205: 1031.73 | H205: 1019.47 | I205: 1012.53 | J205: 1050.93 | K205: 1057.87 | L205: 1070.13 | M205: 1045.6 | N205: 1026.4 | O205: 4126500 | P205: -2.37%
A206: 196 | B206: Capital_Goods | C206: WHIRLPOOL | D206: 2022-08-25 | E206: 1822.65 | F206: 1812.18 | G206: 1780.37 | H206: 1738.08 | I206: 1706.27 | J206: 1854.47 | K206: 1886.28 | L206: 1928.57 | M206: 1844 | N206: 1769.9 | O206: 726600 | P206: -2.76%
... 18 more rows

Sheet Cash Intra
M5: Back to Main Page
A6: FOR INTRA DAY TRADING | K6: =Main!B10 -> 2022-08-19
A8: Sr.no | C8: CLOSE RATE | D8: Pivot Point | E8: Supports | H8: Resistances
E9: S1 | F9: S2 | G9: S3 | H9: R1 | I9: R2 | J9: R3 | K9: HIGH | L9: LOW | M9: Total Trade Quanity in Lakhs
A10: 1 | B10: Nifty 50 | C10: 17956.5 | D10: 17925.67 | E10: 17882.88 | F10: 17809.27 | G10: 17766.48 | H10: 17999.28 | I10: 18042.07 | J10: 18115.68 | K10: 17968.45 | L10: 17852.05
A11: 2 | B11: Nifty Bank | C11: 39656.15 | D11: 39550.33 | E11: 39396.97 | F11: 39137.78 | G11: 38984.42 | H11: 39809.52 | I11: 39962.88 | J11: 40222.07 | K11: 39703.7 | L11: 39291.15
A12: 3 | B12: Nifty CPSE | C12: 2648.65 | D12: 2648.90 | E12: 2636.10 | F12: 2623.55 | G12: 2610.75 | H12: 2661.45 | I12: 2674.25 | J12: 2686.80 | K12: 2661.7 | L12: 2636.35
A13: 4 | B13: Nifty Infra | C13: 5122.55 | D13: 5106.90 | E13: 5087.75 | F13: 5052.95 | G13: 5033.80 | H13: 5141.70 | I13: 5160.85 | J13: 5195.65 | K13: 5126.05 | L13: 5072.1
A14: 5 | B14: Nifty IT | C14: 30018.9 | D14: 30014.22 | E14: 29862.33 | F14: 29705.77 | G14: 29553.88 | H14: 30170.78 | I14: 30322.67 | J14: 30479.23 | K14: 30166.1 | L14: 29857.65
A15: 6 | B15: Nifty PSE | C15: 4195.45 | D15: 4192.98 | E15: 4175.97 | F15: 4156.48 | G15: 4139.47 | H15: 4212.47 | I15: 4229.48 | J15: 4248.97 | K15: 4210 | L15: 4173.5
A16: 7 | B16: Nifty Midcap 50 | C16: 8532.3 | D16: 8522.07 | E16: 8490.68 | F16: 8449.07 | G16: 8417.68 | H16: 8563.68 | I16: 8595.07 | J16: 8636.68 | K16: 8553.45 | L16: 8480.45
A17: 8 | B17: ABB | C17: 2890.5 | D17: 2899.83 | E17: 2864.67 | F17: 2838.83 | G17: 2803.67 | H17: 2925.67 | I17: 2960.83 | J17: 2986.67 | K17: 2935 | L17: 2874 | M17: 4.59776
A18: 9 | B18: ACC | C18: 2322.85 | D18: 2310.95 | E18: 2287.10 | F18: 2251.35 | G18: 2227.50 | H18: 2346.70 | I18: 2370.55 | J18: 2406.30 | K18: 2334.8 | L18: 2275.2 | M18: 5.12571
A19: 10 | B19: AUBANK | C19: 645.35 | D19: 643.92 | E19: 640.68 | F19: 636.02 | G19: 632.78 | H19: 648.58 | I19: 651.82 | J19: 656.48 | K19: 647.15 | L19: 639.25 | M19: 9.83261
A20: 11 | B20: ABBOTINDIA | C20: 19008.15 | D20: 19074.38 | E20: 18848.77 | F20: 18689.38 | G20: 18463.77 | H20: 19233.77 | I20: 19459.38 | J20: 19618.77 | K20: 19300 | L20: 18915 | M20: 0.10684
A21: 12 | B21: ADANIENT | C21: 3153.65 | D21: 3114.55 | E21: 3043.10 | F21: 2932.55 | G21: 2861.10 | H21: 3225.10 | I21: 3296.55 | J21: 3407.10 | K21: 3186 | L21: 3004 | M21: 35.02295
A22: 13 | B22: ADANIGREEN | C22: 2296.35 | D22: 2280.35 | E22: 2217.00 | F22: 2137.65 | G22: 2074.30 | H22: 2359.70 | I22: 2423.05 | J22: 2502.40 | K22: 2343.7 | L22: 2201 | M22: 28.78895
A23: 14 | B23: ADANIPORTS | C23: 833.05 | D23: 829.98 | E23: 823.52 | F23: 813.98 | G23: 807.52 | H23: 839.52 | I23: 845.98 | J23: 855.52 | K23: 836.45 | L23: 820.45 | M23: 38.36669
A24: 15 | B24: ATGL | C24: 3463.3 | D24: 3464.13 | E24: 3433.27 | F24: 3403.23 | G24: 3372.37 | H24: 3494.17 | I24: 3525.03 | J24: 3555.07 | K24: 3495 | L24: 3434.1 | M24: 5.82583
A25: 16 | B25: ADANITRANS | C25: 3599.55 | D25: 3594.63 | E25: 3560.87 | F25: 3522.18 | G25: 3488.42 | H25: 3633.32 | I25: 3667.08 | J25: 3705.77 | K25: 3628.4 | L25: 3555.95 | M25: 2.38819
A26: 17 | B26: ABCAPITAL | C26: 112.5 | D26: 112.57 | E26: 111.68 | F26: 110.87 | G26: 109.98 | H26: 113.38 | I26: 114.27 | J26: 115.08 | K26: 113.45 | L26: 111.75 | M26: 19.23461
A27: 18 | B27: ABFRL | C27: 289.3 | D27: 290.98 | E27: 286.67 | F27: 284.03 | G27: 279.72 | H27: 293.62 | I27: 297.93 | J27: 300.57 | K27: 295.3 | L27: 288.35 | M27: 25.98824
A28: 19 | B28: APLLTD | C28: 655.15 | D28: 655.35 | E28: 651.80 | F28: 648.45 | G28: 644.90 | H28: 658.70 | I28: 662.25 | J28: 665.60 | K28: 658.9 | L28: 652 | M28: 0.95704
A29: 20 | B29: ALKEM | C29: 2923.95 | D29: 2925.68 | E29: 2904.37 | F29: 2884.78 | G29: 2863.47 | H29: 2945.27 | I29: 2966.58 | J29: 2986.17 | K29: 2947 | L29: 2906.1 | M29: 1.69366
A30: 21 | B30: AMBUJACEM | C30: 409.6 | D30: 406.87 | E30: 399.23 | F30: 388.87 | G30: 381.23 | H30: 417.23 | I30: 424.87 | J30: 435.23 | K30: 414.5 | L30: 396.5 | M30: 156.35959
A31: 22 | B31: APOLLOHOSP | C31: 4266.65 | D31: 4285.08 | E31: 4231.57 | F31: 4196.48 | G31: 4142.97 | H31: 4320.17 | I31: 4373.68 | J31: 4408.77 | K31: 4338.6 | L31: 4250 | M31: 5.80509
A32: 23 | B32: APOLLOTYRE | C32: 266.5 | D32: 263.83 | E32: 260.32 | F32: 254.13 | G32: 250.62 | H32: 270.02 | I32: 273.53 | J32: 279.72 | K32: 267.35 | L32: 257.65 | M32: 58.40246
A33: 24 | B33: ASHOKLEY | C33: 147.35 | D33: 147.17 | E33: 146.23 | F33: 145.12 | G33: 144.18 | H33: 148.28 | I33: 149.22 | J33: 150.33 | K33: 148.1 | L33: 146.05 | M33: 128.45301
A34: 25 | B34: ASIANPAINT | C34: 3535.35 | D34: 3531.20 | E34: 3519.70 | F34: 3504.05 | G34: 3492.55 | H34: 3546.85 | I34: 3558.35 | J34: 3574.00 | K34: 3542.7 | L34: 3515.55 | M34: 5.99877
A35: 26 | B35: ASTRAL | C35: 2040.8 | D35: 2031.92 | E35: 2012.83 | F35: 1984.87 | G35: 1965.78 | H35: 2059.88 | I35: 2078.97 | J35: 2106.93 | K35: 2051 | L35: 2003.95 | M35: 2.23392
A36: 27 | B36: AUROPHARMA | C36: 583.1 | D36: 578.55 | E36: 570.65 | F36: 558.20 | G36: 550.30 | H36: 591.00 | I36: 598.90 | J36: 611.35 | K36: 586.45 | L36: 566.1 | M36: 21.89469
A37: 28 | B37: DMART | C37: 4460.95 | D37: 4451.70 | E37: 4410.30 | F37: 4359.65 | G37: 4318.25 | H37: 4502.35 | I37: 4543.75 | J37: 4594.40 | K37: 4493.1 | L37: 4401.05 | M37: 4.68551
A38: 29 | B38: AXISBANK | C38: 765.05 | D38: 767.72 | E38: 759.43 | F38: 753.82 | G38: 745.53 | H38: 773.33 | I38: 781.62 | J38: 787.23 | K38: 776 | L38: 762.1 | M38: 94.49924
A39: 30 | B39: BAJAJ-AUTO | C39: 4060.65 | D39: 4060.05 | E39: 4041.10 | F39: 4021.55 | G39: 4002.60 | H39: 4079.60 | I39: 4098.55 | J39: 4118.10 | K39: 4079 | L39: 4040.5 | M39: 4.51908
A40: 31 | B40: BAJFINANCE | C40: 7488.25 | D40: 7509.82 | E40: 7430.83 | F40: 7373.42 | G40: 7294.43 | H40: 7567.23 | I40: 7646.22 | J40: 7703.63 | K40: 7588.8 | L40: 7452.4 | M40: 8.35354
A41: 32 | B41: BAJAJFINSV | C41: 16805.9 | D41: 16805.18 | E41: 16621.37 | F41: 16436.83 | G41: 16253.02 | H41: 16989.72 | I41: 17173.53 | J41: 17358.07 | K41: 16989 | L41: 16620.65 | M41: 3.61659
A42: 33 | B42: BAJAJHLDNG | C42: 5531 | D42: 5561.95 | E42: 5423.90 | F42: 5316.80 | G42: 5178.75 | H42: 5669.05 | I42: 5807.10 | J42: 5914.20 | K42: 5700 | L42: 5454.85 | M42: 3.05032
A43: 34 | B43: BALKRISIND | C43: 2216.45 | D43: 2216.00 | E43: 2198.00 | F43: 2179.55 | G43: 2161.55 | H43: 2234.45 | I43: 2252.45 | J43: 2270.90 | K43: 2234 | L43: 2197.55 | M43: 2.79811
A44: 35 | B44: BANDHANBNK | C44: 288.35 | D44: 287.13 | E44: 284.47 | F44: 280.58 | G44: 277.92 | H44: 291.02 | I44: 293.68 | J44: 297.57 | K44: 289.8 | L44: 283.25 | M44: 51.87431
A45: 36 | B45: BANKBARODA | C45: 123.9 | D45: 124.65 | E45: 122.30 | F45: 120.70 | G45: 118.35 | H45: 126.25 | I45: 128.60 | J45: 130.20 | K45: 127 | L45: 123.05 | M45: 263.52284
A46: 37 | B46: BANKINDIA | C46: 50.9 | D46: 50.90 | E46: 50.10 | F46: 49.30 | G46: 48.50 | H46: 51.70 | I46: 52.50 | J46: 53.30 | K46: 51.7 | L46: 50.1 | M46: 46.53861
A47: 38 | B47: BATAINDIA | C47: 1922.05 | D47: 1932.20 | E47: 1907.00 | F47: 1891.95 | G47: 1866.75 | H47: 1947.25 | I47: 1972.45 | J47: 1987.50 | K47: 1957.4 | L47: 1917.15 | M47: 3.88271
A48: 39 | B48: BERGEPAINT | C48: 707.15 | D48: 705.82 | E48: 701.33 | F48: 695.52 | G48: 691.03 | H48: 711.63 | I48: 716.12 | J48: 721.93 | K48: 710.3 | L48: 700 | M48: 7.54334
A49: 40 | B49: BEL | C49: 288.75 | D49: 290.00 | E49: 285.50 | F49: 282.25 | G49: 277.75 | H49: 293.25 | I49: 297.75 | J49: 301.00 | K49: 294.5 | L49: 286.75 | M49: 53.78175
A50: 41 | B50: BHARATFORG | C50: 749.95 | D50: 755.33 | E50: 742.02 | F50: 734.08 | G50: 720.77 | H50: 763.27 | I50: 776.58 | J50: 784.52 | K50: 768.65 | L50: 747.4 | M50: 20.67453
A51: 42 | B51: BHEL | C51: 56.2 | D51: 55.35 | E51: 54.15 | F51: 52.10 | G51: 50.90 | H51: 57.40 | I51: 58.60 | J51: 60.65 | K51: 56.55 | L51: 53.3 | M51: 516.98789
A52: 43 | B52: BPCL | C52: 347.05 | D52: 348.68 | E52: 343.82 | F52: 340.58 | G52: 335.72 | H52: 351.92 | I52: 356.78 | J52: 360.02 | K52: 353.55 | L52: 345.45 | M52: 35.59485
A53: 44 | B53: BHARTIARTL | C53: 733.2 | D53: 730.03 | E53: 724.07 | F53: 714.93 | G53: 708.97 | H53: 739.17 | I53: 745.13 | J53: 754.27 | K53: 736 | L53: 720.9 | M53: 103.54897
A54: 45 | B54: BIOCON | C54: 315 | D54: 315.45 | E54: 312.55 | F54: 310.10 | G54: 307.20 | H54: 317.90 | I54: 320.80 | J54: 323.25 | K54: 318.35 | L54: 313 | M54: 12.62974
A55: 46 | B55: BOSCHLTD | C55: 17605.2 | D55: 17707.53 | E55: 17467.67 | F55: 17330.13 | G55: 17090.27 | H55: 17845.07 | I55: 18084.93 | J55: 18222.47 | K55: 17947.4 | L55: 17570 | M55: 0.41793
A56: 47 | B56: BRITANNIA | C56: 3693.05 | D56: 3700.35 | E56: 3673.75 | F56: 3654.45 | G56: 3627.85 | H56: 3719.65 | I56: 3746.25 | J56: 3765.55 | K56: 3726.95 | L56: 3681.05 | M56: 2.32262
A57: 48 | B57: CANBK | C57: 239.95 | D57: 239.85 | E57: 237.70 | F57: 235.45 | G57: 233.30 | H57: 242.10 | I57: 244.25 | J57: 246.50 | K57: 242 | L57: 237.6 | M57: 114.67757
A58: 49 | B58: CHOLAFIN | C58: 781.7 | D58: 784.23 | E58: 774.77 | F58: 767.83 | G58: 758.37 | H58: 791.17 | I58: 800.63 | J58: 807.57 | K58: 793.7 | L58: 777.3 | M58: 9.01648
A59: 50 | B59: CIPLA | C59: 1032.2 | D59: 1024.53 | E59: 1015.02 | F59: 997.83 | G59: 988.32 | H59: 1041.72 | I59: 1051.23 | J59: 1068.42 | K59: 1034.05 | L59: 1007.35 | M59: 12.0172
A60: 51 | B60: CLEAN | C60: 1736.5 | D60: 1726.18 | E60: 1681.37 | F60: 1626.23 | G60: 1581.42 | H60: 1781.32 | I60: 1826.13 | J60: 1881.27 | K60: 1771 | L60: 1671.05 | M60: 5.01604
A61: 52 | B61: COALINDIA | C61: 221.75 | D61: 221.67 | E61: 220.68 | F61: 219.62 | G61: 218.63 | H61: 222.73 | I61: 223.72 | J61: 224.78 | K61: 222.65 | L61: 220.6 | M61: 42.33196
A62: 53 | B62: COFORGE | C62: 3900.6 | D62: 3874.63 | E62: 3829.27 | F62: 3757.93 | G62: 3712.57 | H62: 3945.97 | I62: 3991.33 | J62: 4062.67 | K62: 3920 | L62: 3803.3 | M62: 2.32795
A63: 54 | B63: COLPAL | C63: 1566.1 | D63: 1565.48 | E63: 1556.97 | F63: 1547.83 | G63: 1539.32 | H63: 1574.62 | I63: 1583.13 | J63: 1592.27 | K63: 1574 | L63: 1556.35 | M63: 1.3766
A64: 55 | B64: CONCOR | C64: 703.9 | D64: 705.10 | E64: 697.90 | F64: 691.90 | G64: 684.70 | H64: 711.10 | I64: 718.30 | J64: 724.30 | K64: 712.3 | L64: 699.1 | M64: 5.92626
A65: 56 | B65: COROMANDEL | C65: 1050.95 | D65: 1057.17 | E65: 1041.98 | F65: 1033.02 | G65: 1017.83 | H65: 1066.13 | I65: 1081.32 | J65: 1090.28 | K65: 1072.35 | L65: 1048.2 | M65: 2.67992
A66: 57 | B66: CROMPTON | C66: 395.85 | D66: 393.93 | E66: 387.92 | F66: 379.98 | G66: 373.97 | H66: 401.87 | I66: 407.88 | J66: 415.82 | K66: 399.95 | L66: 386 | M66: 13.06243
A67: 58 | B67: CUMMINSIND | C67: 1247.05 | D67: 1246.63 | E67: 1224.57 | F67: 1202.08 | G67: 1180.02 | H67: 1269.12 | I67: 1291.18 | J67: 1313.67 | K67: 1268.7 | L67: 1224.15 | M67: 5.50201
A68: 59 | B68: DLF | C68: 389.15 | D68: 386.10 | E68: 382.25 | F68: 375.35 | G68: 371.50 | H68: 393.00 | I68: 396.85 | J68: 403.75 | K68: 389.95 | L68: 379.2 | M68: 51.88764
A69: 60 | B69: DABUR | C69: 594.6 | D69: 591.43 | E69: 586.82 | F69: 579.03 | G69: 574.42 | H69: 599.22 | I69: 603.83 | J69: 611.62 | K69: 596.05 | L69: 583.65 | M69: 17.77307
A70: 61 | B70: DALBHARAT | C70: 1666.9 | D70: 1645.28 | E70: 1614.67 | F70: 1562.43 | G70: 1531.82 | H70: 1697.52 | I70: 1728.13 | J70: 1780.37 | K70: 1675.9 | L70: 1593.05 | M70: 6.63124
A71: 62 | B71: DEEPAKNTR | C71: 2104.25 | D71: 2100.42 | E71: 2078.83 | F71: 2053.42 | G71: 2031.83 | H71: 2125.83 | I71: 2147.42 | J71: 2172.83 | K71: 2122 | L71: 2075 | M71: 6.82871
A72: 63 | B72: DIVISLAB | C72: 3743.6 | D72: 3738.87 | E72: 3719.73 | F72: 3695.87 | G72: 3676.73 | H72: 3762.73 | I72: 3781.87 | J72: 3805.73 | K72: 3758 | L72: 3715 | M72: 4.20941
A73: 64 | B73: DIXON | C73: 4068.15 | D73: 4064.10 | E73: 4010.20 | F73: 3952.25 | G73: 3898.35 | H73: 4122.05 | I73: 4175.95 | J73: 4233.90 | K73: 4118 | L73: 4006.15 | M73: 6.17723
A74: 65 | B74: LALPATHLAB | C74: 2525.1 | D74: 2511.50 | E74: 2490.00 | F74: 2454.90 | G74: 2433.40 | H74: 2546.60 | I74: 2568.10 | J74: 2603.20 | K74: 2533 | L74: 2476.4 | M74: 2.03095
A75: 66 | B75: DRREDDY | C75: 4225.1 | D75: 4199.48 | E75: 4158.97 | F75: 4092.83 | G75: 4052.32 | H75: 4265.62 | I75: 4306.13 | J75: 4372.27 | K75: 4240 | L75: 4133.35 | M75: 10.27584
A76: 67 | B76: EICHERMOT | C76: 3411.4 | D76: 3408.03 | E76: 3378.07 | F76: 3344.73 | G76: 3314.77 | H76: 3441.37 | I76: 3471.33 | J76: 3504.67 | K76: 3438 | L76: 3374.7 | M76: 5.91901
A77: 68 | B77: EMAMILTD | C77: 466 | D77: 465.97 | E77: 462.93 | F77: 459.87 | G77: 456.83 | H77: 469.03 | I77: 472.07 | J77: 475.13 | K77: 469 | L77: 462.9 | M77: 1.26297
A78: 69 | B78: ESCORTS | C78: 1803.7 | D78: 1808.30 | E78: 1786.05 | F78: 1768.40 | G78: 1746.15 | H78: 1825.95 | I78: 1848.20 | J78: 1865.85 | K78: 1830.55 | L78: 1790.65 | M78: 2.38025
A79: 70 | B79: EXIDEIND | C79: 164.2 | D79: 163.78 | E79: 162.92 | F79: 161.63 | G79: 160.77 | H79: 165.07 | I79: 165.93 | J79: 167.22 | K79: 164.65 | L79: 162.5 | M79: 18.81569
A80: 71 | B80: NYKAA | C80: 1387.5 | D80: 1391.15 | E80: 1378.35 | F80: 1369.20 | G80: 1356.40 | H80: 1400.30 | I80: 1413.10 | J80: 1422.25 | K80: 1403.95 | L80: 1382 | M80: 3.23971
A81: 72 | B81: FEDERALBNK | C81: 111 | D81: 110.87 | E81: 109.73 | F81: 108.47 | G81: 107.33 | H81: 112.13 | I81: 113.27 | J81: 114.53 | K81: 112 | L81: 109.6 | M81: 101.09846
A82: 73 | B82: FORTIS | C82: 291.65 | D82: 291.63 | E82: 287.72 | F82: 283.78 | G82: 279.87 | H82: 295.57 | I82: 299.48 | J82: 303.42 | K82: 295.55 | L82: 287.7 | M82: 13.12467
A83: 74 | B83: GAIL | C83: 135.6 | D83: 135.43 | E83: 134.87 | F83: 134.13 | G83: 133.57 | H83: 136.17 | I83: 136.73 | J83: 137.47 | K83: 136 | L83: 134.7 | M83: 108.18877
A84: 75 | B84: GLAND | C84: 2399 | D84: 2393.00 | E84: 2361.00 | F84: 2323.00 | G84: 2291.00 | H84: 2431.00 | I84: 2463.00 | J84: 2501.00 | K84: 2425 | L84: 2355 | M84: 1.89768
A85: 76 | B85: GLENMARK | C85: 399.65 | D85: 400.80 | E85: 396.10 | F85: 392.55 | G85: 387.85 | H85: 404.35 | I85: 409.05 | J85: 412.60 | K85: 405.5 | L85: 397.25 | M85: 11.43086
A86: 77 | B86: GODREJCP | C86: 918.3 | D86: 910.30 | E86: 900.60 | F86: 882.90 | G86: 873.20 | H86: 928.00 | I86: 937.70 | J86: 955.40 | K86: 920 | L86: 892.6 | M86: 30.09209
A87: 78 | B87: GODREJPROP | C87: 1407.25 | D87: 1401.57 | E87: 1385.73 | F87: 1364.22 | G87: 1348.38 | H87: 1423.08 | I87: 1438.92 | J87: 1460.43 | K87: 1417.4 | L87: 1380.05 | M87: 7.46107
A88: 79 | B88: GRASIM | C88: 1613.75 | D88: 1607.12 | E88: 1592.63 | F88: 1571.52 | G88: 1557.03 | H88: 1628.23 | I88: 1642.72 | J88: 1663.83 | K88: 1621.6 | L88: 1586 | M88: 10.06971
A89: 80 | B89: GUJGASLTD | C89: 491.4 | D89: 493.43 | E89: 486.97 | F89: 482.53 | G89: 476.07 | H89: 497.87 | I89: 504.33 | J89: 508.77 | K89: 499.9 | L89: 489 | M89: 13.24299
A90: 81 | B90: GSPL | C90: 248.2 | D90: 247.15 | E90: 245.10 | F90: 242.00 | G90: 239.95 | H90: 250.25 | I90: 252.30 | J90: 255.40 | K90: 249.2 | L90: 244.05 | M90: 7.02403
A91: 82 | B91: HCLTECH | C91: 973.5 | D91: 975.02 | E91: 966.58 | F91: 959.67 | G91: 951.23 | H91: 981.93 | I91: 990.37 | J91: 997.28 | K91: 983.45 | L91: 968.1 | M91: 28.29269
A92: 83 | B92: HDFCAMC | C92: 2181.35 | D92: 2175.05 | E92: 2156.30 | F92: 2131.25 | G92: 2112.50 | H92: 2200.10 | I92: 2218.85 | J92: 2243.90 | K92: 2193.8 | L92: 2150 | M92: 4.6433
A93: 84 | B93: HDFCBANK | C93: 1511.7 | D93: 1508.42 | E93: 1502.93 | F93: 1494.17 | G93: 1488.68 | H93: 1517.18 | I93: 1522.67 | J93: 1531.43 | K93: 1513.9 | L93: 1499.65 | M93: 41.71069
A94: 85 | B94: HDFCLIFE | C94: 586.75 | D94: 589.57 | E94: 580.18 | F94: 573.62 | G94: 564.23 | H94: 596.13 | I94: 605.52 | J94: 612.08 | K94: 598.95 | L94: 583 | M94: 71.23366
A95: 86 | B95: HAVELLS | C95: 1358 | D95: 1354.53 | E95: 1346.12 | F95: 1334.23 | G95: 1325.82 | H95: 1366.42 | I95: 1374.83 | J95: 1386.72 | K95: 1362.95 | L95: 1342.65 | M95: 8.84432
A96: 87 | B96: HEROMOTOCO | C96: 2908.2 | D96: 2916.65 | E96: 2894.70 | F96: 2881.20 | G96: 2859.25 | H96: 2930.15 | I96: 2952.10 | J96: 2965.60 | K96: 2938.6 | L96: 2903.15 | M96: 8.05655
A97: 88 | B97: HINDALCO | C97: 438.05 | D97: 437.57 | E97: 434.13 | F97: 430.22 | G97: 426.78 | H97: 441.48 | I97: 444.92 | J97: 448.83 | K97: 441 | L97: 433.65 | M97: 67.55688
A98: 89 | B98: HAL | C98: 2315.35 | D98: 2317.13 | E98: 2284.32 | F98: 2253.28 | G98: 2220.47 | H98: 2348.17 | I98: 2380.98 | J98: 2412.02 | K98: 2349.95 | L98: 2286.1 | M98: 13.32649
A99: 90 | B99: HINDPETRO | C99: 263.15 | D99: 263.38 | E99: 260.17 | F99: 257.18 | G99: 253.97 | H99: 266.37 | I99: 269.58 | J99: 272.57 | K99: 266.6 | L99: 260.4 | M99: 67.70567
A100: 91 | B100: HINDUNILVR | C100: 2682.05 | D100: 2687.23 | E100: 2659.47 | F100: 2636.88 | G100: 2609.12 | H100: 2709.82 | I100: 2737.58 | J100: 2760.17 | K100: 2715 | L100: 2664.65 | M100: 14.65489
A101: 92 | B101: HINDZINC | C101: 282.85 | D101: 284.62 | E101: 280.43 | F101: 278.02 | G101: 273.83 | H101: 287.03 | I101: 291.22 | J101: 293.63 | K101: 288.8 | L101: 282.2 | M101: 14.43038
A102: 93 | B102: HONAUT | C102: 43018.55 | D102: 43237.03 | E102: 42581.57 | F102: 42144.58 | G102: 41489.12 | H102: 43674.02 | I102: 44329.48 | J102: 44766.47 | K102: 43892.5 | L102: 42800.05 | M102: 0.09969
A103: 94 | B103: HDFC | C103: 2497.95 | D103: 2495.30 | E103: 2482.65 | F103: 2467.35 | G103: 2454.70 | H103: 2510.60 | I103: 2523.25 | J103: 2538.55 | K103: 2507.95 | L103: 2480 | M103: 22.19069
A104: 95 | B104: ICICIBANK | C104: 885.1 | D104: 882.60 | E104: 877.55 | F104: 870.00 | G104: 864.95 | H104: 890.15 | I104: 895.20 | J104: 902.75 | K104: 887.65 | L104: 875.05 | M104: 131.37856
A105: 96 | B105: ICICIGI | C105: 1326.75 | D105: 1337.38 | E105: 1312.47 | F105: 1298.18 | G105: 1273.27 | H105: 1351.67 | I105: 1376.58 | J105: 1390.87 | K105: 1362.3 | L105: 1323.1 | M105: 4.18587
A106: 97 | B106: ICICIPRULI | C106: 593.7 | D106: 591.68 | E106: 579.42 | F106: 565.13 | G106: 552.87 | H106: 605.97 | I106: 618.23 | J106: 632.52 | K106: 603.95 | L106: 577.4 | M106: 26.01445
A107: 98 | B107: ISEC | C107: 530 | D107: 525.90 | E107: 517.00 | F107: 504.00 | G107: 495.10 | H107: 538.90 | I107: 547.80 | J107: 560.80 | K107: 534.8 | L107: 512.9 | M107: 10.90675
A108: 99 | B108: IDBI | C108: 40.75 | D108: 40.88 | E108: 40.47 | F108: 40.18 | G108: 39.77 | H108: 41.17 | I108: 41.58 | J108: 41.87 | K108: 41.3 | L108: 40.6 | M108: 65.81072
A109: 100 | B109: IDFCFIRSTB | C109: 45.5 | D109: 45.55 | E109: 45.10 | F109: 44.70 | G109: 44.25 | H109: 45.95 | I109: 46.40 | J109: 46.80 | K109: 46 | L109: 45.15 | M109: 267.22897
A110: 101 | B110: ITC | C110: 315.65 | D110: 314.75 | E110: 313.50 | F110: 311.35 | G110: 310.10 | H110: 316.90 | I110: 318.15 | J110: 320.30 | K110: 316 | L110: 312.6 | M110: 98.83851
A111: 102 | B111: INDIAMART | C111: 4434.7 | D111: 4441.57 | E111: 4373.13 | F111: 4311.57 | G111: 4243.13 | H111: 4503.13 | I111: 4571.57 | J111: 4633.13 | K111: 4510 | L111: 4380 | M111: 1.98389
A112: 103 | B112: INDIANB | C112: 182.55 | D112: 183.15 | E112: 180.80 | F112: 179.05 | G112: 176.70 | H112: 184.90 | I112: 187.25 | J112: 189.00 | K112: 185.5 | L112: 181.4 | M112: 8.59307
A113: 104 | B113: IEX | C113: 166.35 | D113: 167.80 | E113: 161.05 | F113: 155.75 | G113: 149.00 | H113: 173.10 | I113: 179.85 | J113: 185.15 | K113: 174.55 | L113: 162.5 | M113: 289.79753
A114: 105 | B114: INDHOTEL | C114: 275.35 | D114: 276.88 | E114: 272.62 | F114: 269.88 | G114: 265.62 | H114: 279.62 | I114: 283.88 | J114: 286.62 | K114: 281.15 | L114: 274.15 | M114: 61.28006
A115: 106 | B115: IOC | C115: 72.65 | D115: 72.92 | E115: 72.18 | F115: 71.72 | G115: 70.98 | H115: 73.38 | I115: 74.12 | J115: 74.58 | K115: 73.65 | L115: 72.45 | M115: 188.50835
A116: 107 | B116: IRCTC | C116: 714.15 | D116: 703.38 | E116: 683.77 | F116: 653.38 | G116: 633.77 | H116: 733.77 | I116: 753.38 | J116: 783.77 | K116: 723 | L116: 673 | M116: 102.73793
A117: 108 | B117: IGL | C117: 426.95 | D117: 429.17 | E117: 422.83 | F117: 418.72 | G117: 412.38 | H117: 433.28 | I117: 439.62 | J117: 443.73 | K117: 435.5 | L117: 425.05 | M117: 18.46088
A118: 109 | B118: INDUSTOWER | C118: 199.15 | D118: 198.90 | E118: 197.25 | F118: 195.35 | G118: 193.70 | H118: 200.80 | I118: 202.45 | J118: 204.35 | K118: 200.55 | L118: 197 | M118: 20.49264
A119: 110 | B119: INDUSINDBK | C119: 1105.1 | D119: 1098.03 | E119: 1088.62 | F119: 1072.13 | G119: 1062.72 | H119: 1114.52 | I119: 1123.93 | J119: 1140.42 | K119: 1107.45 | L119: 1081.55 | M119: 24.07824
A120: 111 | B120: NAUKRI | C120: 4467.15 | D120: 4461.72 | E120: 4410.43 | F120: 4353.72 | G120: 4302.43 | H120: 4518.43 | I120: 4569.72 | J120: 4626.43 | K120: 4513 | L120: 4405 | M120: 2.32292
A121: 112 | B121: INFY | C121: 1582.95 | D121: 1585.05 | E121: 1571.90 | F121: 1560.85 | G121: 1547.70 | H121: 1596.10 | I121: 1609.25 | J121: 1620.30 | K121: 1598.2 | L121: 1574 | M121: 46.35706
A122: 113 | B122: INDIGO | C122: 2022 | D122: 2022.85 | E122: 2002.15 | F122: 1982.30 | G122: 1961.60 | H122: 2042.70 | I122: 2063.40 | J122: 2083.25 | K122: 2043.55 | L122: 2003 | M122: 4.13211
A123: 114 | B123: IPCALAB | C123: 924.95 | D123: 921.03 | E123: 916.07 | F123: 907.18 | G123: 902.22 | H123: 929.92 | I123: 934.88 | J123: 943.77 | K123: 926 | L123: 912.15 | M123: 4.05069
A124: 115 | B124: JSWENERGY | C124: 326.9 | D124: 327.17 | E124: 319.93 | F124: 312.97 | G124: 305.73 | H124: 334.13 | I124: 341.37 | J124: 348.33 | K124: 334.4 | L124: 320.2 | M124: 13.2817
A125: 116 | B125: JSWSTEEL | C125: 673.4 | D125: 673.35 | E125: 668.95 | F125: 664.50 | G125: 660.10 | H125: 677.80 | I125: 682.20 | J125: 686.65 | K125: 677.75 | L125: 668.9 | M125: 18.06855
A126: 117 | B126: JINDALSTEL | C126: 417.55 | D126: 414.67 | E126: 407.83 | F126: 398.12 | G126: 391.28 | H126: 424.38 | I126: 431.22 | J126: 440.93 | K126: 421.5 | L126: 404.95 | M126: 32.85529
A127: 118 | B127: JUBLFOOD | C127: 620.15 | D127: 618.65 | E127: 610.50 | F127: 600.85 | G127: 592.70 | H127: 628.30 | I127: 636.45 | J127: 646.10 | K127: 626.8 | L127: 609 | M127: 112.46536
A128: 119 | B128: KOTAKBANK | C128: 1904.5 | D128: 1882.83 | E128: 1853.67 | F128: 1802.83 | G128: 1773.67 | H128: 1933.67 | I128: 1962.83 | J128: 2013.67 | K128: 1912 | L128: 1832 | M128: 36.61316
A129: 120 | B129: L&TFH | C129: 77.5 | D129: 77.57 | E129: 76.83 | F129: 76.17 | G129: 75.43 | H129: 78.23 | I129: 78.97 | J129: 79.63 | K129: 78.3 | L129: 76.9 | M129: 33.40367
A130: 121 | B130: LTTS | C130: 3885.4 | D130: 3871.13 | E130: 3817.27 | F130: 3749.13 | G130: 3695.27 | H130: 3939.27 | I130: 3993.13 | J130: 4061.27 | K130: 3925 | L130: 3803 | M130: 4.98449
A131: 122 | B131: LICHSGFIN | C131: 397.35 | D131: 396.73 | E131: 395.07 | F131: 392.78 | G131: 391.12 | H131: 399.02 | I131: 400.68 | J131: 402.97 | K131: 398.4 | L131: 394.45 | M131: 11.44279
A132: 123 | B132: LTI | C132: 4924.15 | D132: 4905.08 | E132: 4871.17 | F132: 4818.18 | G132: 4784.27 | H132: 4958.07 | I132: 4991.98 | J132: 5044.97 | K132: 4939 | L132: 4852.1 | M132: 2.54556
A133: 124 | B133: LT | C133: 1894.55 | D133: 1881.03 | E133: 1863.52 | F133: 1832.48 | G133: 1814.97 | H133: 1912.07 | I133: 1929.58 | J133: 1960.62 | K133: 1898.55 | L133: 1850 | M133: 25.19639
A134: 125 | B134: LAURUSLABS | C134: 590.55 | D134: 595.02 | E134: 584.53 | F134: 578.52 | G134: 568.03 | H134: 601.03 | I134: 611.52 | J134: 617.53 | K134: 605.5 | L134: 589 | M134: 20.6781
A135: 126 | B135: LUPIN | C135: 688.8 | D135: 686.38 | E135: 680.77 | F135: 672.73 | G135: 667.12 | H135: 694.42 | I135: 700.03 | J135: 708.07 | K135: 692 | L135: 678.35 | M135: 8.90706
A136: 127 | B136: MRF | C136: 87591.55 | D136: 87128.63 | E136: 86269.22 | F136: 84946.88 | G136: 84087.47 | H136: 88450.97 | I136: 89310.38 | J136: 90632.72 | K136: 87988.05 | L136: 85806.3 | M136: 0.14967
A137: 128 | B137: M&MFIN | C137: 202.25 | D137: 201.10 | E137: 199.40 | F137: 196.55 | G137: 194.85 | H137: 203.95 | I137: 205.65 | J137: 208.50 | K137: 202.8 | L137: 198.25 | M137: 26.64551
A138: 129 | B138: M&M | C138: 1261.15 | D138: 1264.73 | E138: 1251.12 | F138: 1241.08 | G138: 1227.47 | H138: 1274.77 | I138: 1288.38 | J138: 1298.42 | K138: 1278.35 | L138: 1254.7 | M138: 26.59857
A139: 130 | B139: MANAPPURAM | C139: 106.15 | D139: 106.53 | E139: 105.12 | F139: 104.08 | G139: 102.67 | H139: 107.57 | I139: 108.98 | J139: 110.02 | K139: 107.95 | L139: 105.5 | M139: 52.32735
A140: 131 | B140: MARICO | C140: 513.3 | D140: 513.33 | E140: 511.67 | F140: 510.03 | G140: 508.37 | H140: 514.97 | I140: 516.63 | J140: 518.27 | K140: 515 | L140: 511.7 | M140: 6.82162
A141: 132 | B141: MARUTI | C141: 8947.7 | D141: 8945.70 | E141: 8879.00 | F141: 8810.30 | G141: 8743.60 | H141: 9014.40 | I141: 9081.10 | J141: 9149.80 | K141: 9012.4 | L141: 8877 | M141: 4.42229
A142: 133 | B142: MFSL | C142: 834.55 | D142: 835.70 | E142: 827.25 | F142: 819.95 | G142: 811.50 | H142: 843.00 | I142: 851.45 | J142: 858.75 | K142: 844.15 | L142: 828.4 | M142: 1.70928
A143: 134 | B143: MAXHEALTH | C143: 385.6 | D143: 386.07 | E143: 378.38 | F143: 371.17 | G143: 363.48 | H143: 393.28 | I143: 400.97 | J143: 408.18 | K143: 393.75 | L143: 378.85 | M143: 31.00436
A144: 135 | B144: METROPOLIS | C144: 1452.45 | D144: 1454.90 | E144: 1437.80 | F144: 1423.15 | G144: 1406.05 | H144: 1469.55 | I144: 1486.65 | J144: 1501.30 | K144: 1472 | L144: 1440.25 | M144: 1.79202
A145: 136 | B145: MINDTREE | C145: 3533.35 | D145: 3519.62 | E145: 3490.58 | F145: 3447.82 | G145: 3418.78 | H145: 3562.38 | I145: 3591.42 | J145: 3634.18 | K145: 3548.65 | L145: 3476.85 | M145: 4.47708
A146: 137 | B146: MPHASIS | C146: 2411.2 | D146: 2394.40 | E146: 2369.80 | F146: 2328.40 | G146: 2303.80 | H146: 2435.80 | I146: 2460.40 | J146: 2501.80 | K146: 2419 | L146: 2353 | M146: 4.62934
A147: 138 | B147: MUTHOOTFIN | C147: 1060.5 | D147: 1063.12 | E147: 1049.38 | F147: 1038.27 | G147: 1024.53 | H147: 1074.23 | I147: 1087.97 | J147: 1099.08 | K147: 1076.85 | L147: 1052 | M147: 15.78967
A148: 139 | B148: NMDC | C148: 116.9 | D148: 116.47 | E148: 115.78 | F148: 114.67 | G148: 113.98 | H148: 117.58 | I148: 118.27 | J148: 119.38 | K148: 117.15 | L148: 115.35 | M148: 134.08623
A149: 140 | B149: NTPC | C149: 160.8 | D149: 161.12 | E149: 159.58 | F149: 158.37 | G149: 156.83 | H149: 162.33 | I149: 163.87 | J149: 165.08 | K149: 162.65 | L149: 159.9 | M149: 95.85888
A150: 141 | B150: NATIONALUM | C150: 81.25 | D150: 81.58 | E150: 80.37 | F150: 79.48 | G150: 78.27 | H150: 82.47 | I150: 83.68 | J150: 84.57 | K150: 82.8 | L150: 80.7 | M150: 145.38447
A151: 142 | B151: NAVINFLUOR | C151: 4420.9 | D151: 4424.42 | E151: 4382.48 | F151: 4344.07 | G151: 4302.13 | H151: 4462.83 | I151: 4504.77 | J151: 4543.18 | K151: 4466.35 | L151: 4386 | M151: 0.99369
A152: 143 | B152: NESTLEIND | C152: 19557.65 | D152: 19590.13 | E152: 19447.52 | F152: 19337.38 | G152: 19194.77 | H152: 19700.27 | I152: 19842.88 | J152: 19953.02 | K152: 19732.75 | L152: 19480 | M152: 0.48921
A153: 144 | B153: NAM-INDIA | C153: 313.8 | D153: 315.22 | E153: 310.43 | F153: 307.07 | G153: 302.28 | H153: 318.58 | I153: 323.37 | J153: 326.73 | K153: 320 | L153: 311.85 | M153: 6.52451
A154: 145 | B154: OBEROIRLTY | C154: 978.65 | D154: 975.42 | E154: 956.13 | F154: 933.62 | G154: 914.33 | H154: 997.93 | I154: 1017.22 | J154: 1039.73 | K154: 994.7 | L154: 952.9 | M154: 10.60074
A155: 146 | B155: ONGC | C155: 135.55 | D155: 136.18 | E155: 134.07 | F155: 132.58 | G155: 130.47 | H155: 137.67 | I155: 139.78 | J155: 141.27 | K155: 138.3 | L155: 134.7 | M155: 425.97708
A156: 147 | B156: OIL | C156: 191.65 | D156: 191.78 | E156: 189.47 | F156: 187.28 | G156: 184.97 | H156: 193.97 | I156: 196.28 | J156: 198.47 | K156: 194.1 | L156: 189.6 | M156: 25.21236
A157: 148 | B157: PAYTM | C157: 786.2 | D157: 787.83 | E157: 780.87 | F157: 775.53 | G157: 768.57 | H157: 793.17 | I157: 800.13 | J157: 805.47 | K157: 794.8 | L157: 782.5 | M157: 14.01288
A158: 149 | B158: OFSS | C158: 3347.7 | D158: 3351.22 | E158: 3322.53 | F158: 3297.37 | G158: 3268.68 | H158: 3376.38 | I158: 3405.07 | J158: 3430.23 | K158: 3379.9 | L158: 3326.05 | M158: 0.62023
A159: 150 | B159: POLICYBZR | C159: 560.2 | D159: 559.65 | E159: 549.80 | F159: 539.40 | G159: 529.55 | H159: 570.05 | I159: 579.90 | J159: 590.30 | K159: 569.5 | L159: 549.25 | M159: 8.71833
A160: 151 | B160: PIIND | C160: 3423.45 | D160: 3433.08 | E160: 3392.17 | F160: 3360.88 | G160: 3319.97 | H160: 3464.37 | I160: 3505.28 | J160: 3536.57 | K160: 3474 | L160: 3401.8 | M160: 1.55825
A161: 152 | B161: PAGEIND | C161: 50041.9 | D161: 49760.58 | E161: 49348.72 | F161: 48655.53 | G161: 48243.67 | H161: 50453.77 | I161: 50865.63 | J161: 51558.82 | K161: 50172.45 | L161: 49067.4 | M161: 0.12397
A162: 153 | B162: PERSISTENT | C162: 3833.6 | D162: 3827.37 | E162: 3761.18 | F162: 3688.77 | G162: 3622.58 | H162: 3899.78 | I162: 3965.97 | J162: 4038.38 | K162: 3893.55 | L162: 3754.95 | M162: 3.15219
A163: 154 | B163: PETRONET | C163: 215 | D163: 214.87 | E163: 213.73 | F163: 212.47 | G163: 211.33 | H163: 216.13 | I163: 217.27 | J163: 218.53 | K163: 216 | L163: 213.6 | M163: 7.8973
A164: 155 | B164: PIDILITIND | C164: 2723.25 | D164: 2720.08 | E164: 2705.17 | F164: 2687.08 | G164: 2672.17 | H164: 2738.17 | I164: 2753.08 | J164: 2771.17 | K164: 2735 | L164: 2702 | M164: 2.05978
A165: 156 | B165: PEL | C165: 1961.45 | D165: 1966.27 | E165: 1947.18 | F165: 1932.92 | G165: 1913.83 | H165: 1980.53 | I165: 1999.62 | J165: 2013.88 | K165: 1985.35 | L165: 1952 | M165: 5.03438
A166: 157 | B166: POLYCAB | C166: 2459.7 | D166: 2454.52 | E166: 2440.18 | F166: 2420.67 | G166: 2406.33 | H166: 2474.03 | I166: 2488.37 | J166: 2507.88 | K166: 2468.85 | L166: 2435 | M166: 1.72105
A167: 158 | B167: PFC | C167: 118.6 | D167: 118.68 | E167: 117.27 | F167: 115.93 | G167: 114.52 | H167: 120.02 | I167: 121.43 | J167: 122.77 | K167: 120.1 | L167: 117.35 | M167: 38.64394
A168: 159 | B168: POWERGRID | C168: 231.35 | D168: 230.27 | E168: 228.83 | F168: 226.32 | G168: 224.88 | H168: 232.78 | I168: 234.22 | J168: 236.73 | K168: 231.7 | L168: 227.75 | M168: 85.20364
A169: 160 | B169: PRESTIGE | C169: 462.8 | D169: 459.43 | E169: 450.87 | F169: 438.93 | G169: 430.37 | H169: 471.37 | I169: 479.93 | J169: 491.87 | K169: 468 | L169: 447.5 | M169: 5.4409
A170: 161 | B170: PGHH | C170: 14576.55 | D170: 14676.88 | E170: 14379.77 | F170: 14182.98 | G170: 13885.87 | H170: 14873.67 | I170: 15170.78 | J170: 15367.57 | K170: 14974 | L170: 14480.1 | M170: 0.08849
A171: 162 | B171: PNB | C171: 34.15 | D171: 34.30 | E171: 33.90 | F171: 33.65 | G171: 33.25 | H171: 34.55 | I171: 34.95 | J171: 35.20 | K171: 34.7 | L171: 34.05 | M171: 260.13767
A172: 163 | B172: RECLTD | C172: 105.45 | D172: 105.57 | E172: 104.68 | F172: 103.92 | G172: 103.03 | H172: 106.33 | I172: 107.22 | J172: 107.98 | K172: 106.45 | L172: 104.8 | M172: 52.86338
A173: 164 | B173: RELIANCE | C173: 2661.3 | D173: 2656.83 | E173: 2644.67 | F173: 2628.03 | G173: 2615.87 | H173: 2673.47 | I173: 2685.63 | J173: 2702.27 | K173: 2669 | L173: 2640.2 | M173: 34.1973
A174: 165 | B174: SBICARD | C174: 957.85 | D174: 961.32 | E174: 939.63 | F174: 921.42 | G174: 899.73 | H174: 979.53 | I174: 1001.22 | J174: 1019.43 | K174: 983 | L174: 943.1 | M174: 65.79065
A175: 166 | B175: SBILIFE | C175: 1324.2 | D175: 1320.18 | E175: 1307.37 | F175: 1290.53 | G175: 1277.72 | H175: 1337.02 | I175: 1349.83 | J175: 1366.67 | K175: 1333 | L175: 1303.35 | M175: 14.98235
A176: 167 | B176: SRF | C176: 2519.3 | D176: 2510.03 | E176: 2480.27 | F176: 2441.23 | G176: 2411.47 | H176: 2549.07 | I176: 2578.83 | J176: 2617.87 | K176: 2539.8 | L176: 2471 | M176: 7.6167
A177: 168 | B177: SHREECEM | C177: 21622.5 | D177: 21499.13 | E177: 21325.92 | F177: 21029.33 | G177: 20856.12 | H177: 21795.72 | I177: 21968.93 | J177: 22265.52 | K177: 21672.35 | L177: 21202.55 | M177: 0.27367
A178: 169 | B178: SRTRANSFIN | C178: 1348.45 | D178: 1346.92 | E178: 1328.58 | F178: 1308.72 | G178: 1290.38 | H178: 1366.78 | I178: 1385.12 | J178: 1404.98 | K178: 1365.25 | L178: 1327.05 | M178: 8.76771
A179: 170 | B179: SIEMENS | C179: 2878.05 | D179: 2887.22 | E179: 2854.93 | F179: 2831.82 | G179: 2799.53 | H179: 2910.33 | I179: 2942.62 | J179: 2965.73 | K179: 2919.5 | L179: 2864.1 | M179: 2.23409
A180: 171 | B180: SONACOMS | C180: 518.1 | D180: 519.93 | E180: 505.37 | F180: 492.63 | G180: 478.07 | H180: 532.67 | I180: 547.23 | J180: 559.97 | K180: 534.5 | L180: 507.2 | M180: 592.49131
A181: 172 | B181: SBIN | C181: 532.35 | D181: 531.12 | E181: 527.43 | F181: 522.52 | G181: 518.83 | H181: 536.03 | I181: 539.72 | J181: 544.63 | K181: 534.8 | L181: 526.2 | M181: 90.13662
A182: 173 | B182: SAIL | C182: 83.15 | D182: 82.83 | E182: 82.37 | F182: 81.58 | G182: 81.12 | H182: 83.62 | I182: 84.08 | J182: 84.87 | K182: 83.3 | L182: 82.05 | M182: 203.83265
A183: 174 | B183: SUNPHARMA | C183: 916.75 | D183: 910.32 | E183: 901.63 | F183: 886.52 | G183: 877.83 | H183: 925.43 | I183: 934.12 | J183: 949.23 | K183: 919 | L183: 895.2 | M183: 29.89998
A184: 175 | B184: SUNTV | C184: 479.55 | D184: 481.98 | E184: 475.17 | F184: 470.78 | G184: 463.97 | H184: 486.37 | I184: 493.18 | J184: 497.57 | K184: 488.8 | L184: 477.6 | M184: 6.87377
A185: 176 | B185: SYNGENE | C185: 595.85 | D185: 593.28 | E185: 586.67 | F185: 577.48 | G185: 570.87 | H185: 602.47 | I185: 609.08 | J185: 618.27 | K185: 599.9 | L185: 584.1 | M185: 4.26037
A186: 177 | B186: TVSMOTOR | C186: 974 | D186: 978.63 | E186: 966.37 | F186: 958.73 | G186: 946.47 | H186: 986.27 | I186: 998.53 | J186: 1006.17 | K186: 990.9 | L186: 971 | M186: 21.49414
A187: 178 | B187: TATACHEM | C187: 1118.25 | D187: 1110.50 | E187: 1098.75 | F187: 1079.25 | G187: 1067.50 | H187: 1130.00 | I187: 1141.75 | J187: 1161.25 | K187: 1122.25 | L187: 1091 | M187: 20.42013
A188: 179 | B188: TATACOMM | C188: 1086.4 | D188: 1082.25 | E188: 1074.50 | F188: 1062.60 | G188: 1054.85 | H188: 1094.15 | I188: 1101.90 | J188: 1113.80 | K188: 1090 | L188: 1070.35 | M188: 2.38323
A189: 180 | B189: TCS | C189: 3381.25 | D189: 3378.42 | E189: 3364.83 | F189: 3348.42 | G189: 3334.83 | H189: 3394.83 | I189: 3408.42 | J189: 3424.83 | K189: 3392 | L189: 3362 | M189: 14.30659
A190: 181 | B190: TATACONSUM | C190: 807.85 | D190: 804.22 | E190: 794.63 | F190: 781.42 | G190: 771.83 | H190: 817.43 | I190: 827.02 | J190: 840.23 | K190: 813.8 | L190: 791 | M190: 31.9136
A191: 182 | B191: TATAELXSI | C191: 10614.15 | D191: 10625.70 | E191: 10551.45 | F191: 10488.75 | G191: 10414.50 | H191: 10688.40 | I191: 10762.65 | J191: 10825.35 | K191: 10699.95 | L191: 10563 | M191: 2.51023
A192: 183 | B192: TATAMOTORS | C192: 484.8 | D192: 483.62 | E192: 480.43 | F192: 476.07 | G192: 472.88 | H192: 487.98 | I192: 491.17 | J192: 495.53 | K192: 486.8 | L192: 479.25 | M192: 120.70974
A193: 184 | B193: TATAPOWER | C193: 237.95 | D193: 237.88 | E193: 235.97 | F193: 233.98 | G193: 232.07 | H193: 239.87 | I193: 241.78 | J193: 243.77 | K193: 239.8 | L193: 235.9 | M193: 152.38636
A194: 185 | B194: TATASTEEL | C194: 112.55 | D194: 112.32 | E194: 111.63 | F194: 110.72 | G194: 110.03 | H194: 113.23 | I194: 113.92 | J194: 114.83 | K194: 113 | L194: 111.4 | M194: 493.96425
A195: 186 | B195: TECHM | C195: 1105.15 | D195: 1100.82 | E195: 1092.43 | F195: 1079.72 | G195: 1071.33 | H195: 1113.53 | I195: 1121.92 | J195: 1134.63 | K195: 1109.2 | L195: 1088.1 | M195: 30.41422
A196: 187 | B196: RAMCOCEM | C196: 774.05 | D196: 765.15 | E196: 753.90 | F196: 733.75 | G196: 722.50 | H196: 785.30 | I196: 796.55 | J196: 816.70 | K196: 776.4 | L196: 745 | M196: 9.58381
A197: 188 | B197: TITAN | C197: 2478.7 | D197: 2483.30 | E197: 2462.70 | F197: 2446.70 | G197: 2426.10 | H197: 2499.30 | I197: 2519.90 | J197: 2535.90 | K197: 2503.9 | L197: 2467.3 | M197: 8.27663
A198: 189 | B198: TORNTPHARM | C198: 1561 | D198: 1559.20 | E198: 1548.60 | F198: 1536.20 | G198: 1525.60 | H198: 1571.60 | I198: 1582.20 | J198: 1594.60 | K198: 1569.8 | L198: 1546.8 | M198: 1.46448
A199: 190 | B199: TORNTPOWER | C199: 587.5 | D199: 584.90 | E199: 579.90 | F199: 572.30 | G199: 567.30 | H199: 592.50 | I199: 597.50 | J199: 605.10 | K199: 589.9 | L199: 577.3 | M199: 4.16249
A200: 191 | B200: TRENT | C200: 1455.5 | D200: 1475.42 | E200: 1428.33 | F200: 1401.17 | G200: 1354.08 | H200: 1502.58 | I200: 1549.67 | J200: 1576.83 | K200: 1522.5 | L200: 1448.25 | M200: 17.48382
A201: 192 | B201: TRIDENT | C201: 38.1 | D201: 38.15 | E201: 37.80 | F201: 37.50 | G201: 37.15 | H201: 38.45 | I201: 38.80 | J201: 39.10 | K201: 38.5 | L201: 37.85 | M201: 75.29834
A202: 193 | B202: UPL | C202: 773.95 | D202: 779.48 | E202: 767.47 | F202: 760.98 | G202: 748.97 | H202: 785.97 | I202: 797.98 | J202: 804.47 | K202: 791.5 | L202: 773 | M202: 22.39104
A203: 194 | B203: ULTRACEMCO | C203: 6703.95 | D203: 6674.43 | E203: 6638.62 | F203: 6573.28 | G203: 6537.47 | H203: 6739.77 | I203: 6775.58 | J203: 6840.92 | K203: 6710.25 | L203: 6609.1 | M203: 3.00992
A204: 195 | B204: UNIONBANK | C204: 41.3 | D204: 41.23 | E204: 40.82 | F204: 40.33 | G204: 39.92 | H204: 41.72 | I204: 42.13 | J204: 42.62 | K204: 41.65 | L204: 40.75 | M204: 83.38863
A205: 196 | B205: UBL | C205: 1702.3 | D205: 1682.20 | E205: 1657.95 | F205: 1613.60 | G205: 1589.35 | H205: 1726.55 | I205: 1750.80 | J205: 1795.15 | K205: 1706.45 | L205: 1637.85 | M205: 4.00273
... 29 more rows

Sheet MidCap Intra
L5: Back To Main Page
A6: FOR INTRA DAY TRADING | K6: =Main!B10 -> 2022-08-19
A9: Sr.no | B9: Scrip | C9: CLOSE RATE | D9: Pivot Point | E9: Supports | H9: Resistances
E10: S1 | F10: S2 | G10: S3 | H10: R1 | I10: R2 | J10: R3 | K10: HIGH | L10: LOW | M10: Total Trade Quanity in Lakhs
A11: 1 | B11: 3MINDIA | C11: 23257.4 | D11: 22919.13 | E11: 22538.27 | F11: 21819.13 | G11: 21438.27 | H11: 23638.27 | I11: 24019.13 | J11: 24738.27 | K11: 23300 | L11: 22200 | M11: 0.08464
A12: 2 | B12: ABB | C12: 2890.5 | D12: 2899.83 | E12: 2864.67 | F12: 2838.83 | G12: 2803.67 | H12: 2925.67 | I12: 2960.83 | J12: 2986.67 | K12: 2935 | L12: 2874 | M12: 4.59776
A13: 3 | B13: ACC | C13: 2322.85 | D13: 2310.95 | E13: 2287.10 | F13: 2251.35 | G13: 2227.50 | H13: 2346.70 | I13: 2370.55 | J13: 2406.30 | K13: 2334.8 | L13: 2275.2 | M13: 5.12571
A14: 4 | B14: AIAENG | C14: 2540.6 | D14: 2541.55 | E14: 2503.10 | F14: 2465.60 | G14: 2427.15 | H14: 2579.05 | I14: 2617.50 | J14: 2655.00 | K14: 2580 | L14: 2504.05 | M14: 0.6292
A15: 5 | B15: APLAPOLLO | C15: 1045.1 | D15: 1057.80 | E15: 1027.80 | F15: 1010.50 | G15: 980.50 | H15: 1075.10 | I15: 1105.10 | J15: 1122.40 | K15: 1087.8 | L15: 1040.5 | M15: 3.65882
A16: 6 | B16: AUBANK | C16: 645.35 | D16: 643.92 | E16: 640.68 | F16: 636.02 | G16: 632.78 | H16: 648.58 | I16: 651.82 | J16: 656.48 | K16: 647.15 | L16: 639.25 | M16: 9.83261
A17: 7 | B17: AARTIDRUGS | C17: 461.35 | D17: 460.62 | E17: 456.78 | F17: 452.22 | G17: 448.38 | H17: 465.18 | I17: 469.02 | J17: 473.58 | K17: 464.45 | L17: 456.05 | M17: 3.1146
A18: 8 | B18: AAVAS | C18: 2260.45 | D18: 2239.75 | E18: 2202.25 | F18: 2144.05 | G18: 2106.55 | H18: 2297.95 | I18: 2335.45 | J18: 2393.65 | K18: 2277.25 | L18: 2181.55 | M18: 1.17279
A19: 9 | B19: ABBOTINDIA | C19: 19008.15 | D19: 19074.38 | E19: 18848.77 | F19: 18689.38 | G19: 18463.77 | H19: 19233.77 | I19: 19459.38 | J19: 19618.77 | K19: 19300 | L19: 18915 | M19: 0.10684
A20: 10 | B20: ADANIENT | C20: 3153.65 | D20: 3114.55 | E20: 3043.10 | F20: 2932.55 | G20: 2861.10 | H20: 3225.10 | I20: 3296.55 | J20: 3407.10 | K20: 3186 | L20: 3004 | M20: 35.02295
A21: 11 | B21: ADANIGREEN | C21: 2296.35 | D21: 2280.35 | E21: 2217.00 | F21: 2137.65 | G21: 2074.30 | H21: 2359.70 | I21: 2423.05 | J21: 2502.40 | K21: 2343.7 | L21: 2201 | M21: 28.78895
A22: 12 | B22: ADANIPORTS | C22: 833.05 | D22: 829.98 | E22: 823.52 | F22: 813.98 | G22: 807.52 | H22: 839.52 | I22: 845.98 | J22: 855.52 | K22: 836.45 | L22: 820.45 | M22: 38.36669
A23: 13 | B23: ATGL | C23: 3463.3 | D23: 3464.13 | E23: 3433.27 | F23: 3403.23 | G23: 3372.37 | H23: 3494.17 | I23: 3525.03 | J23: 3555.07 | K23: 3495 | L23: 3434.1 | M23: 5.82583
A24: 14 | B24: ADANITRANS | C24: 3599.55 | D24: 3594.63 | E24: 3560.87 | F24: 3522.18 | G24: 3488.42 | H24: 3633.32 | I24: 3667.08 | J24: 3705.77 | K24: 3628.4 | L24: 3555.95 | M24: 2.38819
A25: 15 | B25: ABCAPITAL | C25: 112.5 | D25: 112.57 | E25: 111.68 | F25: 110.87 | G25: 109.98 | H25: 113.38 | I25: 114.27 | J25: 115.08 | K25: 113.45 | L25: 111.75 | M25: 19.23461
A26: 16 | B26: ABFRL | C26: 289.3 | D26: 290.98 | E26: 286.67 | F26: 284.03 | G26: 279.72 | H26: 293.62 | I26: 297.93 | J26: 300.57 | K26: 295.3 | L26: 288.35 | M26: 25.98824
A27: 17 | B27: ABSLAMC | C27: 447.05 | D27: 449.13 | E27: 442.32 | F27: 437.58 | G27: 430.77 | H27: 453.87 | I27: 460.68 | J27: 465.42 | K27: 455.95 | L27: 444.4 | M27: 0.83714
A28: 18 | B28: ADVENZYMES | C28: 266.15 | D28: 267.00 | E28: 264.15 | F28: 262.15 | G28: 259.30 | H28: 269.00 | I28: 271.85 | J28: 273.85 | K28: 269.85 | L28: 265 | M28: 1.95866
A29: 19 | B29: AEGISCHEM | C29: 254.3 | D29: 256.32 | E29: 249.48 | F29: 244.67 | G29: 237.83 | H29: 261.13 | I29: 267.97 | J29: 272.78 | K29: 263.15 | L29: 251.5 | M29: 7.45349
A30: 20 | B30: AFFLE | C30: 1208.55 | D30: 1210.27 | E30: 1195.28 | F30: 1182.02 | G30: 1167.03 | H30: 1223.53 | I30: 1238.52 | J30: 1251.78 | K30: 1225.25 | L30: 1197 | M30: 3.81275
A31: 21 | B31: AJANTPHARM | C31: 1260.75 | D31: 1265.90 | E31: 1250.85 | F31: 1240.95 | G31: 1225.90 | H31: 1275.80 | I31: 1290.85 | J31: 1300.75 | K31: 1280.95 | L31: 1256 | M31: 0.43415
A32: 22 | B32: APLLTD | C32: 655.15 | D32: 655.35 | E32: 651.80 | F32: 648.45 | G32: 644.90 | H32: 658.70 | I32: 662.25 | J32: 665.60 | K32: 658.9 | L32: 652 | M32: 0.95704
A33: 23 | B33: ALKEM | C33: 2923.95 | D33: 2925.68 | E33: 2904.37 | F33: 2884.78 | G33: 2863.47 | H33: 2945.27 | I33: 2966.58 | J33: 2986.17 | K33: 2947 | L33: 2906.1 | M33: 1.69366
A34: 24 | B34: ALKYLAMINE | C34: 3045.5 | D34: 3066.70 | E34: 3017.25 | F34: 2989.00 | G34: 2939.55 | H34: 3094.95 | I34: 3144.40 | J34: 3172.65 | K34: 3116.15 | L34: 3038.45 | M34: 0.32623
A35: 25 | B35: ALLCARGO | C35: 309.9 | D35: 310.72 | E35: 307.18 | F35: 304.47 | G35: 300.93 | H35: 313.43 | I35: 316.97 | J35: 319.68 | K35: 314.25 | L35: 308 | M35: 4.79832
A36: 26 | B36: ALOKINDS | C36: 19.45 | D36: 19.47 | E36: 19.33 | F36: 19.22 | G36: 19.08 | H36: 19.58 | I36: 19.72 | J36: 19.83 | K36: 19.6 | L36: 19.35 | M36: 14.00744
A37: 27 | B37: AMARAJABAT | C37: 523.45 | D37: 521.55 | E37: 518.15 | F37: 512.85 | G37: 509.45 | H37: 526.85 | I37: 530.25 | J37: 535.55 | K37: 524.95 | L37: 516.25 | M37: 3.15317
A38: 28 | B38: AMBER | C38: 2304.45 | D38: 2310.32 | E38: 2289.13 | F38: 2273.82 | G38: 2252.63 | H38: 2325.63 | I38: 2346.82 | J38: 2362.13 | K38: 2331.5 | L38: 2295 | M38: 0.97355
A39: 29 | B39: AMBUJACEM | C39: 409.6 | D39: 406.87 | E39: 399.23 | F39: 388.87 | G39: 381.23 | H39: 417.23 | I39: 424.87 | J39: 435.23 | K39: 414.5 | L39: 396.5 | M39: 156.35959
A40: 30 | B40: ANGELONE | C40: 1331.15 | D40: 1331.98 | E40: 1309.97 | F40: 1288.78 | G40: 1266.77 | H40: 1353.17 | I40: 1375.18 | J40: 1396.37 | K40: 1354 | L40: 1310.8 | M40: 5.62139
A41: 31 | B41: ANURAS | C41: 757.2 | D41: 761.17 | E41: 748.13 | F41: 739.07 | G41: 726.03 | H41: 770.23 | I41: 783.27 | J41: 792.33 | K41: 774.2 | L41: 752.1 | M41: 0.64086
A42: 32 | B42: APOLLOHOSP | C42: 4266.65 | D42: 4285.08 | E42: 4231.57 | F42: 4196.48 | G42: 4142.97 | H42: 4320.17 | I42: 4373.68 | J42: 4408.77 | K42: 4338.6 | L42: 4250 | M42: 5.80509
A43: 33 | B43: APOLLOTYRE | C43: 266.5 | D43: 263.83 | E43: 260.32 | F43: 254.13 | G43: 250.62 | H43: 270.02 | I43: 273.53 | J43: 279.72 | K43: 267.35 | L43: 257.65 | M43: 58.40246
A44: 34 | B44: APTUS | C44: 318.35 | D44: 317.85 | E44: 314.05 | F44: 309.75 | G44: 305.95 | H44: 322.15 | I44: 325.95 | J44: 330.25 | K44: 321.65 | L44: 313.55 | M44: 3.44239
A45: 35 | B45: ASAHIINDIA | C45: 575.55 | D45: 574.58 | E45: 570.17 | F45: 564.78 | G45: 560.37 | H45: 579.97 | I45: 584.38 | J45: 589.77 | K45: 579 | L45: 569.2 | M45: 1.21646
A46: 36 | B46: ASHOKLEY | C46: 147.35 | D46: 147.17 | E46: 146.23 | F46: 145.12 | G46: 144.18 | H46: 148.28 | I46: 149.22 | J46: 150.33 | K46: 148.1 | L46: 146.05 | M46: 128.45301
A47: 37 | B47: ASIANPAINT | C47: 3535.35 | D47: 3531.20 | E47: 3519.70 | F47: 3504.05 | G47: 3492.55 | H47: 3546.85 | I47: 3558.35 | J47: 3574.00 | K47: 3542.7 | L47: 3515.55 | M47: 5.99877
A48: 38 | B48: ASTERDM | C48: 208.2 | D48: 209.85 | E48: 205.15 | F48: 202.10 | G48: 197.40 | H48: 212.90 | I48: 217.60 | J48: 220.65 | K48: 214.55 | L48: 206.8 | M48: 8.68081
A49: 39 | B49: ASTRAZEN | C49: 3053.5 | D49: 3063.83 | E49: 3032.67 | F49: 3011.83 | G49: 2980.67 | H49: 3084.67 | I49: 3115.83 | J49: 3136.67 | K49: 3095 | L49: 3043 | M49: 0.06266
A50: 40 | B50: ASTRAL | C50: 2040.8 | D50: 2031.92 | E50: 2012.83 | F50: 1984.87 | G50: 1965.78 | H50: 2059.88 | I50: 2078.97 | J50: 2106.93 | K50: 2051 | L50: 2003.95 | M50: 2.23392
A51: 41 | B51: ATUL | C51: 9304.95 | D51: 9345.62 | E51: 9243.23 | F51: 9181.52 | G51: 9079.13 | H51: 9407.33 | I51: 9509.72 | J51: 9571.43 | K51: 9448 | L51: 9283.9 | M51: 0.17808
A52: 42 | B52: AUROPHARMA | C52: 583.1 | D52: 578.55 | E52: 570.65 | F52: 558.20 | G52: 550.30 | H52: 591.00 | I52: 598.90 | J52: 611.35 | K52: 586.45 | L52: 566.1 | M52: 21.89469
A53: 43 | B53: AVANTIFEED | C53: 473.6 | D53: 474.98 | E53: 467.37 | F53: 461.13 | G53: 453.52 | H53: 481.22 | I53: 488.83 | J53: 495.07 | K53: 482.6 | L53: 468.75 | M53: 2.26563
A54: 44 | B54: DMART | C54: 4460.95 | D54: 4451.70 | E54: 4410.30 | F54: 4359.65 | G54: 4318.25 | H54: 4502.35 | I54: 4543.75 | J54: 4594.40 | K54: 4493.1 | L54: 4401.05 | M54: 4.68551
A55: 45 | B55: AXISBANK | C55: 765.05 | D55: 767.72 | E55: 759.43 | F55: 753.82 | G55: 745.53 | H55: 773.33 | I55: 781.62 | J55: 787.23 | K55: 776 | L55: 762.1 | M55: 94.49924
A56: 46 | B56: BASF | C56: 3287 | D56: 3280.30 | E56: 3229.60 | F56: 3172.20 | G56: 3121.50 | H56: 3337.70 | I56: 3388.40 | J56: 3445.80 | K56: 3331 | L56: 3222.9 | M56: 0.51538
A57: 47 | B57: BSE | C57: 660.4 | D57: 660.15 | E57: 655.30 | F57: 650.20 | G57: 645.35 | H57: 665.25 | I57: 670.10 | J57: 675.20 | K57: 665 | L57: 655.05 | M57: 6.29693
A58: 48 | B58: BAJAJ-AUTO | C58: 4060.65 | D58: 4060.05 | E58: 4041.10 | F58: 4021.55 | G58: 4002.60 | H58: 4079.60 | I58: 4098.55 | J58: 4118.10 | K58: 4079 | L58: 4040.5 | M58: 4.51908
A59: 49 | B59: BAJAJELEC | C59: 1226.15 | D59: 1207.32 | E59: 1174.63 | F59: 1123.12 | G59: 1090.43 | H59: 1258.83 | I59: 1291.52 | J59: 1343.03 | K59: 1240 | L59: 1155.8 | M59: 10.99035
A60: 50 | B60: BAJFINANCE | C60: 7488.25 | D60: 7509.82 | E60: 7430.83 | F60: 7373.42 | G60: 7294.43 | H60: 7567.23 | I60: 7646.22 | J60: 7703.63 | K60: 7588.8 | L60: 7452.4 | M60: 8.35354
A61: 51 | B61: BAJAJFINSV | C61: 16805.9 | D61: 16805.18 | E61: 16621.37 | F61: 16436.83 | G61: 16253.02 | H61: 16989.72 | I61: 17173.53 | J61: 17358.07 | K61: 16989 | L61: 16620.65 | M61: 3.61659
A62: 52 | B62: BAJAJHLDNG | C62: 5531 | D62: 5561.95 | E62: 5423.90 | F62: 5316.80 | G62: 5178.75 | H62: 5669.05 | I62: 5807.10 | J62: 5914.20 | K62: 5700 | L62: 5454.85 | M62: 3.05032
A63: 53 | B63: BALAMINES | C63: 3628.65 | D63: 3641.37 | E63: 3592.73 | F63: 3556.82 | G63: 3508.18 | H63: 3677.28 | I63: 3725.92 | J63: 3761.83 | K63: 3690 | L63: 3605.45 | M63: 0.56036
A64: 54 | B64: BALKRISIND | C64: 2216.45 | D64: 2216.00 | E64: 2198.00 | F64: 2179.55 | G64: 2161.55 | H64: 2234.45 | I64: 2252.45 | J64: 2270.90 | K64: 2234 | L64: 2197.55 | M64: 2.79811
A65: 55 | B65: BALRAMCHIN | C65: 339.1 | D65: 340.30 | E65: 336.60 | F65: 334.10 | G65: 330.40 | H65: 342.80 | I65: 346.50 | J65: 349.00 | K65: 344 | L65: 337.8 | M65: 14.11668
A66: 56 | B66: BANDHANBNK | C66: 288.35 | D66: 287.13 | E66: 284.47 | F66: 280.58 | G66: 277.92 | H66: 291.02 | I66: 293.68 | J66: 297.57 | K66: 289.8 | L66: 283.25 | M66: 51.87431
A67: 57 | B67: BANKBARODA | C67: 123.9 | D67: 124.65 | E67: 122.30 | F67: 120.70 | G67: 118.35 | H67: 126.25 | I67: 128.60 | J67: 130.20 | K67: 127 | L67: 123.05 | M67: 263.52284
A68: 58 | B68: BANKINDIA | C68: 50.9 | D68: 50.90 | E68: 50.10 | F68: 49.30 | G68: 48.50 | H68: 51.70 | I68: 52.50 | J68: 53.30 | K68: 51.7 | L68: 50.1 | M68: 46.53861
A69: 59 | B69: MAHABANK | C69: 17.85 | D69: 17.90 | E69: 17.55 | F69: 17.25 | G69: 16.90 | H69: 18.20 | I69: 18.55 | J69: 18.85 | K69: 18.25 | L69: 17.6 | M69: 35.5075
A70: 60 | B70: BATAINDIA | C70: 1922.05 | D70: 1932.20 | E70: 1907.00 | F70: 1891.95 | G70: 1866.75 | H70: 1947.25 | I70: 1972.45 | J70: 1987.50 | K70: 1957.4 | L70: 1917.15 | M70: 3.88271
A71: 61 | B71: BAYERCROP | C71: 5316.2 | D71: 5335.22 | E71: 5265.43 | F71: 5214.67 | G71: 5144.88 | H71: 5385.98 | I71: 5455.77 | J71: 5506.53 | K71: 5405 | L71: 5284.45 | M71: 0.0635
A72: 62 | B72: BERGEPAINT | C72: 707.15 | D72: 705.82 | E72: 701.33 | F72: 695.52 | G72: 691.03 | H72: 711.63 | I72: 716.12 | J72: 721.93 | K72: 710.3 | L72: 700 | M72: 7.54334
A73: 63 | B73: BDL | C73: 844.5 | D73: 849.32 | E73: 835.73 | F73: 826.97 | G73: 813.38 | H73: 858.08 | I73: 871.67 | J73: 880.43 | K73: 862.9 | L73: 840.55 | M73: 7.17825
A74: 64 | B74: BEL | C74: 288.75 | D74: 290.00 | E74: 285.50 | F74: 282.25 | G74: 277.75 | H74: 293.25 | I74: 297.75 | J74: 301.00 | K74: 294.5 | L74: 286.75 | M74: 53.78175
A75: 65 | B75: BHARATFORG | C75: 749.95 | D75: 755.33 | E75: 742.02 | F75: 734.08 | G75: 720.77 | H75: 763.27 | I75: 776.58 | J75: 784.52 | K75: 768.65 | L75: 747.4 | M75: 20.67453
A76: 66 | B76: BHEL | C76: 56.2 | D76: 55.35 | E76: 54.15 | F76: 52.10 | G76: 50.90 | H76: 57.40 | I76: 58.60 | J76: 60.65 | K76: 56.55 | L76: 53.3 | M76: 516.98789
A77: 67 | B77: BPCL | C77: 347.05 | D77: 348.68 | E77: 343.82 | F77: 340.58 | G77: 335.72 | H77: 351.92 | I77: 356.78 | J77: 360.02 | K77: 353.55 | L77: 345.45 | M77: 35.59485
A78: 68 | B78: BHARTIARTL | C78: 733.2 | D78: 730.03 | E78: 724.07 | F78: 714.93 | G78: 708.97 | H78: 739.17 | I78: 745.13 | J78: 754.27 | K78: 736 | L78: 720.9 | M78: 103.54897
A79: 69 | B79: BIOCON | C79: 315 | D79: 315.45 | E79: 312.55 | F79: 310.10 | G79: 307.20 | H79: 317.90 | I79: 320.80 | J79: 323.25 | K79: 318.35 | L79: 313 | M79: 12.62974
A80: 70 | B80: BIRLACORPN | C80: 1004.6 | D80: 993.93 | E80: 977.92 | F80: 951.23 | G80: 935.22 | H80: 1020.62 | I80: 1036.63 | J80: 1063.32 | K80: 1009.95 | L80: 967.25 | M80: 2.3922
A81: 71 | B81: BSOFT | C81: 334.5 | D81: 335.32 | E81: 331.78 | F81: 329.07 | G81: 325.53 | H81: 338.03 | I81: 341.57 | J81: 344.28 | K81: 338.85 | L81: 332.6 | M81: 20.01328
A82: 72 | B82: BLUEDART | C82: 8636.5 | D82: 8659.17 | E82: 8578.33 | F82: 8520.17 | G82: 8439.33 | H82: 8717.33 | I82: 8798.17 | J82: 8856.33 | K82: 8740 | L82: 8601 | M82: 0.0872
A83: 73 | B83: BLUESTARCO | C83: 1070.25 | D83: 1065.08 | E83: 1055.17 | F83: 1040.08 | G83: 1030.17 | H83: 1080.17 | I83: 1090.08 | J83: 1105.17 | K83: 1075 | L83: 1050 | M83: 1.17488
A84: 74 | B84: BBTC | C84: 892.15 | D84: 903.40 | E84: 877.10 | F84: 862.05 | G84: 835.75 | H84: 918.45 | I84: 944.75 | J84: 959.80 | K84: 929.7 | L84: 888.35 | M84: 1.07378
A85: 75 | B85: BORORENEW | C85: 595.9 | D85: 597.48 | E85: 591.42 | F85: 586.93 | G85: 580.87 | H85: 601.97 | I85: 608.03 | J85: 612.52 | K85: 603.55 | L85: 593 | M85: 3.23637
A86: 76 | B86: BOSCHLTD | C86: 17605.2 | D86: 17707.53 | E86: 17467.67 | F86: 17330.13 | G86: 17090.27 | H86: 17845.07 | I86: 18084.93 | J86: 18222.47 | K86: 17947.4 | L86: 17570 | M86: 0.41793
A87: 77 | B87: BRIGADE | C87: 498.55 | D87: 501.13 | E87: 494.42 | F87: 490.28 | G87: 483.57 | H87: 505.27 | I87: 511.98 | J87: 516.12 | K87: 507.85 | L87: 497 | M87: 1.57948
A88: 78 | B88: BCG | C88: 42.2 | D88: 41.97 | E88: 41.73 | F88: 41.27 | G88: 41.03 | H88: 42.43 | I88: 42.67 | J88: 43.13 | K88: 42.2 | L88: 41.5 | M88: 30.1044
A89: 79 | B89: BRITANNIA | C89: 3693.05 | D89: 3700.35 | E89: 3673.75 | F89: 3654.45 | G89: 3627.85 | H89: 3719.65 | I89: 3746.25 | J89: 3765.55 | K89: 3726.95 | L89: 3681.05 | M89: 2.32262
A90: 80 | B90: MAPMYINDIA | C90: 1305.85 | D90: 1311.83 | E90: 1296.02 | F90: 1286.18 | G90: 1270.37 | H90: 1321.67 | I90: 1337.48 | J90: 1347.32 | K90: 1327.65 | L90: 1302 | M90: 1.54315
A91: 81 | B91: CCL | C91: 430.55 | D91: 431.18 | E91: 426.37 | F91: 422.18 | G91: 417.37 | H91: 435.37 | I91: 440.18 | J91: 444.37 | K91: 436 | L91: 427 | M91: 1.65063
A92: 82 | B92: CESC | C92: 80.1 | D92: 80.45 | E92: 79.05 | F92: 78.00 | G92: 76.60 | H92: 81.50 | I92: 82.90 | J92: 83.95 | K92: 81.85 | L92: 79.4 | M92: 17.72962
A93: 83 | B93: CGPOWER | C93: 239.55 | D93: 241.42 | E93: 235.83 | F93: 232.12 | G93: 226.53 | H93: 245.13 | I93: 250.72 | J93: 254.43 | K93: 247 | L93: 237.7 | M93: 21.63612
A94: 84 | B94: CRISIL | C94: 3278.15 | D94: 3253.40 | E94: 3197.30 | F94: 3116.45 | G94: 3060.35 | H94: 3334.25 | I94: 3390.35 | J94: 3471.20 | K94: 3309.5 | L94: 3172.55 | M94: 0.61081
A95: 85 | B95: CSBBANK | C95: 207.15 | D95: 208.12 | E95: 205.53 | F95: 203.92 | G95: 201.33 | H95: 209.73 | I95: 212.32 | J95: 213.93 | K95: 210.7 | L95: 206.5 | M95: 1.53201
A96: 86 | B96: CANFINHOME | C96: 623.65 | D96: 624.10 | E96: 619.05 | F96: 614.45 | G96: 609.40 | H96: 628.70 | I96: 633.75 | J96: 638.35 | K96: 629.15 | L96: 619.5 | M96: 4.44619
A97: 87 | B97: CANBK | C97: 239.95 | D97: 239.85 | E97: 237.70 | F97: 235.45 | G97: 233.30 | H97: 242.10 | I97: 244.25 | J97: 246.50 | K97: 242 | L97: 237.6 | M97: 114.67757
A98: 88 | B98: CAPLIPOINT | C98: 796.3 | D98: 799.17 | E98: 790.83 | F98: 785.37 | G98: 777.03 | H98: 804.63 | I98: 812.97 | J98: 818.43 | K98: 807.5 | L98: 793.7 | M98: 0.4811
A99: 89 | B99: CGCL | C99: 679.25 | D99: 679.48 | E99: 674.77 | F99: 670.28 | G99: 665.57 | H99: 683.97 | I99: 688.68 | J99: 693.17 | K99: 684.2 | L99: 675 | M99: 0.17809
A100: 90 | B100: CARBORUNIV | C100: 829 | D100: 831.32 | E100: 822.68 | F100: 816.37 | G100: 807.73 | H100: 837.63 | I100: 846.27 | J100: 852.58 | K100: 839.95 | L100: 825 | M100: 0.87379
A101: 91 | B101: CASTROLIND | C101: 117.15 | D101: 116.85 | E101: 115.80 | F101: 114.45 | G101: 113.40 | H101: 118.20 | I101: 119.25 | J101: 120.60 | K101: 117.9 | L101: 115.5 | M101: 8.04791
A102: 92 | B102: CEATLTD | C102: 1371.55 | D102: 1376.40 | E102: 1361.40 | F102: 1351.25 | G102: 1336.25 | H102: 1386.55 | I102: 1401.55 | J102: 1411.70 | K102: 1391.4 | L102: 1366.25 | M102: 0.97936
A103: 93 | B103: CENTRALBK | C103: 18.4 | D103: 18.35 | E103: 18.05 | F103: 17.70 | G103: 17.40 | H103: 18.70 | I103: 19.00 | J103: 19.35 | K103: 18.65 | L103: 18 | M103: 39.33753
A104: 94 | B104: CDSL | C104: 1237.3 | D104: 1230.10 | E104: 1220.20 | F104: 1203.10 | G104: 1193.20 | H104: 1247.20 | I104: 1257.10 | J104: 1274.20 | K104: 1240 | L104: 1213 | M104: 5.62971
A105: 95 | B105: CENTURYPLY | C105: 661.3 | D105: 664.87 | E105: 643.73 | F105: 626.17 | G105: 605.03 | H105: 682.43 | I105: 703.57 | J105: 721.13 | K105: 686 | L105: 647.3 | M105: 4.18683
A106: 96 | B106: CENTURYTEX | C106: 868.35 | D106: 868.47 | E106: 861.28 | F106: 854.22 | G106: 847.03 | H106: 875.53 | I106: 882.72 | J106: 889.78 | K106: 875.65 | L106: 861.4 | M106: 1.28747
A107: 97 | B107: CERA | C107: 4890.5 | D107: 4889.43 | E107: 4851.07 | F107: 4811.63 | G107: 4773.27 | H107: 4928.87 | I107: 4967.23 | J107: 5006.67 | K107: 4927.8 | L107: 4850 | M107: 0.0637
A108: 98 | B108: CHALET | C108: 347.9 | D108: 347.90 | E108: 342.40 | F108: 336.90 | G108: 331.40 | H108: 353.40 | I108: 358.90 | J108: 364.40 | K108: 353.4 | L108: 342.4 | M108: 2.03441
A109: 99 | B109: CHAMBLFERT | C109: 342.5 | D109: 342.08 | E109: 339.92 | F109: 337.33 | G109: 335.17 | H109: 344.67 | I109: 346.83 | J109: 349.42 | K109: 344.25 | L109: 339.5 | M109: 11.62128
A110: 100 | B110: CHEMPLASTS | C110: 436.5 | D110: 441.50 | E110: 429.00 | F110: 421.50 | G110: 409.00 | H110: 449.00 | I110: 461.50 | J110: 469.00 | K110: 454 | L110: 434 | M110: 2.35129
A111: 101 | B111: CHOLAHLDNG | C111: 654.75 | D111: 656.62 | E111: 646.08 | F111: 637.42 | G111: 626.88 | H111: 665.28 | I111: 675.82 | J111: 684.48 | K111: 667.15 | L111: 647.95 | M111: 2.8911
A112: 102 | B112: CHOLAFIN | C112: 781.7 | D112: 784.23 | E112: 774.77 | F112: 767.83 | G112: 758.37 | H112: 791.17 | I112: 800.63 | J112: 807.57 | K112: 793.7 | L112: 777.3 | M112: 9.01648
A113: 103 | B113: CIPLA | C113: 1032.2 | D113: 1024.53 | E113: 1015.02 | F113: 997.83 | G113: 988.32 | H113: 1041.72 | I113: 1051.23 | J113: 1068.42 | K113: 1034.05 | L113: 1007.35 | M113: 12.0172
A114: 104 | B114: CUB | C114: 178.85 | D114: 178.32 | E114: 176.18 | F114: 173.52 | G114: 171.38 | H114: 180.98 | I114: 183.12 | J114: 185.78 | K114: 180.45 | L114: 175.65 | M114: 32.12799
A115: 105 | B115: CLEAN | C115: 1736.5 | D115: 1726.18 | E115: 1681.37 | F115: 1626.23 | G115: 1581.42 | H115: 1781.32 | I115: 1826.13 | J115: 1881.27 | K115: 1771 | L115: 1671.05 | M115: 5.01604
A116: 106 | B116: COALINDIA | C116: 221.75 | D116: 221.67 | E116: 220.68 | F116: 219.62 | G116: 218.63 | H116: 222.73 | I116: 223.72 | J116: 224.78 | K116: 222.65 | L116: 220.6 | M116: 42.33196
A117: 107 | B117: COCHINSHIP | C117: 342.25 | D117: 341.63 | E117: 338.12 | F117: 333.98 | G117: 330.47 | H117: 345.77 | I117: 349.28 | J117: 353.42 | K117: 345.15 | L117: 337.5 | M117: 2.29157
A118: 108 | B118: COFORGE | C118: 3900.6 | D118: 3874.63 | E118: 3829.27 | F118: 3757.93 | G118: 3712.57 | H118: 3945.97 | I118: 3991.33 | J118: 4062.67 | K118: 3920 | L118: 3803.3 | M118: 2.32795
A119: 109 | B119: COLPAL | C119: 1566.1 | D119: 1565.48 | E119: 1556.97 | F119: 1547.83 | G119: 1539.32 | H119: 1574.62 | I119: 1583.13 | J119: 1592.27 | K119: 1574 | L119: 1556.35 | M119: 1.3766
A120: 110 | B120: CAMS | C120: 2378.45 | D120: 2393.15 | E120: 2357.30 | F120: 2336.15 | G120: 2300.30 | H120: 2414.30 | I120: 2450.15 | J120: 2471.30 | K120: 2429 | L120: 2372 | M120: 1.50019
A121: 111 | B121: CONCOR | C121: 703.9 | D121: 705.10 | E121: 697.90 | F121: 691.90 | G121: 684.70 | H121: 711.10 | I121: 718.30 | J121: 724.30 | K121: 712.3 | L121: 699.1 | M121: 5.92626
A122: 112 | B122: COROMANDEL | C122: 1050.95 | D122: 1057.17 | E122: 1041.98 | F122: 1033.02 | G122: 1017.83 | H122: 1066.13 | I122: 1081.32 | J122: 1090.28 | K122: 1072.35 | L122: 1048.2 | M122: 2.67992
A123: 113 | B123: CREDITACC | C123: 1016.5 | D123: 1012.10 | E123: 1003.40 | F123: 990.30 | G123: 981.60 | H123: 1025.20 | I123: 1033.90 | J123: 1047.00 | K123: 1020.8 | L123: 999 | M123: 1.04138
A124: 114 | B124: CROMPTON | C124: 395.85 | D124: 393.93 | E124: 387.92 | F124: 379.98 | G124: 373.97 | H124: 401.87 | I124: 407.88 | J124: 415.82 | K124: 399.95 | L124: 386 | M124: 13.06243
A125: 115 | B125: CUMMINSIND | C125: 1247.05 | D125: 1246.63 | E125: 1224.57 | F125: 1202.08 | G125: 1180.02 | H125: 1269.12 | I125: 1291.18 | J125: 1313.67 | K125: 1268.7 | L125: 1224.15 | M125: 5.50201
A126: 116 | B126: CYIENT | C126: 832.45 | D126: 830.98 | E126: 826.37 | F126: 820.28 | G126: 815.67 | H126: 837.07 | I126: 841.68 | J126: 847.77 | K126: 835.6 | L126: 824.9 | M126: 0.907
A127: 117 | B127: DCMSHRIRAM | C127: 1032.8 | D127: 1039.43 | E127: 1020.37 | F127: 1007.93 | G127: 988.87 | H127: 1051.87 | I127: 1070.93 | J127: 1083.37 | K127: 1058.5 | L127: 1027 | M127: 0.70285
A128: 118 | B128: DLF | C128: 389.15 | D128: 386.10 | E128: 382.25 | F128: 375.35 | G128: 371.50 | H128: 393.00 | I128: 396.85 | J128: 403.75 | K128: 389.95 | L128: 379.2 | M128: 51.88764
A129: 119 | B129: DABUR | C129: 594.6 | D129: 591.43 | E129: 586.82 | F129: 579.03 | G129: 574.42 | H129: 599.22 | I129: 603.83 | J129: 611.62 | K129: 596.05 | L129: 583.65 | M129: 17.77307
A130: 120 | B130: DALBHARAT | C130: 1666.9 | D130: 1645.28 | E130: 1614.67 | F130: 1562.43 | G130: 1531.82 | H130: 1697.52 | I130: 1728.13 | J130: 1780.37 | K130: 1675.9 | L130: 1593.05 | M130: 6.63124
A131: 121 | B131: DEEPAKNTR | C131: 2104.25 | D131: 2100.42 | E131: 2078.83 | F131: 2053.42 | G131: 2031.83 | H131: 2125.83 | I131: 2147.42 | J131: 2172.83 | K131: 2122 | L131: 2075 | M131: 6.82871
A132: 122 | B132: DELTACORP | C132: 202 | D132: 201.35 | E132: 198.75 | F132: 195.50 | G132: 192.90 | H132: 204.60 | I132: 207.20 | J132: 210.45 | K132: 203.95 | L132: 198.1 | M132: 50.34171
A133: 123 | B133: DEVYANI | C133: 204.35 | D133: 207.33 | E133: 199.67 | F133: 194.98 | G133: 187.32 | H133: 212.02 | I133: 219.68 | J133: 224.37 | K133: 215 | L133: 202.65 | M133: 84.21835
A134: 124 | B134: DHANI | C134: 51.45 | D134: 51.15 | E134: 50.85 | F134: 50.25 | G134: 49.95 | H134: 51.75 | I134: 52.05 | J134: 52.65 | K134: 51.45 | L134: 50.55 | M134: 13.99707
A135: 125 | B135: DBL | C135: 245 | D135: 246.27 | E135: 241.73 | F135: 238.47 | G135: 233.93 | H135: 249.53 | I135: 254.07 | J135: 257.33 | K135: 250.8 | L135: 243 | M135: 5.2772
A136: 126 | B136: DIVISLAB | C136: 3743.6 | D136: 3738.87 | E136: 3719.73 | F136: 3695.87 | G136: 3676.73 | H136: 3762.73 | I136: 3781.87 | J136: 3805.73 | K136: 3758 | L136: 3715 | M136: 4.20941
A137: 127 | B137: DIXON | C137: 4068.15 | D137: 4064.10 | E137: 4010.20 | F137: 3952.25 | G137: 3898.35 | H137: 4122.05 | I137: 4175.95 | J137: 4233.90 | K137: 4118 | L137: 4006.15 | M137: 6.17723
A138: 128 | B138: LALPATHLAB | C138: 2525.1 | D138: 2511.50 | E138: 2490.00 | F138: 2454.90 | G138: 2433.40 | H138: 2546.60 | I138: 2568.10 | J138: 2603.20 | K138: 2533 | L138: 2476.4 | M138: 2.03095
A139: 129 | B139: DRREDDY | C139: 4225.1 | D139: 4199.48 | E139: 4158.97 | F139: 4092.83 | G139: 4052.32 | H139: 4265.62 | I139: 4306.13 | J139: 4372.27 | K139: 4240 | L139: 4133.35 | M139: 10.27584
A140: 130 | B140: EIDPARRY | C140: 570.1 | D140: 574.25 | E140: 563.60 | F140: 557.10 | G140: 546.45 | H140: 580.75 | I140: 591.40 | J140: 597.90 | K140: 584.9 | L140: 567.75 | M140: 3.88877
A141: 131 | B141: EIHOTEL | C141: 156.9 | D141: 158.45 | E141: 153.95 | F141: 151.00 | G141: 146.50 | H141: 161.40 | I141: 165.90 | J141: 168.85 | K141: 162.95 | L141: 155.5 | M141: 6.22278
A142: 132 | B142: EPL | C142: 164.9 | D142: 164.68 | E142: 163.42 | F142: 161.93 | G142: 160.67 | H142: 166.17 | I142: 167.43 | J142: 168.92 | K142: 165.95 | L142: 163.2 | M142: 4.34462
A143: 133 | B143: EASEMYTRIP | C143: 396.9 | D143: 397.70 | E143: 393.60 | F143: 390.30 | G143: 386.20 | H143: 401.00 | I143: 405.10 | J143: 408.40 | K143: 401.8 | L143: 394.4 | M143: 13.95165
A144: 134 | B144: EDELWEISS | C144: 61.9 | D144: 62.53 | E144: 60.77 | F144: 59.63 | G144: 57.87 | H144: 63.67 | I144: 65.43 | J144: 66.57 | K144: 64.3 | L144: 61.4 | M144: 29.57763
A145: 135 | B145: EICHERMOT | C145: 3411.4 | D145: 3408.03 | E145: 3378.07 | F145: 3344.73 | G145: 3314.77 | H145: 3441.37 | I145: 3471.33 | J145: 3504.67 | K145: 3438 | L145: 3374.7 | M145: 5.91901
A146: 136 | B146: ELGIEQUIP | C146: 426.2 | D146: 427.25 | E146: 421.00 | F146: 415.80 | G146: 409.55 | H146: 432.45 | I146: 438.70 | J146: 443.90 | K146: 433.5 | L146: 422.05 | M146: 3.88594
A147: 137 | B147: EMAMILTD | C147: 466 | D147: 465.97 | E147: 462.93 | F147: 459.87 | G147: 456.83 | H147: 469.03 | I147: 472.07 | J147: 475.13 | K147: 469 | L147: 462.9 | M147: 1.26297
A148: 138 | B148: ENDURANCE | C148: 1432.95 | D148: 1432.13 | E148: 1420.87 | F148: 1408.78 | G148: 1397.52 | H148: 1444.22 | I148: 1455.48 | J148: 1467.57 | K148: 1443.4 | L148: 1420.05 | M148: 1.05252
A149: 139 | B149: ENGINERSIN | C149: 67.85 | D149: 67.90 | E149: 67.30 | F149: 66.75 | G149: 66.15 | H149: 68.45 | I149: 69.05 | J149: 69.60 | K149: 68.5 | L149: 67.35 | M149: 5.3862
A150: 140 | B150: EQUITAS | C150: 98.15 | D150: 98.23 | E150: 97.17 | F150: 96.18 | G150: 95.12 | H150: 99.22 | I150: 100.28 | J150: 101.27 | K150: 99.3 | L150: 97.25 | M150: 3.07928
A151: 141 | B151: EQUITASBNK | C151: 45.55 | D151: 45.50 | E151: 45.05 | F151: 44.55 | G151: 44.10 | H151: 46.00 | I151: 46.45 | J151: 46.95 | K151: 45.95 | L151: 45 | M151: 8.50595
A152: 142 | B152: ERIS | C152: 692.2 | D152: 693.40 | E152: 689.80 | F152: 687.40 | G152: 683.80 | H152: 695.80 | I152: 699.40 | J152: 701.80 | K152: 697 | L152: 691 | M152: 0.06043
A153: 143 | B153: ESCORTS | C153: 1803.7 | D153: 1808.30 | E153: 1786.05 | F153: 1768.40 | G153: 1746.15 | H153: 1825.95 | I153: 1848.20 | J153: 1865.85 | K153: 1830.55 | L153: 1790.65 | M153: 2.38025
A154: 144 | B154: EXIDEIND | C154: 164.2 | D154: 163.78 | E154: 162.92 | F154: 161.63 | G154: 160.77 | H154: 165.07 | I154: 165.93 | J154: 167.22 | K154: 164.65 | L154: 162.5 | M154: 18.81569
A155: 145 | B155: FDC | C155: 263.1 | D155: 263.42 | E155: 261.53 | F155: 259.97 | G155: 258.08 | H155: 264.98 | I155: 266.87 | J155: 268.43 | K155: 265.3 | L155: 261.85 | M155: 1.44684
A156: 146 | B156: NYKAA | C156: 1387.5 | D156: 1391.15 | E156: 1378.35 | F156: 1369.20 | G156: 1356.40 | H156: 1400.30 | I156: 1413.10 | J156: 1422.25 | K156: 1403.95 | L156: 1382 | M156: 3.23971
A157: 147 | B157: FEDERALBNK | C157: 111 | D157: 110.87 | E157: 109.73 | F157: 108.47 | G157: 107.33 | H157: 112.13 | I157: 113.27 | J157: 114.53 | K157: 112 | L157: 109.6 | M157: 101.09846
A158: 148 | B158: FACT | C158: 121.4 | D158: 121.97 | E158: 116.33 | F158: 111.27 | G158: 105.63 | H158: 127.03 | I158: 132.67 | J158: 137.73 | K158: 127.6 | L158: 116.9 | M158: 5.64964
A159: 149 | B159: FINEORG | C159: 6271.7 | D159: 6267.85 | E159: 6206.70 | F159: 6141.70 | G159: 6080.55 | H159: 6332.85 | I159: 6394.00 | J159: 6459.00 | K159: 6329 | L159: 6202.85 | M159: 0.58427
A160: 150 | B160: FINCABLES | C160: 469.2 | D160: 468.53 | E160: 463.07 | F160: 456.93 | G160: 451.47 | H160: 474.67 | I160: 480.13 | J160: 486.27 | K160: 474 | L160: 462.4 | M160: 3.30212
A161: 151 | B161: FINPIPE | C161: 146.35 | D161: 145.32 | E161: 143.18 | F161: 140.02 | G161: 137.88 | H161: 148.48 | I161: 150.62 | J161: 153.78 | K161: 147.45 | L161: 142.15 | M161: 10.21333
A162: 152 | B162: FSL | C162: 110.95 | D162: 110.87 | E162: 109.08 | F162: 107.22 | G162: 105.43 | H162: 112.73 | I162: 114.52 | J162: 116.38 | K162: 112.65 | L162: 109 | M162: 49.91579
A163: 153 | B163: FORTIS | C163: 291.65 | D163: 291.63 | E163: 287.72 | F163: 283.78 | G163: 279.87 | H163: 295.57 | I163: 299.48 | J163: 303.42 | K163: 295.55 | L163: 287.7 | M163: 13.12467
A164: 154 | B164: GRINFRA | C164: 1390.35 | D164: 1397.77 | E164: 1369.03 | F164: 1347.72 | G164: 1318.98 | H164: 1419.08 | I164: 1447.82 | J164: 1469.13 | K164: 1426.5 | L164: 1376.45 | M164: 0.20372
A165: 155 | B165: GAIL | C165: 135.6 | D165: 135.43 | E165: 134.87 | F165: 134.13 | G165: 133.57 | H165: 136.17 | I165: 136.73 | J165: 137.47 | K165: 136 | L165: 134.7 | M165: 108.18877
A166: 156 | B166: GMMPFAUDLR | C166: 1589.05 | D166: 1592.13 | E166: 1579.27 | F166: 1569.48 | G166: 1556.62 | H166: 1601.92 | I166: 1614.78 | J166: 1624.57 | K166: 1605 | L166: 1582.35 | M166: 0.62901
A167: 157 | B167: GMRINFRA | C167: 35.5 | D167: 35.43 | E167: 35.12 | F167: 34.73 | G167: 34.42 | H167: 35.82 | I167: 36.13 | J167: 36.52 | K167: 35.75 | L167: 35.05 | M167: 42.22665
A168: 158 | B168: GALAXYSURF | C168: 3190.65 | D168: 3193.73 | E168: 3152.47 | F168: 3114.28 | G168: 3073.02 | H168: 3231.92 | I168: 3273.18 | J168: 3311.37 | K168: 3235 | L168: 3155.55 | M168: 0.14438
A169: 159 | B169: GARFIBRES | C169: 3055.5 | D169: 3057.35 | E169: 3025.75 | F169: 2996.00 | G169: 2964.40 | H169: 3087.10 | I169: 3118.70 | J169: 3148.45 | K169: 3088.95 | L169: 3027.6 | M169: 0.17995
A170: 160 | B170: GICRE | C170: 123.7 | D170: 123.85 | E170: 122.40 | F170: 121.10 | G170: 119.65 | H170: 125.15 | I170: 126.60 | J170: 127.90 | K170: 125.3 | L170: 122.55 | M170: 2.27901
A171: 161 | B171: GLAND | C171: 2399 | D171: 2393.00 | E171: 2361.00 | F171: 2323.00 | G171: 2291.00 | H171: 2431.00 | I171: 2463.00 | J171: 2501.00 | K171: 2425 | L171: 2355 | M171: 1.89768
A172: 162 | B172: GLAXO | C172: 1478.55 | D172: 1474.40 | E172: 1461.80 | F172: 1445.05 | G172: 1432.45 | H172: 1491.15 | I172: 1503.75 | J172: 1520.50 | K172: 1487 | L172: 1457.65 | M172: 0.63406
A173: 163 | B173: GLS | C173: 443.9 | D173: 444.18 | E173: 442.72 | F173: 441.53 | G173: 440.07 | H173: 445.37 | I173: 446.83 | J173: 448.02 | K173: 445.65 | L173: 443 | M173: 0.46378
A174: 164 | B174: GLENMARK | C174: 399.65 | D174: 400.80 | E174: 396.10 | F174: 392.55 | G174: 387.85 | H174: 404.35 | I174: 409.05 | J174: 412.60 | K174: 405.5 | L174: 397.25 | M174: 11.43086
A175: 165 | B175: GOCOLORS | C175: 1100.55 | D175: 1096.67 | E175: 1085.88 | F175: 1071.22 | G175: 1060.43 | H175: 1111.33 | I175: 1122.12 | J175: 1136.78 | K175: 1107.45 | L175: 1082 | M175: 1.30323
A176: 166 | B176: GODFRYPHLP | C176: 1182.15 | D176: 1180.53 | E176: 1171.67 | F176: 1161.18 | G176: 1152.32 | H176: 1191.02 | I176: 1199.88 | J176: 1210.37 | K176: 1189.4 | L176: 1170.05 | M176: 0.25238
A177: 167 | B177: GODREJAGRO | C177: 508.65 | D177: 507.27 | E177: 505.43 | F177: 502.22 | G177: 500.38 | H177: 510.48 | I177: 512.32 | J177: 515.53 | K177: 509.1 | L177: 504.05 | M177: 0.91126
A178: 168 | B178: GODREJCP | C178: 918.3 | D178: 910.30 | E178: 900.60 | F178: 882.90 | G178: 873.20 | H178: 928.00 | I178: 937.70 | J178: 955.40 | K178: 920 | L178: 892.6 | M178: 30.09209
A179: 169 | B179: GODREJIND | C179: 482.6 | D179: 482.65 | E179: 479.30 | F179: 476.00 | G179: 472.65 | H179: 485.95 | I179: 489.30 | J179: 492.60 | K179: 486 | L179: 479.35 | M179: 1.02657
A180: 170 | B180: GODREJPROP | C180: 1407.25 | D180: 1401.57 | E180: 1385.73 | F180: 1364.22 | G180: 1348.38 | H180: 1423.08 | I180: 1438.92 | J180: 1460.43 | K180: 1417.4 | L180: 1380.05 | M180: 7.46107
A181: 171 | B181: GRANULES | C181: 325.45 | D181: 326.75 | E181: 322.80 | F181: 320.15 | G181: 316.20 | H181: 329.40 | I181: 333.35 | J181: 336.00 | K181: 330.7 | L181: 324.1 | M181: 20.99201
A182: 172 | B182: GRAPHITE | C182: 402.4 | D182: 404.47 | E182: 396.93 | F182: 391.47 | G182: 383.93 | H182: 409.93 | I182: 417.47 | J182: 422.93 | K182: 412 | L182: 399 | M182: 7.55243
A183: 173 | B183: GRASIM | C183: 1613.75 | D183: 1607.12 | E183: 1592.63 | F183: 1571.52 | G183: 1557.03 | H183: 1628.23 | I183: 1642.72 | J183: 1663.83 | K183: 1621.6 | L183: 1586 | M183: 10.06971
A184: 174 | B184: GESHIP | C184: 517.6 | D184: 517.08 | E184: 511.17 | F184: 504.73 | G184: 498.82 | H184: 523.52 | I184: 529.43 | J184: 535.87 | K184: 523 | L184: 510.65 | M184: 4.29315
A185: 175 | B185: GRINDWELL | C185: 2067 | D185: 2066.52 | E185: 2056.48 | F185: 2045.97 | G185: 2035.93 | H185: 2077.03 | I185: 2087.07 | J185: 2097.58 | K185: 2076.55 | L185: 2056 | M185: 0.3629
A186: 176 | B186: GUJALKALI | C186: 911.15 | D186: 906.08 | E186: 888.67 | F186: 866.18 | G186: 848.77 | H186: 928.57 | I186: 945.98 | J186: 968.47 | K186: 923.5 | L186: 883.6 | M186: 16.69302
A187: 177 | B187: GAEL | C187: 290.5 | D187: 291.53 | E187: 288.07 | F187: 285.63 | G187: 282.17 | H187: 293.97 | I187: 297.43 | J187: 299.87 | K187: 295 | L187: 289.1 | M187: 1.72692
A188: 178 | B188: FLUOROCHEM | C188: 3610.05 | D188: 3587.90 | E188: 3535.80 | F188: 3461.55 | G188: 3409.45 | H188: 3662.15 | I188: 3714.25 | J188: 3788.50 | K188: 3640 | L188: 3513.65 | M188: 1.35939
A189: 179 | B189: GUJGASLTD | C189: 491.4 | D189: 493.43 | E189: 486.97 | F189: 482.53 | G189: 476.07 | H189: 497.87 | I189: 504.33 | J189: 508.77 | K189: 499.9 | L189: 489 | M189: 13.24299
A190: 180 | B190: GNFC | C190: 785.55 | D190: 789.30 | E190: 780.10 | F190: 774.65 | G190: 765.45 | H190: 794.75 | I190: 803.95 | J190: 809.40 | K190: 798.5 | L190: 783.85 | M190: 15.64488
A191: 181 | B191: GPPL | C191: 85.95 | D191: 85.77 | E191: 84.78 | F191: 83.62 | G191: 82.63 | H191: 86.93 | I191: 87.92 | J191: 89.08 | K191: 86.75 | L191: 84.6 | M191: 5.59163
A192: 182 | B192: GSFC | C192: 163.1 | D192: 162.93 | E192: 161.22 | F192: 159.33 | G192: 157.62 | H192: 164.82 | I192: 166.53 | J192: 168.42 | K192: 164.65 | L192: 161.05 | M192: 20.21318
A193: 183 | B193: GSPL | C193: 248.2 | D193: 247.15 | E193: 245.10 | F193: 242.00 | G193: 239.95 | H193: 250.25 | I193: 252.30 | J193: 255.40 | K193: 249.2 | L193: 244.05 | M193: 7.02403
A194: 184 | B194: HEG | C194: 1324.6 | D194: 1328.85 | E194: 1315.15 | F194: 1305.70 | G194: 1292.00 | H194: 1338.30 | I194: 1352.00 | J194: 1361.45 | K194: 1342.55 | L194: 1319.4 | M194: 2.38864
A195: 185 | B195: HCLTECH | C195: 973.5 | D195: 975.02 | E195: 966.58 | F195: 959.67 | G195: 951.23 | H195: 981.93 | I195: 990.37 | J195: 997.28 | K195: 983.45 | L195: 968.1 | M195: 28.29269
A196: 186 | B196: HDFCAMC | C196: 2181.35 | D196: 2175.05 | E196: 2156.30 | F196: 2131.25 | G196: 2112.50 | H196: 2200.10 | I196: 2218.85 | J196: 2243.90 | K196: 2193.8 | L196: 2150 | M196: 4.6433
A197: 187 | B197: HDFCBANK | C197: 1511.7 | D197: 1508.42 | E197: 1502.93 | F197: 1494.17 | G197: 1488.68 | H197: 1517.18 | I197: 1522.67 | J197: 1531.43 | K197: 1513.9 | L197: 1499.65 | M197: 41.71069
A198: 188 | B198: HDFCLIFE | C198: 586.75 | D198: 589.57 | E198: 580.18 | F198: 573.62 | G198: 564.23 | H198: 596.13 | I198: 605.52 | J198: 612.08 | K198: 598.95 | L198: 583 | M198: 71.23366
A199: 189 | B199: HFCL | C199: 75.75 | D199: 76.15 | E199: 74.90 | F199: 74.05 | G199: 72.80 | H199: 77.00 | I199: 78.25 | J199: 79.10 | K199: 77.4 | L199: 75.3 | M199: 94.32137
A200: 190 | B200: HLEGLAS | C200: 3538.95 | D200: 3561.30 | E200: 3497.70 | F200: 3456.45 | G200: 3392.85 | H200: 3602.55 | I200: 3666.15 | J200: 3707.40 | K200: 3624.9 | L200: 3520.05 | M200: 0.1342
A201: 191 | B201: HAPPSTMNDS | C201: 1114.75 | D201: 1111.48 | E201: 1090.27 | F201: 1065.78 | G201: 1044.57 | H201: 1135.97 | I201: 1157.18 | J201: 1181.67 | K201: 1132.7 | L201: 1087 | M201: 28.57452
A202: 192 | B202: HATHWAY | C202: 16.95 | D202: 16.97 | E202: 16.88 | F202: 16.82 | G202: 16.73 | H202: 17.03 | I202: 17.12 | J202: 17.18 | K202: 17.05 | L202: 16.9 | M202: 14.06254
A203: 193 | B203: HATSUN | C203: 1128.15 | D203: 1121.15 | E203: 1104.25 | F203: 1080.35 | G203: 1063.45 | H203: 1145.05 | I203: 1161.95 | J203: 1185.85 | K203: 1138.05 | L203: 1097.25 | M203: 0.75058
A204: 194 | B204: HAVELLS | C204: 1358 | D204: 1354.53 | E204: 1346.12 | F204: 1334.23 | G204: 1325.82 | H204: 1366.42 | I204: 1374.83 | J204: 1386.72 | K204: 1362.95 | L204: 1342.65 | M204: 8.84432
A205: 195 | B205: HEMIPROP | C205: 104.85 | D205: 104.45 | E205: 102.80 | F205: 100.75 | G205: 99.10 | H205: 106.50 | I205: 108.15 | J205: 110.20 | K205: 106.1 | L205: 102.4 | M205: 24.07797
A206: 196 | B206: HEROMOTOCO | C206: 2908.2 | D206: 2916.65 | E206: 2894.70 | F206: 2881.20 | G206: 2859.25 | H206: 2930.15 | I206: 2952.10 | J206: 2965.60 | K206: 2938.6 | L206: 2903.15 | M206: 8.05655
... 320 more rows

Sheet Bulk Deals
E6: Back To Main Page
A7: Subject : | B7: BULK DEAL | D7: =Main!B10 -> 2022-08-19
A9: Date | B9: Scrip code | C9: Scrip Name | D9: Client Name | E9: Buy / Sell | F9: Quantity Traded | G9: Trade Price / Wt.Avg.trade price | H9: Exchange
A10: 2022-08-18 | B10: 539661 | C10: ACEMEN | D10: IRAMFATEMA GULAMHAIDER VARTEJI | E10: SELL | F10: 18,000 | G10: 71.21 | H10: BSE
A11: 2022-08-18 | B11: 542865 | C11: ANUROOP | D11: DILIP NANJI CHHEDA | E11: BUY | F11: 70,000 | G11: 24.46 | H11: BSE
A12: 2022-08-18 | B12: 537069 | C12: ARNOLD | D12: TUSHAR KANTI DAS | E12: SELL | F12: 216,976 | G12: 18 | H12: BSE
A13: 2022-08-18 | B13: 537069 | C13: ARNOLD | D13: GAURAV SETHI | E13: SELL | F13: 250,350 | G13: 18 | H13: BSE
A14: 2022-08-18 | B14: 537069 | C14: ARNOLD | D14: PURSHOTTAM RAMESHWAR BOHRA | E14: SELL | F14: 354,020 | G14: 18 | H14: BSE
A15: 2022-08-18 | B15: 537069 | C15: ARNOLD | D15: SWARATHMA GARTEX PRIVATE LIMITED | E15: SELL | F15: 509,402 | G15: 18 | H15: BSE
A16: 2022-08-18 | B16: 537069 | C16: ARNOLD | D16: PRIYA ROHAN AGARWAL | E16: BUY | F16: 1,500,000 | G16: 18 | H16: BSE
A17: 2022-08-18 | B17: 509053 | C17: BANASFN | D17: JAYANTI DAS | E17: SELL | F17: 300,000 | G17: 18.87 | H17: BSE
A18: 2022-08-18 | B18: 509053 | C18: BANASFN | D18: MULTIPLIER SHARE & STOCK ADVISORS PRIVATE LIMITED | E18: BUY | F18: 264,681 | G18: 18.4 | H18: BSE
A19: 2022-08-18 | B19: 509053 | C19: BANASFN | D19: MULTIPLIER SHARE & STOCK ADVISORS PRIVATE LIMITED | E19: SELL | F19: 164,993 | G19: 18.9 | H19: BSE
A20: 2022-08-18 | B20: 513502 | C20: BAROEXT | D20: KAILASHCHANDRA BHAWARLAL TOTLA | E20: SELL | F20: 1,529,654 | G20: 4.42 | H20: BSE
A21: 2022-08-18 | B21: 513502 | C21: BAROEXT | D21: KAILASHCHANDRA BHAWARLAL TOTLA | E21: BUY | F21: 2,371,952 | G21: 4.16 | H21: BSE
A22: 2022-08-18 | B22: 540710 | C22: CAPACITE | D22: NEWQUEST ASIA INVESTMENTS II LIMITED | E22: SELL | F22: 1,000,000 | G22: 135.21 | H22: BSE
A23: 2022-08-18 | B23: 540023 | C23: COLORCHIPS | D23: SHAIBAL GHOSH | E23: BUY | F23: 86,243 | G23: 75.98 | H23: BSE
A24: 2022-08-18 | B24: 540023 | C24: COLORCHIPS | D24: SHAIBAL GHOSH | E24: SELL | F24: 304 | G24: 77.2 | H24: BSE
A25: 2022-08-18 | B25: 540023 | C25: COLORCHIPS | D25: VINIATO ADVISORS PRIVATE LIMITED | E25: SELL | F25: 92,744 | G25: 77.2 | H25: BSE
A26: 2022-08-18 | B26: 538868 | C26: CSL | D26: SURESH KUMAR MUNDHRA HUF | E26: BUY | F26: 42,249 | G26: 36.5 | H26: BSE
A27: 2022-08-18 | B27: 542724 | C27: EARUM | D27: PAYAL BHUMISHTH PATEL | E27: SELL | F27: 350,000 | G27: 2.51 | H27: BSE
A28: 2022-08-18 | B28: 542724 | C28: EARUM | D28: BHUMISHTH NARENDRABHAI PATEL | E28: SELL | F28: 550,000 | G28: 2.51 | H28: BSE
A29: 2022-08-18 | B29: 542602 | C29: EMBASSY | D29: ICICI PRUDENTIAL MUTUAL FUND | E29: BUY | F29: 11,869,867 | G29: 357 | H29: BSE
A30: 2022-08-18 | B30: 542602 | C30: EMBASSY | D30: AMERICAN BALANCED FUND | E30: SELL | F30: 29,262,468 | G30: 357.61 | H30: BSE
A31: 2022-08-18 | B31: 540614 | C31: GGENG | D31: GURMINDER PAL SINGH ARNEJA | E31: BUY | F31: 861,247 | G31: 3.27 | H31: BSE
A32: 2022-08-18 | B32: 542666 | C32: GKP | D32: YACOOBALI VENTURE COMMODITY BROKING PVT. LTD. | E32: SELL | F32: 97,710 | G32: 300.14 | H32: BSE
A33: 2022-08-18 | B33: 542666 | C33: GKP | D33: SOUTH GUJARAT SHARES AND SHAREBROKERS LIMITED | E33: SELL | F33: 111,711 | G33: 299.51 | H33: BSE
A34: 2022-08-18 | B34: 542666 | C34: GKP | D34: SOUTH GUJARAT SHARES AND SHAREBROKERS LIMITED | E34: BUY | F34: 70,000 | G34: 300.15 | H34: BSE
A35: 2022-08-18 | B35: 542666 | C35: GKP | D35: YACOOBALI VENTURE COMMODITY BROKING PVT. LTD. | E35: BUY | F35: 97,710 | G35: 300.34 | H35: BSE
A36: 2022-08-18 | B36: 542666 | C36: GKP | D36: HAFIZA MOHAMED HASANFATTA | E36: SELL | F36: 130,449 | G36: 299.85 | H36: BSE
A37: 2022-08-18 | B37: 542666 | C37: GKP | D37: HAFIZA MOHAMED HASANFATTA | E37: BUY | F37: 130,449 | G37: 300.57 | H37: BSE
A38: 2022-08-18 | B38: 542666 | C38: GKP | D38: RAMESH SAWALRAM SARAOGI | E38: SELL | F38: 153,500 | G38: 300.35 | H38: BSE
A39: 2022-08-18 | B39: 543546 | C39: HEALTHYLIFE | D39: SANTA GHOSH | E39: SELL | F39: 120,000 | G39: 9.65 | H39: BSE
A40: 2022-08-18 | B40: 540377 | C40: IFL | D40: KARANKUMAR DASHRATHBHAI VAGHELA | E40: SELL | F40: 18,000 | G40: 109.08 | H40: BSE
A41: 2022-08-18 | B41: 540377 | C41: IFL | D41: KARANKUMAR DASHRATHBHAI VAGHELA | E41: BUY | F41: 6,000 | G41: 111.9 | H41: BSE
A42: 2022-08-18 | B42: 543286 | C42: JETMALL | D42: MURLI DHAR LAHOTI | E42: BUY | F42: 60,000 | G42: 16.1 | H42: BSE
A43: 2022-08-18 | B43: 543286 | C43: JETMALL | D43: KUSHBU LODHA | E43: SELL | F43: 30,000 | G43: 15.79 | H43: BSE
A44: 2022-08-18 | B44: 543286 | C44: JETMALL | D44: TARUNA PANKAJ TATED | E44: SELL | F44: 60,000 | G44: 16 | H44: BSE
A45: 2022-08-18 | B45: 543286 | C45: JETMALL | D45: KUSHBU LODHA | E45: BUY | F45: 24,000 | G45: 16.69 | H45: BSE
A46: 2022-08-18 | B46: 543286 | C46: JETMALL | D46: TARUNA PANKAJ TATED | E46: BUY | F46: 42,000 | G46: 17.19 | H46: BSE
A47: 2022-08-18 | B47: 543286 | C47: JETMALL | D47: PADMAWATI REALCON PRIVATE LIMITED | E47: BUY | F47: 60,000 | G47: 16 | H47: BSE
A48: 2022-08-18 | B48: 543286 | C48: JETMALL | D48: PADMAWATI REALCON PRIVATE LIMITED | E48: SELL | F48: 60,000 | G48: 16.1 | H48: BSE
A49: 2022-08-18 | B49: 522101 | C49: KLBRENG-B | D49: THE RATNAKAR BANK LIMITED | E49: SELL | F49: 350,000 | G49: 50.35 | H49: BSE
A50: 2022-08-18 | B50: 522101 | C50: KLBRENG-B | D50: EPITOME TRADING AND INVESTMENTS | E50: SELL | F50: 101,624 | G50: 49.35 | H50: BSE
A51: 2022-08-18 | B51: 522101 | C51: KLBRENG-B | D51: EPITOME TRADING AND INVESTMENTS | E51: BUY | F51: 204,374 | G51: 50.19 | H51: BSE
A52: 2022-08-18 | B52: 522101 | C52: KLBRENG-B | D52: RBL BANK LIMITED | E52: SELL | F52: 600,000 | G52: 50.35 | H52: BSE
A53: 2022-08-18 | B53: 522101 | C53: KLBRENG-B | D53: ANIRUDH DAMANI | E53: BUY | F53: 200,000 | G53: 50.35 | H53: BSE
A54: 2022-08-18 | B54: 500458 | C54: KORE | D54: MULTIPLIER SHARE & STOCK ADVISORS PRIVATE LIMITED | E54: SELL | F54: 60,008 | G54: 9.8 | H54: BSE
A55: 2022-08-18 | B55: 539686 | C55: KPEL | D55: ASHISH ASHWIN MITHANI | E55: BUY | F55: 4,668 | G55: 293.41 | H55: BSE
A56: 2022-08-18 | B56: 539686 | C56: KPEL | D56: ASHISH ASHWIN MITHANI | E56: SELL | F56: 169,668 | G56: 290.46 | H56: BSE
A57: 2022-08-18 | B57: 539686 | C57: KPEL | D57: RAMKUMAR BHOLANATH YADAV | E57: SELL | F57: 72,250 | G57: 298.42 | H57: BSE
A58: 2022-08-18 | B58: 539686 | C58: KPEL | D58: RAMKUMAR BHOLANATH YADAV | E58: BUY | F58: 72,250 | G58: 298.53 | H58: BSE
A59: 2022-08-18 | B59: 505523 | C59: MAHACORP | D59: ANKITA VISHAL SHAH | E59: SELL | F59: 64,002 | G59: 1.24 | H59: BSE
A60: 2022-08-18 | B60: 505523 | C60: MAHACORP | D60: ANKITA VISHAL SHAH | E60: BUY | F60: 1,164,002 | G60: 1.2 | H60: BSE
A61: 2022-08-18 | B61: 539767 | C61: MNIL | D61: AKASH DAGAR | E61: SELL | F61: 125,759 | G61: 21.42 | H61: BSE
A62: 2022-08-18 | B62: 539767 | C62: MNIL | D62: SEEMA | E62: BUY | F62: 79,401 | G62: 21.4 | H62: BSE
A63: 2022-08-18 | B63: 539767 | C63: MNIL | D63: DEEPAK KUMAR | E63: BUY | F63: 46,600 | G63: 21.45 | H63: BSE
A64: 2022-08-18 | B64: 543262 | C64: MRP | D64: JAANDAR AGRO PRIVATE LIMITED | E64: BUY | F64: 27,000 | G64: 51.67 | H64: BSE
A65: 2022-08-18 | B65: 530557 | C65: NCLRESE | D65: VISAGAR FINANCIAL SERVICES LIMITED | E65: SELL | F65: 28,154,075 | G65: 0.77 | H65: BSE
A66: 2022-08-18 | B66: 540386 | C66: ONTIC | D66: NOBLE POLYMERS LIMITED NOBLE | E66: BUY | F66: 957,997 | G66: 1.63 | H66: BSE
A67: 2022-08-18 | B67: 540386 | C67: ONTIC | D67: HANCSHI TRADELINKK LLP . | E67: SELL | F67: 1,291,426 | G67: 1.63 | H67: BSE
A68: 2022-08-18 | B68: 531254 | C68: OPTIFIN | D68: SK GROWTH FUND PRIVATE LIMITED | E68: SELL | F68: 100,000 | G68: 42.5 | H68: BSE
A69: 2022-08-18 | B69: 531254 | C69: OPTIFIN | D69: ARYAMAN BROKING LIMITED | E69: BUY | F69: 100,000 | G69: 42.5 | H69: BSE
A70: 2022-08-18 | B70: 531254 | C70: OPTIFIN | D70: ARYAMAN BROKING LIMITED | E70: SELL | F70: 1,000 | G70: 43 | H70: BSE
A71: 2022-08-18 | B71: 531254 | C71: OPTIFIN | D71: RONAK HASMUKHBHAI VORA | E71: BUY | F71: 35,752 | G71: 41.78 | H71: BSE
A72: 2022-08-18 | B72: 531254 | C72: OPTIFIN | D72: RONAK HASMUKHBHAI VORA | E72: SELL | F72: 35,752 | G72: 41.77 | H72: BSE
A73: 2022-08-18 | B73: 539143 | C73: PANTH | D73: MANISH MISHRA | E73: SELL | F73: 170,000 | G73: 31.95 | H73: BSE
A74: 2022-08-18 | B74: 524031 | C74: PATIDAR | D74: BP EQUITIES PVT. LTD. | E74: BUY | F74: 38,855 | G74: 11 | H74: BSE
A75: 2022-08-18 | B75: 524031 | C75: PATIDAR | D75: BP COMTRADE PRIVATE LIMITED | E75: BUY | F75: 45,881 | G75: 10.77 | H75: BSE
A76: 2022-08-18 | B76: 524031 | C76: PATIDAR | D76: BP EQUITIES PVT. LTD. | E76: SELL | F76: 5,981 | G76: 10.58 | H76: BSE
A77: 2022-08-18 | B77: 524031 | C77: PATIDAR | D77: BP COMTRADE PRIVATE LIMITED | E77: SELL | F77: 38,540 | G77: 11.25 | H77: BSE
A78: 2022-08-18 | B78: 524031 | C78: PATIDAR | D78: JR SEAMLESS PRIVATE LIMITED | E78: BUY | F78: 100,000 | G78: 11.3 | H78: BSE
A79: 2022-08-18 | B79: 524031 | C79: PATIDAR | D79: PARESH DHIRAJLAL SHAH | E79: SELL | F79: 30,000 | G79: 11.3 | H79: BSE
A80: 2022-08-18 | B80: 524031 | C80: PATIDAR | D80: MULTIPLIER SHARE & STOCK ADVISORS PRIVATE LIMITED | E80: BUY | F80: 22,127 | G80: 10.24 | H80: BSE
A81: 2022-08-18 | B81: 524031 | C81: PATIDAR | D81: MULTIPLIER SHARE & STOCK ADVISORS PRIVATE LIMITED | E81: SELL | F81: 42,058 | G81: 11.2 | H81: BSE
A82: 2022-08-18 | B82: 530095 | C82: PRADHIN | D82: AKSHAY RAJENDRABHAI OSWAL | E82: BUY | F82: 5 | G82: 33.8 | H82: BSE
A83: 2022-08-18 | B83: 530095 | C83: PRADHIN | D83: AKSHAY RAJENDRABHAI OSWAL | E83: SELL | F83: 24,000 | G83: 33.72 | H83: BSE
A84: 2022-08-18 | B84: 543460 | C84: QRIL | D84: SATISHCHANDRA JANI | E84: SELL | F84: 10,000 | G84: 52.5 | H84: BSE
A85: 2022-08-18 | B85: 543460 | C85: QRIL | D85: VIVEKVINUBHAIDHOLIYA | E85: BUY | F85: 10,000 | G85: 52.5 | H85: BSE
A86: 2022-08-18 | B86: 530125 | C86: SAMRATPH | D86: HARISHKUMARGUPTA | E86: BUY | F86: 22,000 | G86: 629.2 | H86: BSE
A87: 2022-08-18 | B87: 542034 | C87: SMGOLD | D87: KOMALBEN NARENDRABHAI SOLANKI | E87: BUY | F87: 190,000 | G87: 56 | H87: BSE
A88: 2022-08-18 | B88: 543300 | C88: SONACOMS | D88: GOVERNMENT OF SINGAPORE | E88: BUY | F88: 3,068,730 | G88: 505 | H88: BSE
A89: 2022-08-18 | B89: 543300 | C89: SONACOMS | D89: SBI MUTUAL FUND | E89: BUY | F89: 3,700,000 | G89: 505 | H89: BSE
A90: 2022-08-18 | B90: 543300 | C90: SONACOMS | D90: SBI MUTUAL FUND | E90: BUY | F90: 5,000,000 | G90: 505 | H90: BSE
A91: 2022-08-18 | B91: 543300 | C91: SONACOMS | D91: MARWADI SHARES AND FINANCE LIMITED | E91: BUY | F91: 3,707,692 | G91: 515.64 | H91: BSE
A92: 2022-08-18 | B92: 543300 | C92: SONACOMS | D92: MARWADI SHARES AND FINANCE LIMITED | E92: SELL | F92: 742,896 | G92: 511.86 | H92: BSE
A93: 2022-08-18 | B93: 543300 | C93: SONACOMS | D93: SINGAPORE VII TOPCO III PTE LTD | E93: SELL | F93: 79,433,500 | G93: 509.1 | H93: BSE
A94: 2022-08-18 | B94: 543300 | C94: SONACOMS | D94: SANGHVI ASSOCIATES | E94: BUY | F94: 2,922,851 | G94: 505.06 | H94: BSE
A95: 2022-08-18 | B95: 543300 | C95: SONACOMS | D95: SANGHVI ASSOCIATES | E95: SELL | F95: 2,922,851 | G95: 508.62 | H95: BSE
A96: 2022-08-18 | B96: 530677 | C96: SUPREME | D96: KAMAL KUMAR JALAN ( HUF) | E96: SELL | F96: 240,000 | G96: 97.2 | H96: BSE
A97: 2022-08-18 | B97: 530677 | C97: SUPREME | D97: NIKHIL JALAN HUF | E97: SELL | F97: 250,000 | G97: 97.8 | H97: BSE
A98: 2022-08-18 | B98: 530677 | C98: SUPREME | D98: TRINITY TRUST | E98: BUY | F98: 650,700 | G98: 98.07 | H98: BSE
A99: 2022-08-18 | B99: 521005 | C99: TITANIN | D99: NAVEEN GUPTA | E99: SELL | F99: 15,741 | G99: 16.83 | H99: BSE
A100: 2022-08-18 | B100: 521005 | C100: TITANIN | D100: NAVEEN GUPTA | E100: BUY | F100: 15,741 | G100: 16.16 | H100: BSE
A101: 2022-08-18 | B101: 521005 | C101: TITANIN | D101: SETU SECURITIES PVT LTD | E101: BUY | F101: 15,000 | G101: 16.95 | H101: BSE
A102: 2022-08-18 | B102: 538569 | C102: TRIVENIENT | D102: ASHISH AGARWAL | E102: SELL | F102: 350,000 | G102: 2.84 | H102: BSE
A103: 2022-08-18 | B103: 538569 | C103: TRIVENIENT | D103: VISAGAR FINANCIAL SERVICES LIMITED | E103: BUY | F103: 498,465 | G103: 2.85 | H103: BSE
A104: 2022-08-18 | B104: 539040 | C104: TTIL | D104: TVISHA CORPORATE ADVISORS LLP | E104: BUY | F104: 40,000 | G104: 17.23 | H104: BSE
A105: 2022-08-18 | B105: 539040 | C105: TTIL | D105: AKARSHIKA TRADERS LLP | E105: SELL | F105: 43,800 | G105: 17.06 | H105: BSE
A106: 2022-08-18 | B106: 543545 | C106: VEERKRUPA | D106: BHAVYA DHIMAN | E106: SELL | F106: 64,000 | G106: 72.85 | H106: BSE
A107: 2022-08-18 | B107: 543545 | C107: VEERKRUPA | D107: BHAVYA DHIMAN | E107: BUY | F107: 16,000 | G107: 71.05 | H107: BSE
A108: 2022-08-18 | B108: AJOONI | C108: Ajooni Biotech Limited | D108: SKSE SECURITIES LTD | E108: BUY | F108: 75,876 | G108: 46.36 | H108: NSE
A109: 2022-08-18 | B109: AJOONI | C109: Ajooni Biotech Limited | D109: SONALBEN AMITBHAI KHALAS | E109: BUY | F109: 62,923 | G109: 45.55 | H109: NSE
A110: 2022-08-18 | B110: AJOONI | C110: Ajooni Biotech Limited | D110: HARSHA ISHVARBHAI SOLANKI | E110: BUY | F110: 69,572 | G110: 46.41 | H110: NSE
A111: 2022-08-18 | B111: AMDIND | C111: AMD Industries Limited | D111: MUDUPULAVEMULA SURENDRANADHA REDDY | E111: BUY | F111: 121,795 | G111: 91.96 | H111: NSE
A112: 2022-08-18 | B112: BFUTILITIE | C112: BF Utilities Limited | D112: XTX MARKETS LLP | E112: BUY | F112: 201,514 | G112: 416.26 | H112: NSE
A113: 2022-08-18 | B113: BFUTILITIE | C113: BF Utilities Limited | D113: GRAVITON RESEARCH CAPITAL LLP | E113: BUY | F113: 247,393 | G113: 417.11 | H113: NSE
A114: 2022-08-18 | B114: CENTEXT | C114: Century Extrusions Limite | D114: VEENA RAJESH SHAH | E114: BUY | F114: 617,518 | G114: 12.22 | H114: NSE
A115: 2022-08-18 | B115: DCM | C115: DCM Ltd | D115: INDRA KIRAN VENTURES | E115: BUY | F115: 201,442 | G115: 60.28 | H115: NSE
A116: 2022-08-18 | B116: FRETAIL | C116: Future Retail Limited | D116: PREETY . | E116: BUY | F116: 2,782,100 | G116: 4.2 | H116: NSE
A117: 2022-08-18 | B117: GODHA | C117: Godha Cabcon Insulat Ltd | D117: MADHUDEVI SANJAY BUCHA | E117: BUY | F117: 20,000 | G117: 4.75 | H117: NSE
A118: 2022-08-18 | B118: JETFREIGHT | C118: Jet Freight Logistics Ltd | D118: ASHOKBHAI MADHUBHAI AMIPARA | E118: BUY | F118: 200,000 | G118: 20.05 | H118: NSE
A119: 2022-08-18 | B119: JETFREIGHT | C119: Jet Freight Logistics Ltd | D119: BASAVARAJ CHANNAPPA MAHASHETTI | E119: BUY | F119: 250,763 | G119: 20.05 | H119: NSE
A120: 2022-08-18 | B120: JETFREIGHT | C120: Jet Freight Logistics Ltd | D120: ANKIT ASHOKBHAI AMIPARA | E120: BUY | F120: 247,500 | G120: 20.05 | H120: NSE
A121: 2022-08-18 | B121: RAMASTEEL | C121: Rama Steel Tubes Limited | D121: ARHAM SHARE PRIVATE LIMITED | E121: BUY | F121: 108,003 | G121: 547.38 | H121: NSE
A122: 2022-08-18 | B122: RAMASTEEL | C122: Rama Steel Tubes Limited | D122: SKSE SECURITIES LTD | E122: BUY | F122: 158,523 | G122: 544.78 | H122: NSE
A123: 2022-08-18 | B123: RAMASTEEL | C123: Rama Steel Tubes Limited | D123: SUNTECK WEALTHMAX CAPITAL PRIVATE LIMITED | E123: BUY | F123: 94,702 | G123: 539.6 | H123: NSE
A124: 2022-08-18 | B124: REPCOHOME | C124: Repco Home Finance Ltd | D124: GRAVITON RESEARCH CAPITAL LLP | E124: BUY | F124: 320,035 | G124: 204.19 | H124: NSE
A125: 2022-08-18 | B125: RIIL | C125: Reliance Indl Infra Ltd | D125: AAKRAYA RESEARCH LLP | E125: BUY | F125: 94,693 | G125: 1062.79 | H125: NSE
A126: 2022-08-18 | B126: RIIL | C126: Reliance Indl Infra Ltd | D126: HRTI PRIVATE LIMITED | E126: BUY | F126: 102,879 | G126: 1060.66 | H126: NSE
A127: 2022-08-18 | B127: RIIL | C127: Reliance Indl Infra Ltd | D127: NK SECURITIES RESEARCH PRIVATE LIMITED | E127: BUY | F127: 169,257 | G127: 1058.51 | H127: NSE
A128: 2022-08-18 | B128: RIIL | C128: Reliance Indl Infra Ltd | D128: GRAVITON RESEARCH CAPITAL LLP | E128: BUY | F128: 423,871 | G128: 1062.38 | H128: NSE
A129: 2022-08-18 | B129: RIIL | C129: Reliance Indl Infra Ltd | D129: QE SECURITIES | E129: BUY | F129: 140,008 | G129: 1063.22 | H129: NSE
A130: 2022-08-18 | B130: RIIL | C130: Reliance Indl Infra Ltd | D130: XTX MARKETS LLP | E130: BUY | F130: 289,817 | G130: 1060.72 | H130: NSE
A131: 2022-08-18 | B131: SECL | C131: Salasar Exterior Cont Ltd | D131: AKSHAYKUMAR RAJENDRABHAI OSWAL | E131: BUY | F131: 48,750 | G131: 134.79 | H131: NSE
A132: 2022-08-18 | B132: SECL | C132: Salasar Exterior Cont Ltd | D132: MOKSHA ROMIT SHAH | E132: BUY | F132: 20,000 | G132: 122.5 | H132: NSE
A133: 2022-08-18 | B133: SHAHALLOYS | C133: Shah Alloys Limited | D133: MULTIPLIER SHARE & STOCK ADVISORS PRIVATE LIMITED | E133: BUY | F133: 40,008 | G133: 53.8 | H133: NSE
A134: 2022-08-18 | B134: SHAHALLOYS | C134: Shah Alloys Limited | D134: GAURAV CHANDRAKANT SHAH | E134: BUY | F134: 130,000 | G134: 55.69 | H134: NSE
A135: 2022-08-18 | B135: SONACOMS | C135: Sona BLW Precision Frgs L | D135: MARWADI SHARES AND FINANCE LTD. | E135: BUY | F135: 399,289 | G135: 517.28 | H135: NSE
A136: 2022-08-18 | B136: SONACOMS | C136: Sona BLW Precision Frgs L | D136: MANSI SHARES & STOCK ADVISORS PVT LTD | E136: BUY | F136: 852,993 | G136: 518.57 | H136: NSE
A137: 2022-08-18 | B137: VAISHALI | C137: Vaishali Pharma Limited | D137: VIKRAMKUMAR KARANRAJ SAKARIA HUF DAKSH CORPORATION | E137: BUY | F137: 157,141 | G137: 95.08 | H137: NSE
A138: 2022-08-18 | B138: VIKASECO | C138: Vikas EcoTech Limited | D138: ANKITA VISHAL SHAH | E138: BUY | F138: 6,568,999 | G138: 3.89 | H138: NSE
A139: 2022-08-18 | B139: VIKASLIFE | C139: Vikas Lifecare Limited | D139: SILVERTOSS SHOPPERS PRIVATE LIMITED | E139: BUY | F139: 9,911,927 | G139: 4.95 | H139: NSE
A140: 2022-08-18 | B140: AJOONI | C140: Ajooni Biotech Limited | D140: SONALBEN AMITBHAI KHALAS | E140: SELL | F140: 62,923 | G140: 45.89 | H140: NSE
A141: 2022-08-18 | B141: AJOONI | C141: Ajooni Biotech Limited | D141: SKSE SECURITIES LTD | E141: SELL | F141: 83,227 | G141: 46.75 | H141: NSE
A142: 2022-08-18 | B142: AJOONI | C142: Ajooni Biotech Limited | D142: HARSHA ISHVARBHAI SOLANKI | E142: SELL | F142: 69,572 | G142: 45.97 | H142: NSE
A143: 2022-08-18 | B143: AMDIND | C143: AMD Industries Limited | D143: MUDUPULAVEMULA SURENDRANADHA REDDY | E143: SELL | F143: 121,795 | G143: 91.47 | H143: NSE
A144: 2022-08-18 | B144: BFUTILITIE | C144: BF Utilities Limited | D144: XTX MARKETS LLP | E144: SELL | F144: 203,556 | G144: 416.76 | H144: NSE
A145: 2022-08-18 | B145: BFUTILITIE | C145: BF Utilities Limited | D145: GRAVITON RESEARCH CAPITAL LLP | E145: SELL | F145: 247,393 | G145: 417.93 | H145: NSE
A146: 2022-08-18 | B146: BTML | C146: Bodhi Tree Multimedia Ltd | D146: RONIT SHAH | E146: SELL | F146: 24,000 | G146: 190.51 | H146: NSE
A147: 2022-08-18 | B147: CENTEXT | C147: Century Extrusions Limite | D147: VEENA RAJESH SHAH | E147: SELL | F147: 617,518 | G147: 12.3 | H147: NSE
A148: 2022-08-18 | B148: DCM | C148: DCM Ltd | D148: INDRA KIRAN VENTURES | E148: SELL | F148: 148,415 | G148: 60.24 | H148: NSE
A149: 2022-08-18 | B149: FEL | C149: Future Enterprises Ltd | D149: VISTRA ITCL INDIA LIMITED | E149: SELL | F149: 2,460,929 | G149: 2.1 | H149: NSE
A150: 2022-08-18 | B150: GODHA | C150: Godha Cabcon Insulat Ltd | D150: MADHUDEVI SANJAY BUCHA | E150: SELL | F150: 1,138,197 | G150: 4.78 | H150: NSE
A151: 2022-08-18 | B151: GULFPETRO | C151: GP Petroleums Limited | D151: ABHAY NARAIN GUPTA | E151: SELL | F151: 300,000 | G151: 56.01 | H151: NSE
A152: 2022-08-18 | B152: JETFREIGHT | C152: Jet Freight Logistics Ltd | D152: AGNES FRANCIS THEKNATH | E152: SELL | F152: 692,924 | G152: 20.05 | H152: NSE
A153: 2022-08-18 | B153: RAMASTEEL | C153: Rama Steel Tubes Limited | D153: ARHAM SHARE PRIVATE LIMITED | E153: SELL | F153: 85,003 | G153: 547.43 | H153: NSE
A154: 2022-08-18 | B154: RAMASTEEL | C154: Rama Steel Tubes Limited | D154: SKSE SECURITIES LTD | E154: SELL | F154: 158,523 | G154: 544.9 | H154: NSE
A155: 2022-08-18 | B155: RAMASTEEL | C155: Rama Steel Tubes Limited | D155: SUNTECK WEALTHMAX CAPITAL PRIVATE LIMITED | E155: SELL | F155: 93,702 | G155: 547.3 | H155: NSE
A156: 2022-08-18 | B156: REPCOHOME | C156: Repco Home Finance Ltd | D156: GRAVITON RESEARCH CAPITAL LLP | E156: SELL | F156: 320,035 | G156: 204.55 | H156: NSE
A157: 2022-08-18 | B157: RIIL | C157: Reliance Indl Infra Ltd | D157: XTX MARKETS LLP | E157: SELL | F157: 284,512 | G157: 1062.31 | H157: NSE
A158: 2022-08-18 | B158: RIIL | C158: Reliance Indl Infra Ltd | D158: QE SECURITIES | E158: SELL | F158: 140,737 | G158: 1057.19 | H158: NSE
A159: 2022-08-18 | B159: RIIL | C159: Reliance Indl Infra Ltd | D159: HRTI PRIVATE LIMITED | E159: SELL | F159: 103,234 | G159: 1062.72 | H159: NSE
A160: 2022-08-18 | B160: RIIL | C160: Reliance Indl Infra Ltd | D160: NK SECURITIES RESEARCH PRIVATE LIMITED | E160: SELL | F160: 169,257 | G160: 1059.07 | H160: NSE
A161: 2022-08-18 | B161: RIIL | C161: Reliance Indl Infra Ltd | D161: AAKRAYA RESEARCH LLP | E161: SELL | F161: 94,693 | G161: 1063.14 | H161: NSE
A162: 2022-08-18 | B162: RIIL | C162: Reliance Indl Infra Ltd | D162: GRAVITON RESEARCH CAPITAL LLP | E162: SELL | F162: 423,871 | G162: 1062.48 | H162: NSE
A163: 2022-08-18 | B163: SECL | C163: Salasar Exterior Cont Ltd | D163: AKSHAYKUMAR RAJENDRABHAI OSWAL | E163: SELL | F163: 47,500 | G163: 135.03 | H163: NSE
A164: 2022-08-18 | B164: SECL | C164: Salasar Exterior Cont Ltd | D164: MOKSHA ROMIT SHAH | E164: SELL | F164: 85,000 | G164: 132.17 | H164: NSE
A165: 2022-08-18 | B165: SHAHALLOYS | C165: Shah Alloys Limited | D165: MULTIPLIER SHARE & STOCK ADVISORS PRIVATE LIMITED | E165: SELL | F165: 130,008 | G165: 53.87 | H165: NSE
A166: 2022-08-18 | B166: SILGO | C166: Silgo Retail Limited | D166: GAURAV CHORDIA | E166: SELL | F166: 63,001 | G166: 25.89 | H166: NSE
A167: 2022-08-18 | B167: SONACOMS | C167: Sona BLW Precision Frgs L | D167: MANSI SHARES & STOCK ADVISORS PVT LTD | E167: SELL | F167: 3,149,027 | G167: 515.78 | H167: NSE
A168: 2022-08-18 | B168: SONACOMS | C168: Sona BLW Precision Frgs L | D168: MARWADI SHARES AND FINANCE LTD. | E168: SELL | F168: 3,357,995 | G168: 518.26 | H168: NSE
A169: 2022-08-18 | B169: SUVIDHAA | C169: Suvidhaa Infoserve Ltd | D169: RAVI OMPRAKASH AGRAWAL | E169: SELL | F169: 1,555,000 | G169: 6.08 | H169: NSE
A170: 2022-08-18 | B170: VAISHALI | C170: Vaishali Pharma Limited | D170: SMRUTIBEN SHREYANSBHAI SHAH | E170: SELL | F170: 75,000 | G170: 95.75 | H170: NSE
A171: 2022-08-18 | B171: VAISHALI | C171: Vaishali Pharma Limited | D171: SHAH SANDIP JAYSHUKHLAL | E171: SELL | F171: 100,000 | G171: 95.85 | H171: NSE
A172: 2022-08-18 | B172: VIKASECO | C172: Vikas EcoTech Limited | D172: ANKITA VISHAL SHAH | E172: SELL | F172: 3,468,999 | G172: 3.86 | H172: NSE

Sheet Call Tracker (Equity & F&O)
M5: Back To Main Page
A6: Retail Research Technical Calls & Fundamental Performance Report for the month of Aug-2022
M7: =Main!B10 -> 2022-08-19
B8: Positional Call
A9: Sr.no | B9: Date | D9: Company | E9: Rec | F9: Rec Price | G9: Stop Loss*** | H9: Call Closed At | I9: Target | J9: Remark | K9: Profit / Loss per Share | L9: All charges | M9: Net Gain / Loss % | N9: Status | O9: Closed Date | P9: Market Closing Price
A10: 1 | B10: 2022-05-19 | D10: BHARTIARTL | E10: Buy<> | F10: 678 | G10: 635 | H10: 719 | I10: 750-780 | J10: Profit of Rs.41/- | K10: =H10-F10 -> 41 | L10: =(F10*-0.7)/100 -> -4.75 | M10: =(K10+L10)/F10 -> 5.35% | N10: Successful | O10: 2022-08-11 | R10: H
A11: 2 | B11: 2022-07-06 | D11: REDINGTON | E11: Buy<> | F11: 121.4 | G11: 113.4 | H11: 128.5 | I11: 135-140 | J11: Profit of Rs.7.1/- | K11: =H11-F11 -> 7.1 | L11: =(F11*-0.7)/100 -> -0.85 | M11: =(K11+L11)/F11 -> 5.15% | N11: Successful | O11: 2022-08-01 | R11: H
A12: 3 | B12: 2022-07-13 | D12: IOC | E12: Buy<> | F12: 68.1 | G12: 64.6 | H12: 72.2 | I12: 72.6-74.6 | J12: Profit of Rs.4.10/- | K12: 4.1 | L12: -0.48 | M12: 5.32% | N12: Successful | O12: 2022-08-16 | R12: H
A13: 4 | B13: 2022-07-26 | D13: TATACOMM | E13: Buy | F13: 1030 | G13: 970 | H13: 1094 | I13: 1100-1150 | J13: Profit of Rs.64/- | K13: =H13-F13 -> 64 | L13: =(F13*-0.7)/100 -> -7.21 | M13: =(K13+L13)/F13 -> 5.51% | N13: Successful | O13: 2022-08-05 | R13: H
A14: 5 | B14: 2022-07-28 | D14: ZYDUSLIFE | E14: Buy | F14: 350 | G14: 329 | H14: 370 | I14: 380-390 | J14: Profit of Rs.20/- | K14: =H14-F14 -> 20 | L14: =(F14*-0.7)/100 -> -2.45 | M14: =(K14+L14)/F14 -> 5.01% | N14: Successful | O14: 2022-08-11 | R14: N
A15: 6 | B15: 2022-08-12 | D15: BATAINDIA | E15: Buy | F15: 1905 | G15: 1750 | H15: 1982.5 | I15: 2100-2200 | J15: Part profit of Rs.77.5/- | K15: =H15-F15 -> 77.5 | L15: =(F15*-0.7)/100 -> -13.34 | M15: =(K15+L15)/F15 -> 3.37% | N15: Successful | O15: 2022-08-16 | R15: H
A20: CLBS = Closing Basis ***
A21: Dividend adjusted <> | F21: Reinitiated $
A22: Part book {} | D22: s | F22: Revised stoploss #
B24: Momentum Call
A25: Sr.no | B25: Date | D25: Company | E25: Rec | F25: Rec Price | G25: Stop Loss | H25: Call Closed At | I25: Target | J25: Remark | K25: Profit / Loss per Share/Lot | L25: All charges | M25: Net Gain / Loss % | N25: Status | O25: Closed Date
A26: 1 | B26: 2022-07-29 | D26: POLYCAB | E26: Buy | F26: 2305 | G26: 2240 | H26: 2368 | I26: 2380-2420 | J26: Profit of Rs.63/- | K26: =H26-F26 -> 63 | L26: =(F26*-0.7)/100 -> -16.14 | M26: =(K26+L26)/F26 -> 2.03% | N26: Successful | O26: 2022-08-02 | R26: H
A27: 2 | B27: 2022-08-02 | D27: REDINGTON | E27: Buy | F27: 128 | G27: 123 | H27: 131.25 | I27: 132-135 | J27: Profit of Rs.3.25/- | K27: =H27-F27 -> 3.25 | L27: =(F27*-0.07)/100 -> -0.09 | M27: =(K27+L27)/F27 -> 2.47% | N27: Successful | O27: 2022-08-02 | R27: H
A28: 3 | B28: 2022-08-02 | D28: BALKRISIND | E28: Buy | F28: 2405 | G28: 2330 | H28: 2330 | I28: 2480-2530 | J28: Loss of Rs.75/- | K28: =H28-F28 -> -75 | L28: =(F28*-0.07)/100 -> -1.68 | M28: =(K28+L28)/F28 -> -3.19% | N28: Unsuccessful | O28: 2022-08-04 | R28: N
A29: 4 | B29: 2022-08-02 | D29: HDFCLIFE | E29: Buy | F29: 536.5 | G29: 519 | H29: 548 | I29: 560-570 | J29: Profit of Rs.11.5/- | K29: 11.5 | L29: =(F29*-0.7)/100 -> -3.76 | M29: 1.44% | N29: Successful | O29: 2022-08-16 | R29: H
A30: 5 | B30: 2022-08-05 | D30: BALKRISIND | E30: Buy | F30: 2145 | G30: 2070 | H30: 2192.5 | I30: 2230-2270 | J30: Profit of Rs.47.5/- | K30: =H30-F30 -> 47.5 | L30: =(F30*-0.7)/100 -> -15.02 | M30: =(K30+L30)/F30 -> 1.51% | N30: Successful | O30: 2022-08-12 | R30: H
A31: 6 | B31: 2022-08-08 | D31: CARBORUNIV | E31: Buy | F31: 825 | G31: 799 | H31: 834.5 | I31: 855-875 | J31: Profit of Rs.9.5/- | K31: =H31-F31 -> 9.5 | L31: =(F31*-0.07)/100 -> -0.58 | M31: =(K31+L31)/F31 -> 1.08% | N31: Successful | O31: 2022-08-08 | R31: H
A32: 7 | B32: 2022-08-11 | D32: GUJGASLTD | E32: Buy | F32: 465 | G32: 452 | H32: 477.5 | I32: 485-495 | J32: Profit of Rs.12.5/- | K32: 12.5 | L32: =(F32*-0.7)/100 -> -3.26 | M32: 1.99% | N32: Successful | O32: 2022-08-12 | R32: H
A33: 8 | B33: 2022-08-12 | D33: BIRLACROPN | E33: Buy | F33: 948 | G33: 920 | H33: 974.5 | I33: 980-1000 | J33: Profit of Rs.26.5/- | K33: 26.5 | L33: -6.64 | M33: 2.10% | N33: Successful | O33: 2022-08-16 | R33: N
A34: 9 | B34: 2022-08-12 | D34: FINPIPE | E34: Buy | F34: 142.5 | G34: 138.5 | H34: 146.75 | I34: 150-152 | J34: Profit of Rs.11.5/- | K34: =H34-F34 -> 4.25 | L34: =(F34*-0.7)/100 -> -1.00 | M34: =(K34+L34)/F34 -> 2.28% | N34: Successful | O34: 2022-08-16 | R34: H
A35: 10 | B35: 2022-08-17 | D35: SUPREMEIND | E35: Buy | F35: 1955 | G35: 1895 | H35: 2005 | I35: 2030-2070 | J35: Profit of Rs.50/- | K35: 50 | L35: =(F35*-0.07)/100 -> -1.37 | M35: 2.49% | N35: Successful | O35: 2022-08-17
A36: 11 | B36: 2022-08-18 | D36: CARBORUNIV | E36: Buy | F36: 828-832 | G36: 810 | I36: 860-870 | J36: Open
A37: 12 | B37: 2022-08-18 | D37: SUPREMEIND | E37: Buy | F37: 1935-1945 | G37: 1880 | I37: 2110-2150 | J37: Open
A38: 13 | B38: 2022-08-18 | D38: ACC | E38: Buy | F38: 2300-2315 | G38: 2240 | I38: 2400-2450 | J38: Open
A41: CLBS = Closing Basis *** | H41: *
A42: Dividend adjusted <> | F42: Reinitiated $
F43: Revised stoploss #
A45: Master Trade High Risk
A46: Sr.no | B46: Date | D46: Company | E46: Rec | F46: Rec Price | G46: Stop Loss | H46: Call Closed At | I46: Target | J46: Remark | K46: Profit / Loss per share | L46: All charges | M46: Gain / Loss per Lot | N46: Lot | O46: Status | P46: Closed Date
A47: 1 | B47: 2022-06-27 | D47: PIDILITIND JULY FUT | E47: Buy | F47: 2140 | G47: 2090 | H47: 2170 | I47: 2200-2240 | J47: Profit of Rs.30/- | K47: =H47-F47 -> 30 | L47: =(H47*N47)*0.07% -> 379.75 | M47: =(K47*N47)-L47 -> 7120.3 | N47: 250 | O47: Successful | P47: 2022-07-01 | R47: H
A48: 2 | B48: 2022-06-30 | D48: APOLLOHOSP JULY FUT | E48: Buy | F48: 3720 | G48: 3620 | H48: 3780 | I48: 3850-3900 | J48: Profit of Rs.60/- | K48: =H48-F48 -> 60 | L48: =(H48*N48)*0.07% -> 463.05 | M48: =(K48*N48)-L48 -> 10037.0 | N48: 175 | O48: Successful | P48: 2022-07-04 | R48: N
A49: 3 | B49: 2022-06-30 | D49: COLPAL JULY FUT | E49: Buy | F49: 1488 | G49: 1450 | H49: 1512 | I49: 1530-1560 | J49: Profit of Rs.24/- | K49: =H49-F49 -> 24 | L49: =(H49*N49)*0.07% -> 370.44 | M49: =(K49*N49)-L49 -> 8029.6 | N49: 350 | O49: Successful | P49: 2022-07-01 | R49: H
A50: 4 | B50: 2022-07-01 | D50: SIEMENS JULY FUT | E50: Buy | F50: 2397.5 | G50: 2355 | H50: 2437.5 | I50: 2450-2470 | J50: Profit of Rs.40/- | K50: 40 | L50: 469.22 | M50: 10530.8 | N50: 275 | O50: Successful | P50: 2022-07-04 | R50: N
A51: 5 | B51: 2022-07-05 | D51: AXISBANK JULY FUT | E51: Buy | F51: 653 | G51: 642 | H51: 663.5 | I51: 665-675 | J51: Profit of Rs.10.5/- | K51: =H51-F51 -> 10.5 | L51: =(H51*N51)*0.07% -> 557.34 | M51: =(K51*N51)-L51 -> 12042.7 | N51: 1200 | O51: Successful | P51: 2022-07-07 | R51: H
A52: 6 | B52: 2022-07-06 | D52: GRASIM JULY FUT | E52: Buy | F52: 1361.5 | G52: 1335 | H52: 1384 | I52: 1390-1410 | J52: Profit of Rs.22.5/- | K52: 22.5 | L52: 460.18 | M52: 10227.3 | N52: 475 | O52: Successful | P52: 2022-07-07 | R52: N
A53: 7 | B53: 2022-07-06 | D53: IRCTC JULY FUT | E53: Buy | F53: 576 | G53: 562 | H53: 587 | I53: 590-600 | J53: Profit of Rs.11/- | K53: 11 | L53: 359.54 | M53: 9265.5 | N53: 875 | O53: Successful | P53: 2022-07-07 | R53: H
A54: 8 | B54: 2022-07-07 | D54: ICICIBANK JULY FUT | E54: Buy | F54: 743.5 | G54: 734.5 | H54: 751.5 | I54: 755-765 | J54: Profit of Rs.8/- | K54: =H54-F54 -> 8 | L54: =(H54*N54)*0.07% -> 723.32 | M54: =(K54*N54)-L54 -> 10276.7 | N54: 1375 | O54: Successful | P54: 2022-07-08 | R54: H
A55: 9 | B55: 2022-07-08 | D55: PIIND JULY FUT | E55: Buy | F55: 2755 | G55: 2710 | H55: 2797.5 | I55: 2820-2850 | J55: Profit of Rs.42.5/- | K55: 42.5 | L55: 489.56 | M55: 10135.4 | N55: 250 | O55: Successful | P55: 2022-07-11 | R55: N
A56: 10 | B56: 2022-07-11 | D56: PIDILITIND JULY FUT | E56: Buy | F56: 2235 | G56: 2190 | H56: 2280 | I56: 2290-2310 | J56: Profit of Rs.45/- | K56: 45 | L56: 399.00 | M56: 10851.0 | N56: 250 | O56: Successful | P56: 2022-07-13 | R56: N
A57: 11 | B57: 2022-07-11 | D57: NIFTY JULY FUT | E57: Buy | F57: 16110 | G57: 15970 | H57: 16210 | I57: 16300-16400 | J57: Profit of Rs.100/- | K57: =H57-F57 -> 100 | L57: =(H57*N57)*0.07% -> 567.35 | M57: =(K57*N57)-L57 -> 4432.7 | N57: 50 | O57: Successful | P57: 2022-07-11 | R57: H
A58: 12 | B58: 2022-07-11 | D58: JSWSTEEL JULY FUT | E58: Buy | F58: 579.5 | G58: 569 | H58: 569 | I58: 590-598 | J58: Loss of Rs.10.5/- | K58: =H58-F58 -> -10.5 | L58: =(H58*N58)*0.07% -> 537.71 | M58: =(K58*N58)-L58 -> -14712.7 | N58: 1350 | O58: Unsuccessful | P58: 2022-07-12 | R58: N
A59: 13 | B59: 2022-07-12 | D59: NIFTY JULY FUT | E59: Buy | F59: 16100 | G59: 15970 | H59: 16115 | I59: 16300-16400 | J59: Profit of Rs.15/- | K59: 15 | L59: 564.03 | M59: 186.0 | N59: 50 | O59: Neutral | P59: 2022-07-13 | R59: H
A60: 14 | B60: 2022-07-12 | D60: BHARATFORG JULY FUT | E60: Buy | F60: 645 | G60: 632 | H60: 632 | I60: 660-670 | J60: Loss of Rs.13/- | K60: =H60-F60 -> -13 | L60: =(H60*N60)*0.07% -> 442.40 | M60: =(K60*N60)-L60 -> -13442.4 | N60: 1000 | O60: Unsuccessful | P60: 2022-07-12 | R60: N
A61: 15 | B61: 2022-07-13 | D61: BANKNIFTY JULY FUT | E61: Sell | F61: 35330 | G61: 35640 | H61: 35140 | I61: 35000-34700 | J61: Profit of Rs.190/- | K61: =F61-H61 -> 190 | L61: 614.95 | M61: 4135.1 | N61: 25 | O61: Successful | P61: 2022-07-13 | R61: H
A62: 16 | B62: 2022-07-14 | D62: SIEMENS JULY FUT | E62: Buy | F62: 2647.5 | G62: 2600 | H62: 2681 | I62: 2700-2740 | J62: Profit of Rs.33.5/- | K62: =H62-F62 -> 33.5 | L62: 516.09 | M62: 8696.4 | N62: 275 | O62: Successful | P62: 2022-07-15 | R62: N
A63: 17 | B63: 2022-07-14 | D63: IRCTC JULY FUT | E63: Buy | F63: 579.5 | G63: 565 | H63: 588.5 | I63: 595-610 | J63: Profit of Rs.9/- | K63: =H63-F63 -> 9 | L63: =(H63*N63)*0.07% -> 360.46 | M63: =(K63*N63)-L63 -> 7514.5 | N63: 875 | O63: Successful | P63: 2022-07-15 | R63: N
A64: 18 | B64: 2022-07-15 | D64: CONCOR JULY FUT | E64: Buy | F64: 675 | G64: 661 | H64: 684 | I64: 690-705 | J64: Profit of Rs9/- | K64: 9 | L64: 478.80 | M64: 8521.2 | N64: 1000 | O64: Successful | P64: 2022-07-15 | R64: N
A65: 19 | B65: 2022-07-15 | D65: CIPLA JULY FUT | E65: Buy | F65: 956 | G65: 935 | H65: 972 | I65: 980-990 | J65: Profit of Rs.16/- | K65: =H65-F65 -> 16 | L65: =(H65*N65)*0.07% -> 442.26 | M65: =(K65*N65)-L65 -> 9957.7 | N65: 650 | O65: Successful | P65: 2022-07-18 | R65: H
A66: 20 | B66: 2022-07-15 | D66: HDFCAMC JULY FUT | E66: Buy | F66: 1892.5 | G66: 1850 | H66: 1923 | I66: 1940-1970 | J66: Profit of Rs.30.5/- | K66: 30.5 | L66: 403.83 | M66: 8746.2 | N66: 300 | O66: Successful | P66: 2022-07-18 | R66: N
A67: 21 | B67: 2022-07-15 | D67: CROMPTON JULY FUT | E67: Buy | F67: 391.5 | G67: 382 | H67: 399 | I67: 400-410 | J67: Profit of Rs.7.5/- | K67: 7.5 | L67: 418.95 | M67: 10831.1 | N67: 1500 | O67: Successful | P67: 2022-07-19 | R67: N
A68: 22 | B68: 2022-07-18 | D68: LALPATHLAB JULY FUT | E68: Sell | F68: 1980 | G68: 2030 | H68: 2030 | I68: 1930-1880 | J68: Loss of Rs.50/- | K68: =F68-H68 -> -50 | L68: =(H68*N68)*0.07% -> 355.25 | M68: =(K68*N68)-L68 -> -12855.3 | N68: 250 | O68: Unsuccessful | P68: 2022-07-19 | R68: N
A69: 23 | B69: 2022-07-18 | D69: CONCOR JULY FUT | E69: Buy | F69: 673 | G69: 658 | H69: 681 | I69: 690-705 | J69: Profit of Rs.8/- | K69: =H69-F69 -> 8 | L69: =(H69*N69)*0.07% -> 476.70 | M69: =(K69*N69)-L69 -> 7523.3 | N69: 1000 | O69: Successful | P69: 2022-07-19 | R69: N
A70: 24 | B70: 2022-07-18 | D70: BAJFINANCE JULY FUT | E70: Buy | F70: 6060 | G70: 5950 | H70: 6145 | I70: 6200-6250 | J70: Profit of Rs.85/- | K70: =H70-F70 -> 85 | L70: =(H70*N70)*0.07% -> 537.69 | M70: =(K70*N70)-L70 -> 10087.3 | N70: 125 | O70: Successful | P70: 2022-07-20 | R70: H
A71: 25 | B71: 2022-07-18 | D71: PIDILITIND JULY FUT | E71: Buy | F71: 2280 | G71: 2230 | H71: 2300 | I71: 2340-2370 | J71: Profit of Rs.20/- | K71: =H71-F71 -> 20 | L71: =(H71*N71)*0.07% -> 402.50 | M71: =(K71*N71)-L71 -> 4597.5 | N71: 250 | O71: Successful | P71: 2022-07-20 | R71: N
A72: 26 | B72: 2022-07-18 | D72: VEDL JULY FUT | E72: Buy | F72: 237.5 | G72: 229 | H72: 248 | I72: 245-255 | J72: Profit of Rs.10.5/- | K72: =H72-F72 -> 10.5 | L72: =(H72*N72)*0.07% -> 269.08 | M72: =(K72*N72)-L72 -> 16005.9 | N72: 1550 | O72: Successful | P72: 2022-07-20 | R72: H
A73: 27 | B73: 2022-07-19 | D73: TRENT JULY FUT | E73: Buy | F73: 1217 | G73: 1200 | H73: 1201 | I73: 1240-1250 | J73: Loss of Rs.16/- | K73: =H73-F73 -> -16 | L73: =(H73*N73)*0.07% -> 609.51 | M73: =(K73*N73)-L73 -> -12209.5 | N73: 725 | O73: Unsuccessful | P73: 2022-07-19 | R73: N
A74: 28 | B74: 2022-07-20 | D74: SIEMENS AUG FUT | E74: Sell | F74: 2705 | G74: 2750 | H74: 2750 | I74: 2640-2600 | J74: Loss of Rs.45/- | K74: =F74-H74 -> -45 | L74: 529.38 | M74: -12904.4 | N74: 275 | O74: Unsuccessful | P74: 2022-07-21 | R74: H
A75: 29 | B75: 2022-07-20 | D75: BATAINDIA JULY FUT | E75: Buy | F75: 1855 | G75: 1810 | H75: 1812 | I75: 1900-1930 | J75: Loss of Rs.13/- | K75: =H75-F75 -> -43 | L75: 348.81 | M75: -12173.8 | N75: 275 | O75: Unsuccessful | P75: 2022-07-21 | R75: N
A76: 30 | B76: 2022-07-21 | D76: CIPLA JULY FUT | E76: Buy | F76: 973 | G76: 953 | H76: 974 | I76: 1000-1020 | J76: Profit of Rs.1/- | K76: 1 | L76: 443.17 | M76: 206.8 | N76: 650 | O76: Neutral | P76: 2022-07-25 | R76: H
A77: 31 | B77: 2022-07-25 | D77: PIDILITIND AUG FUT | E77: Buy | F77: 2320 | G77: 2270 | H77: 2349 | I77: 2380-2400 | J77: Profit of Rs.29/- | K77: 29 | L77: 411.08 | M77: 6838.9 | N77: 250 | O77: Successful | P77: 2022-07-27 | R77: H
A78: 32 | B78: 2022-07-26 | D78: AARTIIND AUG FUT | E78: Buy | F78: 773.5 | G78: 758 | H78: 761 | I78: 790-800 | J78: Loss of Rs.12.5/- | K78: =H78-F78 -> -12.5 | L78: =(H78*N78)*0.07% -> 452.80 | M78: =(K78*N78)-L78 -> -11077.8 | N78: 850 | O78: Unsuccessful | P78: 2022-07-26 | R78: N
A79: 33 | B79: 2022-07-28 | D79: MPHASIS AUG FUT | E79: Buy | F79: 2240 | G79: 2170 | H79: 2290 | I79: 2320-2360 | J79: Profit of Rs.50/- | K79: 50 | L79: 280.53 | M79: 8469.5 | N79: 175 | O79: Successful | P79: 2022-07-29 | R79: N
A80: 34 | B80: 2022-07-28 | D80: TATACOMM AUG FUT | E80: Buy | F80: 1031 | G80: 1005 | H80: 1049 | I80: 1060-1080 | J80: Profit of Rs.18/- | K80: 18 | L80: 367.15 | M80: 8632.9 | N80: 500 | O80: Successful | P80: 2022-07-29 | R80: H
A81: 35 | B81: 2022-07-28 | D81: PIDILITIND AUG FUT | E81: Buy | F81: 2400 | G81: 2349 | H81: 2435 | I81: 2460-2500 | J81: Profit of Rs.35/- | K81: 35 | L81: 426.13 | M81: 8323.9 | N81: 250 | O81: Successful | P81: 2022-07-29 | R81: N
A82: 36 | B82: 2022-07-29 | D82: SBIN AUG FUT | E82: Sell | F82: 535 | G82: 544 | H82: 529.5 | I82: 520-515 | J82: Profit of Rs.5.5/- | K82: =F82-H82 -> 5.5 | L82: =(H82*N82)*0.07% -> 555.98 | M82: =(K82*N82)-L82 -> 7694.0 | N82: 1500 | O82: Successful | P82: 2022-07-29 | R82: H
A83: 1 | B83: 2022-07-29 | D83: IEX AUG FUT | E83: Buy | F83: 159.35 | G83: 155 | H83: 162.3 | I83: 164-166 | J83: Profit of Rs.2.95/- | K83: =H83-F83 -> 2.95 | L83: 426.04 | M83: 10636.5 | N83: 3750 | O83: Successful | P83: 2022-08-01 | R83: H
A84: 2 | B84: 2022-07-29 | D84: NIFTY AUG FUT | E84: Sell | F84: 17130 | G84: 17350 | H84: 17350 | I84: 16900 | J84: Loss of Rs.171.5/- | K84: =F84-H84 -> -220 | L84: =(H84*N84)*0.07% -> 607.25 | M84: =(-171.5*N84)-707 -> -9282 | N84: 50 | O84: Unsuccessful | P84: 2022-08-01 | R84: H
D85: NIFTY 16950 PE 4 AUG | E85: Sell | F85: 67.5 | H85: 19 | K85: =F85-H85 -> 48.5 | L85: 100
A86: 3 | B86: 2022-08-01 | D86: COLPAL AUG FUT | E86: Buy | F86: 1581.5 | G86: 1535 | H86: 1605 | I86: 1630-1660 | J86: Profit of Rs.23.5/- | K86: =H86-F86 -> 23.5 | L86: =(H86*N86)*0.07% -> 393.23 | M86: =(K86*N86)-L86 -> 7831.8 | N86: 350 | O86: Successful | P86: 2022-08-05 | R86: N
A87: 4 | B87: 2022-08-02 | D87: PIIND AUG FUT | E87: Buy | F87: 3050 | G87: 2995 | H87: 3080 | I87: 3150-3200 | J87: Profit of Rs.30/- | K87: =H87-F87 -> 30 | L87: =(H87*N87)*0.07% -> 539.00 | M87: =(K87*N87)-L87 -> 6961.0 | N87: 250 | O87: Successful | P87: 2022-08-03 | R87: H
A88: 5 | B88: 2022-08-03 | D88: NIFTY AUG FUT | E88: Sell | F88: 17370 | G88: 17530 | H88: 17270 | I88: 17000 | J88: Profit of Rs.100/- | K88: =F88-H88 -> 100 | L88: =(H88*N88)*0.07% -> 604.45 | M88: =(K88*N88)-L88 -> 4395.6 | N88: 50 | O88: Successful | P88: 2022-08-03 | R88: H
A89: 6 | B89: 2022-08-03 | D89: LT AUG FUT | E89: Sell | F89: 1800 | G89: 1840 | H89: 1787.5 | I89: 1750-1730 | J89: Profit of Rs.12.50- | K89: =F89-H89 -> 12.5 | L89: 375.38 | M89: 3374.6 | N89: 300 | O89: Successful | P89: 2022-08-04 | R89: H
A90: 7 | B90: 2022-08-03 | D90: NIFTY AUG FUT | E90: Sell | F90: 17340 | G90: 17510 | H90: 17210 | I90: 17000 | J90: Profit of Rs.130/- | K90: =F90-H90 -> 130 | L90: =(H90*N90)*0.07% -> 602.35 | M90: =(K90*N90)-L90 -> 5897.7 | N90: 50 | O90: Successful | P90: 2022-08-04 | R90: H
A91: 8 | B91: 2022-08-03 | D91: INTELLECT AUG FUT | E91: Buy | F91: 630 | G91: 615 | H91: 616 | I91: 650-660 | J91: Loss of Rs.14/- | K91: =H91-F91 -> -14 | L91: 323.40 | M91: -10823.4 | N91: 750 | O91: Unsuccessful | P91: 2022-08-04 | R91: N
A92: 9 | B92: 2022-08-03 | D92: BALKRISIND AUG FUT | E92: Buy | F92: 2380 | G92: 2340 | H92: 2415 | I92: 2440-2480 | J92: Profit of Rs.35/- | K92: =H92-F92 -> 35 | L92: =(H92*N92)*0.07% -> 507.15 | M92: =(K92*N92)-L92 -> 9992.9 | N92: 300 | O92: Successful | P92: 2022-08-04 | R92: H
A93: 10 | B93: 2022-08-04 | D93: NIFTY AUG FUT | E93: Sell | F93: 17375 | G93: 17530 | H93: 17530 | I93: 17000 | J93: Loss of Rs.155/- | K93: =F93-H93 -> -155 | L93: 613.55 | M93: -8363.6 | N93: 50 | O93: Unsuccessful | P93: 2022-08-08 | R93: H
A94: 11 | B94: 2022-08-08 | D94: AXISBANK AUG FUT | E94: Sell | F94: 733 | G94: 743 | H94: 743 | I94: 720-710 | J94: Loss of Rs.10/- | K94: =F94-H94 -> -10 | L94: =(H94*N94)*0.07% -> 6241.20 | M94: =(K94*N94)-L94 -> -126241.2 | N94: 12000 | O94: Unsuccessful | P94: 2022-08-08 | R94: H
A95: 12 | B95: 2022-08-08 | D95: HCLTECH AUG FUT | E95: Sell | F95: 955 | G95: 973 | H95: 969.5 | I95: 930-920 | J95: Loss of Rs.14.5/- | K95: =F95-H95 -> -14.5 | L95: =(H95*N95)*0.07% -> 475.06 | M95: =(K95*N95)-L95 -> -10625.1 | N95: 700 | O95: Unsuccessful | P95: 2022-08-17 | R95: H
A96: 13 | B96: 2022-08-08 | D96: COLPAL AUG FUT | E96: Buy | F96: 1600 | G96: 1563 | H96: 1622.5 | I96: 1640-1670 | J96: Profit of Rs.22.5/- | K96: =H96-F96 -> 22.5 | L96: =(H96*N96)*0.07% -> 397.51 | M96: =(K96*N96)-L96 -> 7477.5 | N96: 350 | O96: Successful | P96: 2022-08-10 | R96: N
A97: 14 | B97: 2022-08-10 | D97: COLPAL AUG FUT | E97: Buy | F97: 1593-1596 | G97: 1557 | I97: 1630-1660 | J97: Open | R97: N
A98: 15 | B98: 2022-08-10 | D98: CROMPTON AUG FUT | E98: Buy | F98: 374 | G98: 365 | H98: 380 | I98: 383-390 | J98: Profit of Rs.6/- | K98: =H98-F98 -> 6 | L98: =(H98*N98)*0.07% -> 399.00 | M98: =(K98*N98)-L98 -> 8601.0 | N98: 1500 | O98: Successful | P98: 2022-08-12 | R98: N
A99: 16 | B99: 2022-08-11 | D99: BHARTIARTL AUG FUT | E99: Sell | F99: 714 | G99: 726 | H99: 705.5 | I99: 700-690 | J99: Profit of Rs.8.5/- | K99: =F99-H99 -> 8.5 | L99: 469.16 | M99: 7605.8 | N99: 950 | O99: Successful | P99: 2022-08-16 | R99: H
A100: 17 | B100: 2022-08-16 | D100: NIFTY AUG FUT | E100: Sell | F100: 17790 | G100: 17930 | H100: 17930 | I100: 17600-17500 | J100: Loss of Rs.140/- | K100: =F100-H100 -> -140 | L100: 627.55 | M100: -7627.6 | N100: 50 | O100: Unsuccessful | P100: 2022-08-17
A101: 18 | B101: 2022-08-16 | D101: MCDOWELL-N AUG FUT | E101: Buy | F101: 796 | G101: 776 | H101: 809 | I101: 820-830 | J101: Profit of Rs.13/- | K101: =H101-F101 -> 13 | L101: =(H101*N101)*0.07% -> 353.94 | M101: =(K101*N101)-L101 -> 7771.1 | N101: 625 | O101: Successful | P101: 2022-08-16
A102: 19 | B102: 2022-08-16 | D102: GLENMARK AUG FUT | E102: Buy | F102: 386 | G102: 377 | H102: 394 | I102: 400-405 | J102: Profit of Rs.8/- | K102: =H102-F102 -> 8 | L102: =(H102*N102)*0.07% -> 317.17 | M102: =(K102*N102)-L102 -> 8882.8 | N102: 1150 | O102: Successful | P102: 2022-08-17
A103: 20 | B103: 2022-08-16 | D103: GSPL AUG FUT | E103: Buy | F103: 244.5 | G103: 239 | H103: 248.5 | I103: 250-254 | J103: Profit of Rs.4/- | K103: 4 | L103: 382.69 | M103: 8417.3 | N103: 2200 | O103: Successful | P103: 2022-08-18
A104: 21 | B104: 2022-08-16 | D104: CUMMINSIND AUG FUT | E104: Buy | F104: 1265 | G104: 1245 | H104: 1245 | I104: 1290-1305 | J104: Loss of Rs.20/- | K104: =H104-F104 -> -20 | L104: =(H104*N104)*0.07% -> 522.90 | M104: =(K104*N104)-L104 -> -12522.9 | N104: 600 | O104: Unsuccessful | P104: 2022-08-18
A105: 22 | B105: 2022-08-17 | D105: MPHASIS AUG FUT | E105: Buy | F105: 2370 | G105: 2300 | H105: 2410 | I105: 2450-2500 | J105: Profit of Rs.40/- | K105: =H105-F105 -> 40 | L105: =(H105*N105)*0.07% -> 295.23 | M105: =(K105*N105)-L105 -> 6704.8 | N105: 175 | O105: Successful | P105: 2022-08-17
A106: 23 | B106: 2022-08-17 | D106: COFORGE AUG FUT | E106: Buy | F106: 3885 | G106: 3815 | H106: 3945 | I106: 3990-4050 | J106: Profit of Rs.40/- | K106: =H106-F106 -> 60 | L106: =(H106*N106)*0.07% -> 414.23 | M106: =(K106*N106)-L106 -> 8585.8 | N106: 150 | O106: Successful | P106: 2022-08-17
A107: 24 | B107: 2022-08-18 | D107: MPHASIS AUG FUT | E107: Buy | F107: 2365 | G107: 2300 | H107: 2415 | I107: 2450-2500 | J107: Profit of Rs.50/- | K107: 50 | L107: 295.84 | M107: 8454.2 | N107: 175 | O107: Successful | P107: 2022-08-18
A108: 25 | B108: 2022-08-18 | D108: COFORGE AUG FUT | E108: Buy | F108: 3835-3845 | G108: 3770 | I108: 3950-4000
A109: 26 | B109: 2022-08-18 | D109: BHARATFORG AUG FUT | E109: Buy | F109: 760-762 | G109: 748 | I109: 775-785
A117: Master Trade Medium Risk
A118: Sr.no | B118: Date | D118: Company | E118: Rec | F118: Rec Price | G118: Stop Loss | H118: Call Closed At | I118: Target | J118: Remark | K118: Profit/ Loss per lot | L118: All charges | M118: Gain / Loss per Lot | N118: Lot | O118: Status | P118: Closed Date
A119: 1 | B119: 2022-07-29 | D119: BHARTIARTL 700 CE AUG | E119: Buy | F119: 11 | G119: 6 | H119: 13.5 | I119: 17-22 | J119: Profit of Rs.2.5/- | K119: =H119-F119 -> 2.5 | L119: 100.00 | M119: =(K119*N119)-L119 -> 2275.0 | N119: 950 | O119: Successful | P119: 2022-08-01 | R119: N
A120: 2 | B120: 2022-08-03 | D120: M&MFIN 205 CE AUG | E120: Sell | F120: 3.6 | G120: 5.25 | H120: 5.1 | I120: 1.5-0.5 | J120: Loss of Rs.1.5/- | K120: =F120-H120 -> -1.5 | L120: 100.00 | M120: =(K120*N120)-L120 -> -6100.0 | N120: 4000 | O120: Unsuccessful | P120: 2022-08-05 | R120: H
A121: 3 | B121: 2022-08-04 | D121: NIFTY 17800 CE 25 AUG | E121: Sell | F121: 110 | G121: 155 | H121: 88 | I121: 50-10 | J121: Profit of Rs.22/- | K121: =F121-H121 -> 22 | L121: 100.00 | M121: =(K121*N121)-L121 -> 1000.0 | N121: 50 | O121: Successful | P121: 2022-08-05 | R121: H
A122: 4 | B122: 2022-08-05 | D122: BANKNIFTY 37500 PE 11 AUG | E122: Buy | F122: 270 | G122: 120 | H122: 175 | I122: 500-600 | J122: Loss of Rs.95/- | K122: =H122-F122 -> -95 | L122: 100.00 | M122: -2475.0 | N122: 25 | O122: Unsuccessful | P122: 2022-08-05 | R122: H
A123: 5 | B123: 2022-08-10 | D123: AXISBANK 750 CE AUG | E123: Buy | F123: 13.75 | G123: 9 | H123: 15.75 | I123: 19-23 | J123: Profit of Rs.2/- | K123: 2 | L123: 100.00 | M123: 2300.0 | N123: 1200 | O123: Successful | P123: 2022-08-11 | R123: N
A124: 6 | B124: 2022-08-12 | D124: RELIANCE 2640 CE AUG | E124: Buy | F124: 40 | G124: 19 | H124: 47.5 | I124: 60-80 | J124: Profit of Rs.7.5/- | K124: 7.5 | L124: 100.00 | M124: 1775.0 | N124: 250 | O124: Successful | P124: 2022-08-17 | R124: H
A125: 7 | B125: 2022-08-16 | D125: BANKNIFY 39400 PE 18-AUG | E125: Buy | F125: 245 | G125: 140 | H125: 300 | I125: 350-400 | J125: Profit of Rs.55/- | K125: =H125-F125 -> 55 | L125: 100.00 | M125: =(K125*N125)-L125 -> 1275.0 | N125: 25 | O125: Successful | P125: 2022-08-16
A126: 8 | B126: 2022-08-16 | D126: NIFTY 18000 CE AUG | E126: Sell | F126: 90-95 | G126: 140 | I126: 10-5.0 | J126: Open
A127: 9 | B127: 2022-08-17 | D127: BANKNIFY 39400 PE 18-AUG | E127: Buy | F127: 235 | G127: 140 | H127: 295 | I127: 350-400 | J127: Profit of Rs.60/- | K127: =H127-F127 -> 60 | L127: 100.00 | M127: =(K127*N127)-L127 -> 1400.0 | N127: 25 | O127: Successful | P127: 2022-08-17
A128: 10 | B128: 2022-08-17 | D128: BHARATFORG 790 CE AUG | E128: Buy | F128: 10.5 | G128: 6 | H128: 6 | I128: 16-20 | J128: Loss of Rs.4.5/- | K128: -4.5 | L128: 100.00 | M128: -4600.0 | N128: 1000 | O128: Unsuccessful | P128: 2022-08-18
A129: 11 | B129: 2022-08-17 | D129: HAVELLS 1340 AUG | E129: Buy | F129: 29 | G129: 19 | H129: 34.5 | I129: 40-50 | J129: Profit of Rs.5.5/- | K129: =H129-F129 -> 5.5 | L129: 100.00 | M129: =(K129*N129)-L129 -> 2650.0 | N129: 500 | O129: Successful | P129: 2022-08-17
A130: 12 | B130: 2022-08-18 | D130: BANKNIFY 39500 PE 18-AUG | E130: Buy | F130: 175 | G130: 50 | H130: 225 | I130: 300-400 | J130: Profit of Rs.50/- | K130: 50 | L130: 100.00 | M130: 1150.0 | N130: 25 | O130: Successful | P130: 2022-08-18
A131: 13 | B131: 2022-08-18 | D131: NIFTY 17950 PE 18-AUG | E131: Buy | F131: 49 | G131: 14 | H131: 80 | I131: 80-100 | J131: Profit of Rs.31/- | K131: 31 | L131: 100.00 | M131: 1450.0 | N131: 50 | O131: Successful | P131: 2022-08-18
A132: 14 | B132: 2022-08-18 | D132: HCLTECH 980 CE AUG | E132: Buy | F132: 12.5 | G132: 5 | I132: 20-25 | J132: Open
A133: 15 | B133: 2022-08-18 | D133: BANKNIFTY 39300 PE 25-AUG | E133: Buy | F133: 300-320 | G133: 100 | I133: 500-600 | J133: Open
B134: 2022-08-18 | D134: BANKNIFTY 39300 PE 18-AUG | E134: Sell | F134: 45 | G134: 0 | H134: 0
A135: 16 | B135: 2022-08-18 | D135: RELIANCE 2660 CE AUG | E135: Buy | F135: 37-39 | G135: 17 | I135: 60-80 | J135: Open
A140: Techno -Funda (positional)
A141: Sr.no | B141: Date | D141: Company | E141: Rec | F141: Rec Price | G141: Stop Loss*** | H141: Call Closed At | I141: Target | J141: Remark | K141: Profit / Loss per Share/Lot | L141: All charges | M141: Net Gain / Loss % | N141: Status | O141: Closed Date | P141: Market Closing Price
R142: H
A145: CLBS = Closing Basis *** | F145: Reinitiated $
A146: Dividend adjusted <> | F146: Revised stoploss # | H146: .................
B150: Investment Idea
A151: Sr.no | B151: Date | D151: Company | E151: Rec | F151: Rec Price | G151: Point of Review | H151: Close Rate | I151: Target | J151: Remark | K151: Profit / Loss per Share | L151: Gain / Loss % | M151: Status | N151: Closed Date
A152: 1 | B152: 2013-11-01 | D152: L&T Finance Holding | E152: Accu | F152: 82.00 | G152: - | H152: 100 | I152: 100.00 | J152: Target Achieved | K152: =H152-F152 -> 18.00 | L152: =K152/F152 -> 21.95% | M152: Successful | N152: 2016-10-14
A153: 2 | B153: 2014-06-04 | D153: Finolex Inds | E153: Buy | F153: 257.00 | G153: - | H153: 300 | I153: 300.00 | J153: Target Achieved | K153: 43.00 | L153: 16.73% | M153: Successful | N153: 2014-07-02
A154: 3 | B154: 2014-07-08 | D154: JK Cement | E154: Buy | F154: 393.00 | G154: - | H154: 468 | I154: 468.00 | J154: Target Achieved | K154: 75.00 | L154: 19.08% | M154: Successful | N154: 2014-08-12
A155: 4 | B155: 2014-08-06 | D155: Finolex Cables | E155: Buy | F155: 205.00 | G155: - | H155: 275 | I155: 250.00 | J155: Target Achieved | K155: 70.00 | L155: 34.15% | M155: Successful | N155: 2014-11-19
A156: 5 | B156: 2014-09-04 | D156: Exide Inds | E156: Buy | F156: 162.00 | G156: - | H156: 190 | I156: 190.00 | J156: Target Achieved | K156: 28.00 | L156: 17.28% | M156: Successful | N156: 2015-01-02
A157: 6 | B157: 2014-09-04 | D157: Deepak Nitrite | E157: Buy | F157: 75.00 | G157: - | H157: 91.5 | I157: 95-100 | J157: Profit of Rs.16.50/- | K157: 16.50 | L157: 22.00% | M157: Successful | N157: 2014-11-11
A158: 7 | B158: 2014-10-01 | D158: Mercks | E158: Buy | F158: 850.00 | G158: - | H158: 982.5 | I158: 1050.00 | J158: Profit of Rs.132.50/- | K158: 132.50 | L158: 15.59% | M158: Successful | N158: 2015-02-04
A159: 8 | B159: 2014-10-01 | D159: Grindwell Norton | E159: Buy | F159: 475.00 | G159: - | H159: 515 | I159: 600.00 | J159: Profit of Rs.40/- | K159: 40.00 | L159: 8.42% | M159: Successful | N159: 2014-10-27
A160: 9 | B160: 2014-10-01 | D160: Snowman Logistics | E160: Buy | F160: 86.00 | G160: - | H160: 99 | I160: 140.00 | J160: Profit of Rs.13.00/- | K160: 13.00 | L160: 15.12% | M160: Successful | N160: 2014-10-27
A161: 10 | B161: 2014-10-14 | D161: Birla Corp | E161: Buy | F161: 496.60 | G161: - | H161: 621 | I161: 580.00 | J161: Target Achieved | K161: 124.40 | L161: 25.05% | M161: Successful | N161: 2016-08-23
A162: 11 | B162: 2014-10-14 | D162: Ultratech Cem | E162: Buy | F162: 2481.90 | G162: - | H162: 2840 | I162: 2870.00 | J162: Profit of Rs.358.10/- | K162: 358.10 | L162: 14.43% | M162: Successful | N162: 2015-01-13
A163: 12 | B163: 2014-10-16 | D163: Sintex Inds | E163: Buy | F163: 84.50 | G163: - | H163: 93 | I163: 110.00 | J163: Profit of Rs.8.50/- | K163: 8.50 | L163: 10.06% | M163: Successful | N163: 2014-10-27
A164: 13 | B164: 2014-10-16 | D164: HSIL | E164: Buy | F164: 401.00 | G164: - | H164: 428 | I164: 450.00 | J164: Profit of Rs.27.00/- | K164: 27.00 | L164: 6.73% | M164: Successful | N164: 2015-01-16
A165: 14 | B165: 2014-10-16 | D165: Eveready Inds | E165: Buy | F165: 101.00 | G165: - | H165: 112 | I165: 120.00 | J165: Profit of Rs.11.00/- | K165: 11.00 | L165: 10.89% | M165: Successful | N165: 2014-10-27
A166: 15 | B166: 2014-11-11 | D166: Pennar Inds | E166: Buy | F166: 59.00 | G166: - | H166: 76 | I166: 76.00 | J166: Target Achieved | K166: 17.00 | L166: 28.81% | M166: Successful | N166: 2017-10-24
A167: 16 | B167: 2014-11-11 | D167: Snowman Logistics | E167: Buy | F167: 99.00 | G167: - | H167: 120 | I167: 120.00 | J167: Profit of Rs.21/- | K167: 21.00 | L167: 21.21% | M167: Successful | N167: 2014-11-17
A168: 17 | B168: 2014-11-13 | D168: Dharamsi Morarji Chem | E168: Buy | F168: 22.00 | G168: - | H168: 33.55 | I168: 32.00 | J168: Profit of Rs 11.55/- | K168: 11.55 | L168: 52.50% | M168: Successful | N168: 2015-07-03
A169: 18 | B169: 2014-12-03 | D169: Tatachem | E169: Buy | F169: 440.00 | G169: - | H169: 520 | I169: 520.00 | J169: Profit of Rs 80.00/- | K169: 80.00 | L169: 18.18% | M169: Successful | N169: 2015-07-23
A170: 19 | B170: 2014-12-03 | D170: Advanta | E170: Buy | F170: 360.00 | G170: - | H170: 427 | I170: 425.00 | J170: Profit of Rs.67.00/- | K170: 67.00 | L170: 18.61% | M170: Successful | N170: 2015-02-23
A171: 20 | B171: 2015-01-08 | D171: GDL | E171: Buy | F171: 360.00 | G171: - | H171: 455 | I171: 420.00 | J171: Profit of Rs.95.00/- | K171: 95.00 | L171: 26.39% | M171: Successful | N171: 2015-01-20
A172: 21 | B172: 2015-01-08 | D172: NRB Bearing | E172: Buy | F172: 130.00 | H172: 175.5 | I172: 165.00 | J172: Profit of Rs 45.50/- | K172: 45.50 | L172: 35.00% | M172: Successful | N172: 2017-12-19
A173: 22 | B173: 2015-02-05 | D173: GSFC | E173: Accu | F173: 98.00 | H173: 120 | I173: 120.00 | J173: Target Achieved | K173: 22.00 | L173: 22.45% | M173: Successful | N173: 2017-01-18
A174: 23 | B174: 2015-02-05 | D174: Sundrmfast | E174: Accu | F174: 196.00 | H174: 262 | I174: 255.00 | J174: Target Achieved | K174: 66.00 | L174: 33.67% | M174: Successful | N174: 2016-08-17
A175: 24 | B175: 2015-03-04 | D175: GPPL | E175: Accu | F175: 235 | H175: 77.00 | I175: 280-285 | J175: Loss of Rs.158/- | K175: -158.00 | L175: -67.23% | M175: Unsuccessful | N175: 2019-02-26
A176: 25 | B176: 2015-03-04 | D176: ORIENTCEM | E176: Accu | F176: 185.00 | H176: 224 | I176: 220-225 | J176: Target Achieved | K176: 39.00 | L176: 21.08% | M176: Successful | N176: 2016-10-04
A177: 26 | B177: 2015-03-27 | D177: PFS | E177: Accu | F177: 49.5 | H177: 15.85 | I177: 67.00 | J177: Loss of Rs.33.65/- | K177: -33.65 | L177: -68% | M177: Unsuccessful | N177: 2019-06-11
A178: 27 | B178: 2015-03-30 | D178: Walchandnagar Ind Ltd | E178: Accu | F178: 183.50 | H178: 219 | I178: 218.00 | J178: Profit of Rs.35.50/- | K178: 35.50 | L178: 19.35% | M178: Successful | N178: 2015-04-09
A179: 28 | B179: 2015-04-20 | D179: Kalpataru Power Transmission Ltd | E179: Accu | F179: =(227+237)/2 -> 232.00 | H179: 298 | I179: 298.00 | J179: Target Achieved | K179: 66.00 | L179: 28.45% | M179: Successful | N179: 2017-03-29
A180: 29 | B180: 2015-05-04 | D180: Mastek Ltd | E180: Buy | F180: 385.00 | H180: =212.5+331 -> 543.5 | I180: 510.00 | J180: Profit of Rs 158.50/- | K180: 158.50 | L180: 41.17% | M180: Successful | N180: 2015-08-19
A181: 30 | B181: 2015-05-04 | D181: Suprajit Eng | E181: Buy | F181: 115.50 | H181: 146 | I181: 142.00 | J181: Profit of Rs 30.50/- | K181: 30.50 | L181: 26.41% | M181: Successful | N181: 2015-07-17
A182: 31 | B182: 2015-05-27 | D182: TCI | E182: Buy | F182: 237.50 | H182: 279.5 | I182: 278.00 | J182: Target Achieved | K182: 42.00 | L182: 17.68% | M182: Successful | N182: 2015-08-06
A183: 32 | B183: 2015-06-19 | D183: HSIL | E183: Accu | F183: 340.00 | H183: 448 | I183: 448.00 | J183: Target Achieved | K183: 108.00 | L183: 31.76% | M183: Successful | N183: 2017-10-10
A184: 33 | B184: 2015-07-06 | D184: Capital First | E184: Accu | F184: 390.00 | H184: 460 | I184: 460.00 | J184: Target Achieved | K184: 70.00 | L184: 17.95% | M184: Successful | N184: 2016-04-18
A185: 34 | B185: 2015-07-10 | D185: Dolphin OffShore | E185: Accu | F185: 122.5 | H185: 61.00 | I185: 172.00 | J185: Loss of Rs.61.50/- | K185: -61.50 | L185: -50.20% | M185: Unsuccessful | N185: 2018-08-21
A186: 35 | B186: 2015-08-03 | D186: Allcargo logistics | E186: Accu | F186: 297.50 | H186: 350 | I186: 360.00 | J186: Profit of Rs 52.50/- | K186: 52.50 | L186: 17.65% | M186: Successful | N186: 2015-08-16
A187: 36 | B187: 2015-08-03 | D187: Camline Fine | E187: Accu | F187: 115.50 | H187: 149 | I187: 140.00 | J187: Profit of Rs 33.50/- | K187: 33.50 | L187: 29.00% | M187: Successful | N187: 2017-01-05
A188: 37 | B188: 2015-09-04 | D188: TCI | E188: Accu | F188: 226.00 | H188: 292 | I188: 292.00 | J188: Target Achieved | K188: 66.00 | L188: 29.20% | M188: Successful | N188: 2015-10-09
A189: 38 | B189: 2015-09-07 | D189: Kalpataru Power Transmission Ltd | E189: Accu | F189: 232.50 | H189: 312.5 | I189: 310.00 | J189: Target Achieved | K189: 80.00 | L189: 34.41% | M189: Successful | N189: 2017-03-29
A190: 39 | B190: 2015-09-21 | D190: LLOYD ELECTRIC & ENG LTD | E190: Accu | F190: 196.50 | H190: 238 | I190: 238.00 | J190: Target Achieved | K190: 41.50 | L190: 21.12% | M190: Successful | N190: 2015-10-14
A191: 40 | B191: 2015-09-24 | D191: L&T Finance Holding | E191: Accu | F191: 65.00 | H191: 82 | I191: 82.00 | J191: Target Achieved | K191: 17.00 | L191: 26.15% | M191: Successful | N191: 2016-07-27
A192: 41 | B192: 2015-10-14 | D192: KEC International ltd | E192: Accu | F192: 144.00 | H192: 182.5 | I192: 181.00 | J192: Target Achieved | K192: 38.50 | L192: 26.74% | M192: Successful | N192: 2017-03-23
A193: 42 | B193: 2015-10-14 | D193: Gruh Finance | E193: Accu | F193: 264.00 | H193: 311 | I193: 311.00 | J193: Target Achieved | K193: 47.00 | L193: 17.80% | M193: Successful | N193: 2016-08-22
A194: 43 | B194: 2015-11-10 | D194: Pidilitind | E194: Buy | F194: 549.50 | H194: 630 | I194: 630.00 | J194: Target Achieved | K194: 80.50 | L194: 14.65% | M194: Successful | N194: 2016-02-19
A195: 44 | B195: 2015-12-04 | D195: Zensar Technology | E195: Accu | F195: 1027.50 | H195: 1315 | I195: 1250.00 | J195: Target Achieved | K195: 287.50 | L195: 27.98% | M195: Successful | N195: 2018-05-24
A196: 45 | B196: 2015-12-29 | D196: Vinati Organics Ltd | E196: Accu | F196: 465.00 | H196: 540 | I196: 540.00 | J196: Target Achieved | K196: 75.00 | L196: 16.13% | M196: Successful | N196: 2016-06-09
A197: 46 | B197: 2016-01-11 | D197: GSFC | E197: Buy | F197: 81.00 | H197: 110 | I197: 110.00 | J197: Target Achieved | K197: 29.00 | L197: 35.80% | M197: Successful | N197: 2017-01-10
A198: 47 | B198: 2016-01-13 | D198: SSWL | E198: Buy | F198: 417.50 | H198: 547 | I198: 535.00 | J198: Target Achieved | K198: 129.50 | L198: 31.02% | M198: Successful | N198: 2016-07-27
A199: 48 | B199: 2016-02-08 | D199: Persistent System Ltd | E199: Accu | F199: 650.00 | H199: 800 | I199: 800.00 | J199: Target Achieved | K199: 150.00 | L199: 23.08% | M199: Successful | N199: 2018-02-23
A200: 49 | B200: 2016-03-04 | D200: UPL | E200: Accu | F200: 437.50 | H200: 504.5 | I200: 522.00 | J200: Profit of Rs.67/- | K200: 67.00 | L200: 15.31% | M200: Successful | N200: 2016-04-20
A201: 50 | B201: 2016-03-09 | D201: Ashoka Buildcon Ltd | E201: Accu | F201: 189.50 | H201: 218 | I201: 218.00 | J201: Target Achieved | K201: 28.50 | L201: 15.04% | M201: Successful | N201: 2017-10-26
A202: 51 | B202: 2016-04-11 | D202: PTC INDIA FIN SERV LTD | E202: Accu | F202: 36.5 | H202: 15.85 | I202: 60.00 | J202: Loss of Rs.20.65/- | K202: -20.65 | L202: -56.58% | M202: Unsuccessful | N202: 2019-06-11
A203: 52 | B203: 2016-04-12 | D203: CAMLINFINE $ | E203: Accu | F203: 93.00 | H203: 149 | I203: 140.00 | J203: Profit of Rs 56/- | K203: 56.00 | L203: 60.22% | M203: Successful | N203: 2017-01-05
A204: 53 | B204: 2016-04-12 | D204: Greaves Cotton Ltd. | E204: Accu | F204: 130.00 | H204: 150 | I204: 150-155 | J204: Target Achieved | K204: 20.00 | L204: 15.38% | M204: Successful | N204: 2016-07-13
A205: 54 | B205: 2016-04-13 | D205: DHFL | E205: Accu | F205: 196.00 | H205: 299 | I205: 299.00 | J205: Target Achieved | K205: 103.00 | L205: 52.55% | M205: Successful | N205: 2016-09-07
A206: 55 | B206: 2016-04-13 | D206: Magma | E206: Accu | F206: 88.00 | H206: 103 | I206: 103.00 | J206: Target Achieved | K206: 15.00 | L206: 17.05% | M206: Successful | N206: 2016-06-09
A207: 56 | B207: 2016-05-02 | D207: KEC International ltd $ | E207: Accu | F207: 127.50 | H207: 148 | I207: 148-150 | J207: Target Achieved | K207: =H207-F207 -> 20.50 | L207: =K207/F207 -> 16.08% | M207: Successful | N207: 2016-07-13
A208: 57 | B208: 2016-05-03 | D208: Mindtree | E208: Accu | F208: 675.00 | H208: 815 | I208: 790-800 | J208: Target Achieved | K208: =H208-F208 -> 140.00 | L208: =K208/F208 -> 20.74% | M208: Successful | N208: 2018-02-23
A209: 58 | B209: 2016-06-01 | D209: Atulauto | E209: Accu | F209: 500 | H209: 232.50 | I209: 565-570 | J209: Loss of Rs.267.50 /- | K209: =H209-F209 -> -267.50 | L209: =K209/F209 -> -53.50% | M209: Unsuccessful | N209: 2019-09-27
A210: 59 | B210: 2016-06-06 | D210: TRITURBINE | E210: Accu | F210: 110.00 | H210: 126.5 | I210: 125.00 | J210: Profit of Rs.16.50/- | K210: =H210-F210 -> 16.50 | L210: =K210/F210 -> 15.00% | M210: Successful | N210: 2016-07-01
A211: 60 | B211: 2016-06-17 | D211: Pennar Industries Ltd | E211: Accu | F211: 44.00 | H211: 69.5 | I211: 69.50 | J211: Profit of Rs.25.50/- | K211: =H211-F211 -> 25.50 | L211: =K211/F211 -> 57.95% | M211: Successful | N211: 2017-08-30
A212: 61 | B212: 2016-06-28 | D212: EVEREADY | E212: Accu | F212: 262.50 | H212: 340 | I212: 333.00 | J212: Profit of Rs.77.50/- | K212: 77.50 | L212: 29.52% | M212: Successful | N212: 2017-10-09
A213: 62 | B213: 2016-06-28 | D213: FIEMIND | E213: Accu | F213: 840.00 | H213: 1230 | I213: 1230.00 | J213: Target Achieved | K213: 390.00 | L213: 46.43% | M213: Successful | N213: 2016-10-06
A214: 63 | B214: 2016-07-05 | D214: Bajaj Corp Ltd | E214: Accu | F214: 395 | H214: =(468.5+342.5)/2 -> 405.50 | I214: 510.00 | J214: Profit of Rs.10.50/- | K214: =H214-F214 -> 10.50 | L214: =K214/F214 -> 3% | M214: Neutral | N214: 2019-05-21
A215: 64 | B215: 2016-08-02 | D215: GPPL $ | E215: Buy | F215: =169.5-12.8 -> 156.7 | H215: 77.00 | I215: 198-200 | J215: Loss of Rs.79.7/- | K215: -79.70 | L215: -50.86% | M215: Unsuccessful | N215: 2019-02-26
A216: 65 | B216: 2016-08-04 | D216: WONDERLA HOLIDAYS LTD | E216: Accu | F216: 400 | H216: 305.00 | I216: 475.00 | J216: Loss of Rs.95/- | K216: -95.00 | L216: -23.75% | M216: Unsuccessful | N216: 2019-05-21
A217: 66 | B217: 2016-08-11 | D217: CAMLINFINE | E217: Accu | F217: 86.50 | H217: 130 | I217: 130.00 | J217: Profit of Rs.43.50/- | K217: 43.50 | L217: 50.29% | M217: Successful | N217: 2017-12-22
A218: 67 | B218: 2016-08-18 | D218: GRANULES | E218: Accu | F218: 133.5 | H218: 126.50 | I218: 178.00 | J218: Exit | K218: -7.00 | L218: -5.24% | M218: Unsuccessful | N218: 2016-09-02
A219: 68 | B219: 2016-08-31 | D219: VA TECH WABAG | E219: Accu | F219: 560.00 | H219: 725 | I219: 725.00 | J219: Target Achieved | K219: 165.00 | L219: 29.46% | M219: Successful | N219: 2016-03-27
A220: 69 | B220: 2016-09-01 | D220: SKIPPER LIMITED | E220: Accu | F220: 160.50 | H220: 210 | I220: 210.00 | J220: Target Achieved | K220: 49.50 | L220: 30.84% | M220: Successful | N220: 2017-05-16
A221: 70 | B221: 2016-10-03 | D221: IFBIND | E221: Accu | F221: 430.00 | H221: 596 | I221: 575.00 | J221: Profit of Rs.166/- | K221: 166.00 | L221: 38.60% | M221: Successful | N221: 2017-02-03
A222: 71 | B222: 2016-10-14 | D222: ASIANTILES | E222: Accu | F222: 280.00 | H222: 345 | I222: 345.00 | J222: Target Achieved | K222: =H222-F222 -> 65.00 | L222: =K222/F222 -> 23.21% | M222: Successful | N222: 2017-03-20
A223: 72 | B223: 2016-10-14 | D223: DEEPIND | E223: Accu | F223: 245.00 | H223: 325.5 | I223: 330.00 | J223: Profit of Rs.80.5/- | K223: 80.50 | L223: =K223/F223 -> 32.86% | M223: Successful | N223: 2017-02-03
A224: 73 | B224: 2016-10-17 | D224: DCBBANK | E224: Accu | F224: 125.00 | H224: 160 | I224: 160.00 | J224: Target Achieved | K224: 35.00 | L224: 28.00% | M224: Successful | N224: 2017-03-09
A225: 74 | B225: 2016-10-17 | D225: ORIENTREF | E225: Accu | F225: 114.00 | H225: 145 | I225: 145.00 | J225: Target Achieved | K225: 31.00 | L225: =K225/F225 -> 27.19% | M225: Successful | N225: 2017-05-04
A226: 75 | B226: 2016-10-17 | D226: GANECOS | E226: Accu | F226: 212.00 | H226: 280 | I226: 276.00 | J226: Profit of Rs.68/- | K226: 68.00 | L226: =K226/F226 -> 32.08% | M226: Successful | N226: 2017-05-03
A227: 76 | B227: 2016-11-04 | D227: NBCC | E227: Accu | F227: 155.00 | H227: 210 | I227: 210.00 | J227: Profit of Rs.55/- | K227: 55.00 | L227: =K227/F227 -> 35.48% | M227: Successful | N227: 2017-07-28
A228: 77 | B228: 2016-12-06 | D228: PRECAM | E228: Accu | F228: 150.5 | H228: 72.50 | I228: 174.00 | J228: Loss of Rs.78/- | K228: -78.00 | L228: -51.83% | M228: Unsuccessful | N228: 2018-08-21
... 102 more rows
